{"text_format":"1","workbook":"xlsx","n_sheets":25,"sheets":["Data_Main","Data_Sheets","DV_TABLES","Instructions","Main","Summary","Prime Lambs Input","Prime Lambs","Prime Lambs Merino Ewes Input","Prime Lambs Merino Ewes","Lamb Trading Input","Lamb Trading","GM_INFO","Merino SR Input","Merino SR","Wethers Input","Wethers","Cleanskin Sheep Input","Cleanskin Sheep","Beef Input","Beef","Beef Trading Input","Beef Trading","Beef Feed Lot Input","Beef Feed Lot"],"not_rendered":{"charts":0,"images":8,"macros":1,"external_links":0,"defined_names":39,"comments":9,"pivot_tables":0},"unopened":[],"bounds":{"document_bytes":16777216,"sheet_cells":100000,"rows_first":2000,"rows_last":500,"rows_between":2000,"halvings":0,"cell_chars":16384,"cell_head_chars":4096},"cells_cut":0,"cells_raw":0,"read":"whole","date_system":"1900"}

{"sheet":"Data_Main","index":0,"n_rows":11,"n_cols":4,"rows_kept":11,"cut":false,"hidden":true,"merged":[]}
[]
[]
[]
[null,"Year",2019,"Enter"]
[null,"Year_Long",{"$f":"m_year&\"/\"&m_year+1","v":"2019/2020"},"Calculated"]
[null,"Year_Short",{"$f":"RIGHT(m_year,2)&\"/\"&RIGHT(m_year,2)+1","v":"19/20"},"Calculated"]
[]
[]
[null,"MODEL VERSION",4]
[]
[null,"show_disclaimer",true,"Calculated"]

{"sheet":"Data_Sheets","index":1,"n_rows":35,"n_cols":3,"rows_kept":35,"cut":false,"hidden":true,"merged":[]}
[]
[]
[]
[]
[]
[]
[]
[]
[]
[null,"Sheet","State(show to keep sheet visible or blank to hide)"]
[null,"Data_Main"]
[null,"Data_Sheets"]
[null,"DV_TABLES"]
[null,"Instructions","Show"]
[null,"Main","Show"]
[null,"Summary","Show"]
[null,"Prime Lambs Input"]
[null,"Prime Lambs"]
[null,"Prime Lambs Merino Ewes Input"]
[null,"Prime Lambs Merino Ewes"]
[null,"Lamb Trading Input"]
[null,"Lamb Trading"]
[null,"GM_INFO"]
[null,"Merino SR Input"]
[null,"Merino SR"]
[null,"Wethers Input"]
[null,"Wethers"]
[null,"Cleanskin Sheep Input"]
[null,"Cleanskin Sheep"]
[null,"Beef Input"]
[null,"Beef"]
[null,"Beef Trading Input"]
[null,"Beef Trading"]
[null,"Beef Feed Lot Input"]
[null,"Beef Feed Lot"]

{"sheet":"DV_TABLES","index":2,"n_rows":0,"n_cols":0,"rows_kept":0,"cut":false,"hidden":true,"merged":[]}

{"sheet":"Instructions","index":3,"n_rows":78,"n_cols":3,"rows_kept":78,"cut":false,"hidden":false,"merged":[[8,1,8,10]]}
[]
[]
[]
[]
[]
[]
[null,{"$f":"\"Livestock Farm Gross Margin Guide -\"&TEXT(m_year,\"0000\")","v":"Livestock Farm Gross Margin Guide -2019"}]
[null,"This spreadsheet can take a few moments to load"]
[null,"PLEASE NOTE:THIS VERSION WILL ONLY WORK WITH EXCEL VERSIONS 2007 & ABOVE FOR WINDOWS ONLY.\nIt will not work with Excel for Mac, Ipad, Android, tablets etc."]
[]
[null,"Before You Start"]
[null,"Before you start  you will need to enable macros. "]
[null,"This may appear as a Security Warning at the top of your page. To do this, click on “Enable Content”."]
[null," Clicking “Enable Content” allows you to enter data into the Excel Worksheet. "]
[]
[]
[]
[]
[]
[]
[]
[null,"You may also see a message about \"PROTECTED VIEW\". Please click \"Enable Editing\"."]
[]
[]
[]
[]
[]
[]
[null,"Yellow cells = data entry (some yellow cells contain formulas, these usually represent default"]
[null,"values but may be over written. To revert back to the default value formula click the blue 'Reset…'"]
[null,"link next to the cell."]
[null,"Blue cells contain formulas, are protected and can not be overwritten."]
[]
[]
[]
[]
[]
[]
[]
[]
[]
[]
[]
[]
[]
[null,"Before you begin in the Main sheet please select the Livestock types you will be using:"]
[]
[]
[]
[]
[]
[]
[]
[]
[]
[]
[]
[]
[]
[]
[]
[]
[]
[]
[]
[]
[]
[]
[]
[]
[]
[]
[]
[]
[]
[null,"For technical support or to report errors/omissions regarding this spreadsheet please"]
[null,"email Barry Mudge at:"]
[null,null," theoaks5@bigpond.com"]

{"sheet":"Main","index":4,"n_rows":15,"n_cols":7,"rows_kept":15,"cut":false,"hidden":false,"merged":[]}
[]
[]
[null,null,{"$f":"\"FARM GROSS MARGIN GUIDE - \"&TEXT(m_year,\"0000\")","v":"FARM GROSS MARGIN GUIDE - 2019"},null,null,null,{"$f":"\"Version-\"&TEXT(MODEL_VERSION,\"0.0\")","v":"Version-4.0"}]
[]
[]
[null,null,"\nby clicking checkboxes or\n         All or None buttons"]
[null,false,"Prime Lambs 1st Cross Ewes"]
[null,false,"Prime Lambs Merino Ewes"]
[null,false,"Lamb Trading High Rainfall"]
[null,false,"Merino SR"]
[null,false,"Wethers"]
[null,false,"Cleanskin Sheep"]
[null,false,"Beef"]
[null,false,"Beef Trading"]
[null,false,"Beef Feed Lot"]

{"sheet":"Summary","index":5,"n_rows":15,"n_cols":7,"rows_kept":15,"cut":false,"hidden":false,"merged":[[3,3,3,4],[3,5,3,6]]}
[]
[null,{"$f":"\"GROSS MARGINS SUMMARY - \"&TEXT(m_year,\"0000\")","v":"GROSS MARGINS SUMMARY - 2019"}]
[]
[null,null,null,"Gross Margin"]
[null,"Type","No of head"]
[null,"Prime Lambs 1st Cross Ewes",{"$f":"'Prime Lambs Input'!E7*rng_Prime_Lambs_DATA","v":0},{"$f":"'Prime Lambs'!Q174*rng_Prime_Lambs_DATA","v":0},{"$f":"'Prime Lambs'!Q172*rng_Prime_Lambs_DATA","v":0},{"$f":"'Prime Lambs'!Q37*rng_Prime_Lambs_DATA","v":0},{"$f":"'Prime Lambs'!Q170*rng_Prime_Lambs_DATA","v":0}]
[null,"Prime Lambs Merino Ewes",{"$f":"'Prime Lambs Merino Ewes Input'!E7*rng_Prime_LambsMerino_DATA","v":0},{"$f":"'Prime Lambs Merino Ewes'!Q174*rng_Prime_LambsMerino_DATA","v":0},{"$f":"'Prime Lambs Merino Ewes'!Q172*rng_Prime_LambsMerino_DATA","v":0},{"$f":"'Prime Lambs Merino Ewes'!Q37*rng_Prime_LambsMerino_DATA","v":0},{"$f":"'Prime Lambs Merino Ewes'!Q170*rng_Prime_LambsMerino_DATA","v":0}]
[null,"Lamb Trading High Rainfall",{"$f":"'Lamb Trading Input'!E7*rng_Lambtrading_DATA","v":0},{"$f":"'Lamb Trading'!Q174*rng_Lambtrading_DATA","v":0},{"$f":"'Lamb Trading'!Q172*rng_Lambtrading_DATA","v":0},{"$f":"'Lamb Trading'!Q37*rng_Lambtrading_DATA","v":0},{"$f":"'Lamb Trading'!Q170*rng_Lambtrading_DATA","v":0}]
[null,"Merino SR",{"$f":"'Merino SR Input'!E8*rng_Merino_SR_DATA","v":0},{"$f":"'Merino SR'!Q174*rng_Merino_SR_DATA","v":0},{"$f":"'Merino SR'!Q172*rng_Merino_SR_DATA","v":0},{"$f":"'Merino SR'!Q37*rng_Merino_SR_DATA","v":0},{"$f":"'Merino SR'!Q170*rng_Merino_SR_DATA","v":0}]
[null,"Wethers",{"$f":"'Wethers Input'!E7*rng_Whethers_DATA","v":0},{"$f":"Wethers!Q7*rng_Whethers_DATA","v":0},{"$f":"Wethers!Q172*rng_Whethers_DATA","v":0},{"$f":"Wethers!Q37*rng_Whethers_DATA","v":0},{"$f":"Wethers!Q170*rng_Whethers_DATA","v":0}]
[null,"Cleanskin Sheep",{"$f":"'Cleanskin Sheep Input'!E7*rng_Cleanskin_Sheep_DATA","v":0},{"$f":"'Cleanskin Sheep'!Q174*rng_Cleanskin_Sheep_DATA","v":0},{"$f":"'Cleanskin Sheep'!Q172*rng_Cleanskin_Sheep_DATA","v":0},{"$f":"'Cleanskin Sheep'!Q37*rng_Cleanskin_Sheep_DATA","v":0},{"$f":"'Cleanskin Sheep'!Q170*rng_Cleanskin_Sheep_DATA","v":0}]
[null,"Beef",{"$f":"'Beef Input'!E15*rng_Beef_DATA","v":0},{"$f":"Beef!Q174*rng_Beef_DATA","v":0},{"$f":"Beef!Q172*rng_Beef_DATA","v":0},{"$f":"Beef!Q41*rng_Beef_DATA","v":0},{"$f":"Beef!Q170*rng_Beef_DATA","v":0}]
[null,"Beef Trading",{"$f":"'Beef Trading Input'!E10*rng_Beeftrading_DATA","v":0}]
[null,"Beef Feed Lot",{"$f":"100*rng_Beeffeedlot_DATA","v":0},{"$f":"'Beef Feed Lot'!Q172*rng_Beeffeedlot_DATA","v":0},{"$f":"C14*D14*rng_Beeffeedlot_DATA","v":0},{"$f":"'Beef Feed Lot'!Q41*C14*rng_Beeffeedlot_DATA","v":0},{"$f":"'Beef Feed Lot'!Q170*C14*rng_Beeffeedlot_DATA","v":0}]
[null,"TOTAL",null,null,{"$f":"SUM(E6:E14)","v":0},{"$f":"SUM(F6:F14)","v":0},{"$f":"SUM(G6:G14)","v":0}]

{"sheet":"Prime Lambs Input","index":6,"n_rows":72,"n_cols":10,"rows_kept":72,"cut":false,"hidden":true,"merged":[[4,2,4,9],[36,2,37,4]]}
[null,null,"Prime Lambs (1st cross ewes)"]
[null,null,{"$f":"UPPER(var_animal)&\" GROSS  MARGIN - \"&TEXT(m_year,\"0000\")","v":"PRIME LAMBS (1ST CROSS EWES) GROSS  MARGIN - 2019"}]
[]
[null,null,"GENERAL INFORMATION"]
[null,null,"This represents a First Cross Ewe enterprise (Merino X Border Liecester) mated to a terminal sire. All ewe replacements are purchased, but age of replacements can be varied from 1.5 years to 4.5 years. Following are the various assumptions used in the calculation of the Gross Margin. Cells with yellow highlight can be changed. No allowance has been made for pasture expenses such as seed, fertiliser and chemicals. Refer to pasture gross margins in the “Cropping Gross Margin Plan” for annual and perennial pasture costs. Use the livestock gross margin per DSE as income for the pasture gross margin."]
[]
[null,null,"Ewes mated",null,1000]
[null,null,"Age ewes purchased",null,1.5]
[null,null,"Age ewes sold",null,6.5]
[null,null,"Av Weaning %",null,1.1499999999999999]
[null,null,"Ram percentage",null,0.02]
[null,null,"Years Rams Kept",null,3]
[null,null,"Flock death Rate",null,0.03]
[null,null,"% Lambs carried over",null,0]
[]
[]
[null,null,"LIVESTOCK SALES",null,"Price/Hd","Number","Total"]
[null,null,"c.f.a Ewes",null,120,{"$f":"'Prime Lambs'!AG220","v":182.36536362457954},{"$f":"E18*ROUND(F18,0)","v":21840}]
[null,null,"c.f.a Rams",null,80,{"$f":"'Prime Lambs'!AG238","v":6.270727266481158},{"$f":"E19*ROUND(F19,0)","v":480}]
[null,null,"Lambs",null,165,{"$f":"'Prime Lambs'!AG227","v":1150},{"$f":"E20*ROUND(F20,0)","v":189750}]
[]
[]
[]
[]
[null,null,"TOTAL SALES",null,null,{"$f":"SUM(F18:F23)","v":1338.6360908910606},{"$f":"SUM(G18:G23)","v":212070}]
[]
[]
[null,null,"LIVESTOCK PURCHASES",null,"Price/Hd","Number","Total"]
[null,null,"Ewes",null,300,{"$f":"'Prime Lambs'!AD220","v":212.36536362457954},{"$f":"E29*F29","v":63709.609087373865}]
[null,null,"Rams",null,1500,{"$f":"'Prime Lambs'!AD238","v":6.8707272664811576},{"$f":"E30*F30","v":10306.090899721736}]
[]
[null,null,"TOTAL PURCHASES",null,null,{"$f":"SUM(F29:F30)","v":219.23609089106071},{"$f":"SUM(G29:G30)","v":74015.699987095606}]
[]
[]
[null,null,"WOOL PRICE (cents/kg)",null,null,{"$f":"TEXT(m_year-3,\"0000\")&\" Average (Clean)\"","v":"2016 Average (Clean)"},{"$f":"TEXT(m_year-2,\"0000\")&\" Average (Clean)\"","v":"2017 Average (Clean)"},{"$f":"TEXT(m_year-1,\"0000\")&\" Average (Clean)\"","v":"2018 Average (Clean)"},"Budget Base (Clean)","Budget Base (Greasy)"]
[null,null,null,null,"Wool- High Rainfall 28 mic 70% yield",867,774,756,750,525]
[null,null,"Allow 90% to account for lower value of bellies, skirtings etc.",null,null,null,null,null,null,{"$f":"J36*0.9","v":472.5}]
[]
[]
[]
[null,null,"WOOL SALES - SHEARING",null,null,"Wool Cut"]
[null,null,null,null,"Number","kg/hd","Price","Total"]
[null,null,"Ewes",null,{"$f":"'Prime Lambs'!E226","v":970.00000000000034},3.5,5.4989999999999997,{"$f":"E43*F43*G43","v":18669.105000000007}]
[null,null,"Crossbred Rams",null,{"$f":"'Prime Lambs'!E227","v":19.400000000000002},2.5,2.5499999999999998,{"$f":"E44*F44*G44","v":123.67500000000001}]
[]
[null,null,"TOTAL",null,{"$f":"SUM(E43:E45)","v":989.40000000000032},{"$f":"(E43*F43)+(E44*F44)","v":3443.5000000000014},null,{"$f":"SUM(H43:H45)","v":18792.780000000006}]
[]
[]
[null,null,"STOCK HEALTH REQUIREMENTS"]
[null,null,null,null,null,null,"      Number of times"]
[null,null,null,null,"Number","Drench","Vacc.","Blowfly"]
[null,null,"Ewes",null,{"$f":"'Prime Lambs'!E219","v":1000},2,1,1]
[null,null,"Rams",null,{"$f":"'Prime Lambs'!E220","v":20},2,1,0]
[null,null,"Lambs",null,{"$f":"'Prime Lambs'!E221","v":1150},1,2,0]
[]
[null,null,"TOTAL",null,{"$f":"SUM(E52:E54)","v":2170},{"$f":"SUMPRODUCT($E$52:$E$54,F52:F54)","v":3190},{"$f":"SUMPRODUCT($E$52:$E$54,G52:G54)","v":3320},1000]
[]
[]
[null,null,"FEEDING"]
[null,null,"HAY",null,null,"Hay","Kgs Fed","No Weeks","Total"]
[null,null,null,null,"Number","Cost ($/T)","per Week","of Feeding","Cost ($)"]
[null,null,"Ewes",null,{"$f":"'Prime Lambs'!E219","v":1000},260,2.5,8,{"$f":"(H62*G62*E62)/1000*F62","v":5200}]
[null,null,"Rams",null,{"$f":"'Prime Lambs'!E220","v":20},260,2.5,8,104]
[null,null,"Lambs",null,{"$f":"'Prime Lambs'!E221","v":1150},260,null,null,0]
[]
[null,null,"GRAIN",null,null,"Grain","Kgs Fed","No weeks","Total"]
[null,null,null,null,"Number","Cost ($/T)","per week","of Feeding","Cost ($)"]
[null,null,"Ewes",null,{"$f":"'Prime Lambs'!E219","v":1000},320,3,8,{"$f":"(H68*G68*E68)/1000*F68","v":7680}]
[null,null,"Rams",null,{"$f":"'Prime Lambs'!E220","v":20},320,3,10,192]
[null,null,"Lambs",null,{"$f":"'Prime Lambs'!E221","v":1150},null,null,null,0]
[]
[null,null,null,null,null,null,null,"Total Feed Cost",{"$f":"SUM(I62:I64,I68:I70)","v":13176}]

{"sheet":"Prime Lambs","index":7,"n_rows":263,"n_cols":52,"rows_kept":263,"cut":false,"hidden":true,"merged":[[254,2,258,2],[195,10,195,14],[216,4,216,10],[223,6,224,6],[236,6,237,6],[236,8,237,8],[236,10,237,10],[236,12,237,12],[241,6,242,6],[241,8,242,8],[241,10,242,10],[241,12,242,12],[250,4,250,16]]}
[null,null,"Prime Lambs (1st cross ewes)"]
[null,null,{"$f":"UPPER(Var_Animal)&\"  GROSS  MARGIN - \"&TEXT(m_year,\"0000\")","v":"PRIME LAMBS (1ST CROSS EWES)  GROSS  MARGIN - 2019"}]
[]
[null,null,"ASSUMPTIONS"]
[]
[null,null,"Ave Breeding Ewe Fibre Diameter",null,28,null,null,null,null,null,null,null,null,null,"Total DSE's",null,{"$f":"E197","v":1840}]
[null,null,"No. of breeding ewes (1st Cross)",null,{"$f":"'Prime Lambs Input'!$E$7","v":1000}]
[null,null,"1st cross ewe - Terminal meat sire"]
[]
[]
[]
[]
[]
[]
[]
[]
[]
[]
[]
[]
[]
[]
[]
[]
[]
[]
[]
[]
[null,null,null,null,null,null,null,null,null,null,null,null,null,null,null,null,null,null,null,null,null," "]
[]
[]
[null,null,"INCOME",null,null,null,null,null,null,null,null,null,null,null,null,null,"$"]
[]
[null,null,"Wool (kg greasy)",null,{"$f":"G234","v":3443.5000000000014},null,"kg",null,"av price",null,{"$f":"K234*100/G234","v":545.74647887323931},null,"c/kg",null,null,null,{"$f":"K234","v":18792.780000000002}]
[null,null,"Sales",null,{"$f":"E212","v":1338.6360908910606},null,"animals",null,"av price",null,{"$f":"G212","v":158.42244314422749},null,"/head",null,null,null,{"$f":"E212*G212","v":212069.99999999997}]
[]
[null,null,"Gross Income",null,null,null,null,null,null,null,null,null,null,null,null,null,{"$f":"SUM(Q34:Q35)","v":230862.77999999997}]
[]
[]
[]
[]
[]
[]
[]
[null,null,null,null,null,null,null,null,null,null,null,null,null,null,null,null,null,null,null,null,null,null,null,null,null,null,"STOCK VALUE AND D.S.E REQUIREMENT",null,null,null,null,null,"Non lamb related expenses",null,null,null,null,null,"Lamb Costs ","No:","per head",null,null,null,"SHEEP GROSS MARGIN "]
[null,null,"VARIABLE COSTS",null,null,null,null,null,null,null,null,null,null,null,null,null,null,null,null,null,null,null,null,null,null,null,null,null,"Value","Ave Live","DSE",null,null,null,null,null,null,null,null,null,null,null,null,null,"PRIME LAMB - "]
[null,null,"Shearing",null,null,null,null,null,null,null,"Rate",null,null,null,null,null,null,null,null,null,null,null,null,null,null,null,null,"Number","$/head","Wt (Kgs)","rating",null,"Shearing",null,null,{"$f":"SUM(Q48:Q58)","v":8758.7092800800001},null,null,"Marking",{"$f":"$E$121","v":1150},{"$f":"K76+K77","v":1.5799999999999998},{"$f":"AN47*AO47","v":1816.9999999999998}]
[null,null,"Shearing",null,{"$f":"E226","v":970.00000000000034},null,"sheep   ",null,"Reset Rate>","=GM_INFO!C30",{"$f":"GM_INFO!C30","v":310.77},null,"/100",null,null,null,{"$f":"K48/100*ROUND(E48,0)","v":3014.4690000000001},null,null,null,null,null,null,null,null,null,"ewes  ",{"$f":"'Prime Lambs Input'!$E$7","v":1000},{"$f":"(G209+G214)/2","v":210},60,{"$f":"IF(AND(AD48>=55,AD48<60),1.7,IF(AND(AD48>=60,AD48<65),1.8,IF(AND(AD48>=65,AD48<70),1.9,IF(AND(AD48>=70,AD48<75),2,IF(AND(AD48>=75,AD48<80),2.1,IF(AND(AD48>=80,AD48<85),2.2,IF(AND(AD48>=85,AD48<90),2.3,IF(AD48>=90,2.4,0))))))))","v":1.8},null,"Animal health",null,null,{"$f":"(E219*G219+E220*G220)*K90+(E219*I219+E220*I220)*K91+(E219*K219)*K92","v":2998.56},null,null,"Animal health",1150,{"$f":"G220*K91+I220*K90","v":1.256},{"$f":"AN48*AO48","v":1444.4}]
[null,null,"(Federal awards)",null,{"$f":"E227","v":19.400000000000002},null,"rams    ",null,"Reset Rate>","=GM_INFO!C31",{"$f":"GM_INFO!C31","v":621.54},null,"/100",null,null,null,118.09259999999999,null,null,null,null,null,null,null,null,null,"rams",{"$f":"'Prime Lambs Input'!E11*'Prime Lambs'!AB48","v":20},{"$f":"(G210+G215)/2","v":790},100,2,null,"Stock Purchase",null,null,{"$f":"SUM(Q105:Q105)","v":74015.699987095606},null,null,"Freight",1150,{"$f":"K121","v":4},{"$f":"AN49*AO49","v":4600}]
[null,null,"Shed labour",null,5,null,"days   ",null,"Reset Rate>","=GM_INFO!C32",{"$f":"GM_INFO!C32","v":234.8},null,"/day",null,null,null,{"$f":"K50*ROUND(E50,0)","v":1174},null,null,null,null,null,null,null,null,null,"lambs",{"$f":"AC227","v":1150},{"$f":"G211/2","v":82.5},35,0,null,"Freight","sheep",null,{"$f":"SUM(Q119:Q120)","v":1605.4614544983183},null,null,"Yard Fees",1150,{"$f":"K125","v":0.85},{"$f":"AN50*AO50","v":977.5}]
[null,null,"Woolclasser",null,2.5,null,"days   ",null,"Reset Rate>","=GM_INFO!C33",{"$f":"GM_INFO!C33","v":297.79000000000002},null,"/day",null,null,null,{"$f":"K51*E51","v":744.47500000000002},null,null,null,null,null,null,null,null,null,"TOTAL",{"$f":"SUM(AB48:AB50)","v":2170},{"$f":"AB48*AC48+AB49*AC49+AB50*AC50/2","v":273237.5},null,null,null,null,"Wool",null,{"$f":"Q122","v":300},null,null,"Levies",1150,{"$f":"K127+K128","v":2.0499999999999998},{"$f":"AN51*AO51","v":2357.5},null,null,"Ewes mated",null,{"$f":"'Prime Lambs Input'!$E$7","v":1000},null,null,"Ram %",{"$f":"E200","v":0.02}]
[null,null,"Superannuation (on ord wages only)",null,null,null,null,null,"Reset Rate>","=GM_INFO!C34",{"$f":"GM_INFO!C34","v":9.5000000000000001E-2},null," wages",null,null,null,{"$f":"(Q48+Q49+Q50+Q51)*K52","v":479.84847700000006},null,null,null,null,null,null,null,null,null,null,null,null,null,null,null,"Commission on livestock sales",null,null,{"$f":"(K209+K210)*K124","v":1339.2},null,null,null,null,{"$f":"SUM(AO47:AO51)","v":9.7360000000000007},null,{"$f":"AO52*AD50","v":340.76000000000005},null,"Age ewes purchased",null,{"$f":"E201","v":1.5},null,null,"Price of rams",{"$f":"AL68","v":0}]
[null,null,"W/Cover (incl. super + otime etc)",null,null,null,null,null,"Reset Rate>","=GM_INFO!C35",{"$f":"GM_INFO!C35","v":0.04},null," total ",null,null,null,{"$f":"(Q48+Q49+Q50+Q51+Q52)*K53","v":221.23540308000003},null,null,null,null,null,null,null,null,null,null,null,null,null,null,null,"Yard fees",null,null,{"$f":"E119*K125","v":160.34067725740158},null,null,"Commission",{"$f":"$E$121","v":1150},{"$f":"G212","v":158.42244314422749},{"$f":"K124","v":0.06},{"$f":"AD50*AO53*AP53","v":332.68713060287769},null,"Age ewes sold",null,{"$f":"E202","v":6.5},null,null,"Years rams kept",{"$f":"E203","v":3}]
[null,null,"Wool packs",null,{"$f":"E122","v":20.255882352941185},null,"packs   ",null,"Reset Rate>","=GM_INFO!C28",{"$f":"GM_INFO!C28","v":11.2},null,"/pack",null,null,null,{"$f":"K54*ROUND(E54,0)","v":224},null,null,null,null,null,null,null,null,null,null,null,null,null,null,null,"Levies",null,null,{"$f":"E126*(K126+K128)","v":141.47706816829552},null,null,null,null,null,null,null,null,"Av Weaning %",null,{"$f":"'Prime Lambs Input'!E10","v":1.1499999999999999},null,null,"Age wethers sold",0.5]
[null,null,"Shed sundries",null,{"$f":"E48+E49","v":989.40000000000032},null,"sheep   ",null,"Reset Rate>","=GM_INFO!C36",{"$f":"GM_INFO!C36","v":0.2},null,"/head",null,null,null,197.8,null,null,null,null,null,null,null,null,null,null,null,null,null,null,null,"Wool Selling Charges",null,null,{"$f":"Q130+Q131","v":1211.6367000000005},null,null,null,null,null,null,{"$f":"SUM(AQ43:AQ53)","v":673.44713060287768},null,"dse/ewe",null,{"$f":"AE48","v":1.8},null,null,"Flock death rate",{"$f":"E204","v":0.03}]
[null,null,"Lice control",null,{"$f":"E48+E49","v":989.40000000000032},null,"sheep   ",null,"Reset Rate>","=GM_INFO!C19",{"$f":"GM_INFO!C19","v":1.6768000000000001},null,"/head",null,null,null,1658.3552,null,null,null,null,null,null,null,null,null,null,null,null,null,null,null,"Feed & other costs",null,null,{"$f":"SUM(Q144:Q149)","v":19610.474999999999}]
[null,null,"Crutch & Wig",null,990,null,"ewes",null,"Reset Rate>","=GM_INFO!C38",{"$f":"GM_INFO!C38","v":90.12},null,"/100",null,null,null,{"$f":"K57/100*ROUND(E57,0)","v":892.18799999999999},null,null,null,null,null,null,null,null,null,null,null,null,null,null,null,null,null,null,null,{"$f":"SUM(AJ47:AJ56)","v":110141.56016709961}]
[null,null,null,null,{"$f":"E49","v":19.400000000000002},null,"rams    ",null,"Reset Rate>","=GM_INFO!C39",{"$f":"GM_INFO!C39","v":180.24},null,"/100",null,null,null,34.245600000000003]
[]
[null,null,null,null,null,null,null,null,null,null,null,null,null,null,null,null,null,null,null,null,null,null,null,null,null,null,null,null,null,null,null,null,null,null,null,null,null,null,null,null,null,null,null,null,"EWES","OPENING","NATURAL","PURCHASES","DEATHS","% sold","SALES","CLOSING"]
[null,null,null,null,null,null,null,null,null,null,null,null,null,null,null,null,null,null,null,null,null,null,null,null,null,null,null,null,null,null,null,null,null,null,null,null,null,null,null,null,null,null,null,null,"AGE","NUMBERS","INCREASE",null,null,"culled",null,"NUMBERS"]
[]
[null,null,null,null,null,null,null,null,null,null,null,null,null,null,null,null,null,null,null,null,null,null,null,null,null,null,null,null,null,null,null,null,null,null,null,null,null,null,null,null,null,null,null,null,"0.5-1.5yr",null,null,{"$f":"IF($N$78=1.5,AT64,AT63-AW63)","v":0},null,null,{"$f":"AT63-AW63","v":0},{"$f":"AT63+AU63+AV63-AW63-AY63","v":0}]
[null,null,null,null,null,null,null,null,null,null,null,null,null,null,null,null,null,null,null,null,null,null,null,null,null,null,null,null,null,null,null,null,null,null,null,null,null,null,null,null,null,null,null,null,"1.5-2.5yr",{"$f":"IF(AU52=1.5,AU51/(1+(1-AY55)*(1-AX64)*(1+(1-AY55)*(1-AX65)*(1+(1-AY55)*(1-AX66)*(1+(1-AY55)*(1-AX67))))),0)","v":212.36536362457954},null,{"$f":"IF(AU52=2.5,AT65-AY64,0)","v":0},{"$f":"AT64*$R$81","v":0},null,{"$f":"(AT64-AW64)*AX64","v":0},212.36536362457954]
[null,null,null,null,null,null,null,null,null,null,null,null,null,null,null,null,null,null,null,null,null,null,null,null,null,null,null,null,null,null,null,null,null,null,null,null,null,null,null,null,null,null,null,null,"2.5-3.5yr",{"$f":"IF(AU52=2.5,AU51/(1+(1-AY55)*(1-AX65)*(1+(1-AY55)*(1-AX66)*(1+(1-AY55)*(1-AX67)))),AZ64)","v":212.36536362457954},null,{"$f":"IF(AU52=3.5,AT66-AY65,0)","v":0},{"$f":"AT65*$R$81","v":0},null,{"$f":"(AT65-AW65)*AX65","v":0},212.36536362457954]
[null,null,null,null,null,null,null,null,null,null,null,null,null,null,null,null,null,null,null,null,null,null,null,null,null,null,null,null,null,null,null,null,null,null,null,null,null,null,null,null,null,null,null,null,"3.5-4.5yr",{"$f":"IF(AU52=3.5,AU51/(1+(1-AY55)*(1-AX66)*(1+(1-AY55)*(1-AX67))),AZ65)","v":212.36536362457954},null,{"$f":"IF(AU52=4.5,AT67-AY66,0)","v":0},{"$f":"AT66*$R$81","v":0},null,{"$f":"(AT66-AW66)*AX66","v":0},212.36536362457954]
[null,null,null,null,null,null,null,null,null,null,null,null,null,null,null,null,null,null,null,null,null,null,null,null,null,null,null,null,null,null,null,null,null,null,null,null,null,null,null,null,null,null,null,null,"4.5-5.5yr",{"$f":"IF(AU52=4.5,AU51/(1+(1-AY55)*(1-AX67)),AZ66)","v":212.36536362457954},null,null,{"$f":"AT67*$R$81","v":0},{"$f":"IF(AU53=5.5,1,0)","v":0},{"$f":"(AT67-AW67)*AX67","v":0},212.36536362457954]
[null,null,null,null,null,null,null,null,null,null,null,null,null,null,null,null,null,null,null,null,null,null,null,null,null,null,null,null,null,null,null,null,null,null,null,null,null,null,null,null,null,null,null,null,"5.5-6.5yr",{"$f":"AZ67","v":212.36536362457954},null,null,{"$f":"AT68*$R$81","v":0},{"$f":"IF(AU53=6.5,1,0)","v":1},{"$f":"(AT68-AW68)*AX68","v":212.36536362457954},0]
[null,null,null,null,null,null,null,null,null,null,null,null,null,null,null,null,null,null,null,null,null,null,null,null,null,null,null,null,null,null,null,null,null,null,null,null,null,null,null,null,null,null,null,null,"Ewes",{"$f":"SUM(AT64:AT68)","v":1061.8268181228977},null,{"$f":"AV63+AV64+AV65+AV66","v":0},{"$f":"SUM(AW63:AW68)","v":0},null,{"$f":"SUM(AY64:AY68)","v":212.36536362457954},{"$f":"SUM(AZ63:AZ67)","v":849.46145449831818}]
[null,null,null,null,null,null,null,null,null,null,null,null,null,null,null,null,null,null,null,null,null,null,null,null,null,null,null,null,null,null,null,null,null,null,null,null,null,null,null,null,null,null,null,null,"d.s.e's",{"$f":"AT63+AT69*AU55","v":1911.288272621216}]
[]
[]
[null,null,null,null,null,null,null,null,null,null,null,null,null,null,null,null,null,null,null,null,null,null,null,null,null,null,null,null,null,null,null,null,null,null,null,null,null,null,null,null,null,null,null,null,"LAMBS","OPENING","NATURAL","PURCHASES","DEATHS","% sold","SALES","CLOSING"]
[null,null,null,null,null,null,null,null,null,null,null,null,null,null,null,null,null,null,null,null,null,null,null,null,null,null,null,null,null,null,null,null,null,null,null,null,null,null,null,null,null,null,null,null,"AGE","NUMBERS","INCREASE",null,null,"culled",null,"NUMBERS"]
[null,null,"Marking"]
[null,null,"Lamb marking",null,{"$f":"AC227","v":1150},null,"lambs",null,"Reset Rate>","=GM_INFO!C42",{"$f":"GM_INFO!C42","v":1.1499999999999999},null,"/head",null,null,null,{"$f":"K76*ROUND(E76,0)","v":1322.5},null,null,null,null,null,null,null,null,null,null,null,null,null,null,null,null,null,null,null,null,null,null,null,null,null,null,null,"0-0.5yr",null,{"$f":"AU51*AU54","v":1150},null,null,1,{"$f":"AU76*AX76","v":1150},{"$f":"AT76+AU76+AV76-AW76-AY76","v":0}]
[null,null,"Ear tags",null,{"$f":"AC227","v":1150},null,"lambs",null,"Reset Rate>","=GM_INFO!C43",{"$f":"GM_INFO!C43","v":0.43},null,"/head",null,null,null,494.5]
[]
[null,null,null,null,null,null,null,null,null,null,null,null,null,null,null,null,null,null,null,null,null,null,null,null,null,null,null,null,null,null,null,null,null,null,null,null,null,null,null,null,null,null,null,null,"RAMS","OPENING","NATURAL","PURCHASES","DEATHS","% sold","SALES","CLOSING"]
[null,null,null,null,null,null,null,null,null,null,null,null,null,null,null,null,null,null,null,null,null,null,null,null,null,null,null,null,null,null,null,null,null,null,null,null,null,null,null,null,null,null,null,null,"AGE","NUMBERS","INCREASE",null,null,"culled",null,"NUMBERS"]
[]
[null,null,null,null,null,null,null,null,null,null,null,null,null,null,null,null,null,null,null,null,null,null,null,null,null,null,null,null,null,null,null,null,null,null,null,null,null,null,null,null,null,null,null,null,"0.5-1.5yr",null,null,{"$f":"AT83/(1-AX82)","v":6.8707272664811576},{"$f":"AT82*$R$81","v":0},null,null,{"$f":"AT82+AU82+AV82-AW82-AY82","v":6.8707272664811576}]
[null,null,null,null,null,null,null,null,null,null,null,null,null,null,null,null,null,null,null,null,null,null,null,null,null,null,null,null,null,null,null,null,null,null,null,null,null,null,null,null,null,null,null,null,"1.5-2.5yr",{"$f":"IF(AY53=3,(AU51*AY51)/(1+(1-AY55)*(1-AX83)*(1+(1-AY55)*(1-AX84)*(1+(1-AY55)*(1-AX85)))),IF(AY53=4,(AU51*AY51)/(1+(1-AY55)*(1-AX83)*(1+(1-AY55)*(1-AX84)*(1+(1-AY55)*(1-AX85)*(1+(1-AY55)*(1-AX86))))),0))","v":6.8707272664811576},null,null,{"$f":"AT83*$R$81","v":0},null,null,{"$f":"AT83+AU83+AV83-AW83-AY83","v":6.8707272664811576}]
[null,null,null,null,null,null,null,null,null,null,null,null,null,null,null,null,null,null,null,null,null,null,null,null,null,null,null,null,null,null,null,null,null,null,null,null,null,null,null,null,null,null,null,null,"2.5-3.5yr",{"$f":"AZ83","v":6.8707272664811576},null,null,{"$f":"AT84*$R$81","v":0},null,null,{"$f":"AT84+AU84+AV84-AW84-AY84","v":6.8707272664811576}]
[null,null,null,null,null,null,null,null,null,null,null,null,null,null,null,null,null,null,null,null,null,null,null,null,null,null,null,null,null,null,null,null,null,null,null,null,null,null,null,null,null,null,null,null,"3.5-4.5yr",{"$f":"AZ84","v":6.8707272664811576},null,null,{"$f":"AT85*$R$81","v":0},{"$f":"IF(AY53=3,100%,0)","v":1},{"$f":"(AT85-AW85)*AX85","v":6.8707272664811576},{"$f":"AT85+AU85+AV85-AW85-AY85","v":0}]
[null,null,null,null,null,null,null,null,null,null,null,null,null,null,null,null,null,null,null,null,null,null,null,null,null,null,null,null,null,null,null,null,null,null,null,null,null,null,null,null,null,null,null,null,"4.5-5.5yr",{"$f":"AZ85","v":0},null,null,{"$f":"AT86*$R$81","v":0},{"$f":"IF(AY53=4,100%,0)","v":0},{"$f":"AT86-AW86","v":0},{"$f":"AT86+AU86+AV86-AW86-AY86","v":0}]
[null,null,null,null,null,null,null,null,null,null,null,null,null,null,null,null,null,null,null,null,null,null,null,null,null,null,null,null,null,null,null,null,null,null,null,null,null,null,null,null,null,null,null,null,null,{"$f":"AT82+AT83+AT84+AT85+AT86","v":20.612181799443473},null,{"$f":"AV82+AV83+AV84+AV85+AV86","v":6.8707272664811576},{"$f":"AW82+AW83+AW84+AW85+AW86","v":0},null,{"$f":"AY82+AY83+AY84+AY85+AY86","v":6.8707272664811576},{"$f":"AZ82+AZ83+AZ84+AZ85+AZ86","v":20.612181799443473}]
[null,null,null,null,null,null,null,null,null,null,null,null,null,null,null,null,null,null,null,null,null,null,null,null,null,null,null,null,null,null,null,null,null,null,null,null,null,null,null,null,null,null,null,null,"d.s.e's",{"$f":"AT87*AE49","v":41.224363598886946}]
[null,null,"Animal Health"]
[null,null,"Drench",null,{"$f":"G222","v":3190},null,"sheep",null,"Reset Rate>","=GM_INFO!C21",{"$f":"GM_INFO!C21","v":0.6},null,"/head",null,null,null,{"$f":"K90*ROUND(E90,0)","v":1914}]
[null,null,"Vaccinate",null,{"$f":"I222","v":3320},null,"sheep",null,"Reset Rate>","=GM_INFO!C25",{"$f":"GM_INFO!C25","v":0.32800000000000001},null,"/head",null,null,null,1088.96]
[null,null,"Blowfly control",null,{"$f":"K222","v":1000},null,"sheep",null,"Reset Rate>","=GM_INFO!C27",{"$f":"GM_INFO!C27","v":1.44},null,"/head",null,null,null,1440]
[]
[]
[]
[]
[]
[]
[]
[]
[]
[]
[]
[null,null,"Stock purchases"]
[null,null,"Purchases",null,null,null,null,null,null,null,null,null,null,null,null,null,{"$f":"K214+K215","v":74015.699987095606}]
[]
[]
[]
[]
[]
[]
[]
[]
[]
[]
[]
[null,null,"Sale Costs"]
[null,null,"Freight "]
[null,null,"Livestock",null,{"$f":"SUM(E209:E210)","v":188.63609089106069},null,"culls",null,"Reset Rate>","=GM_INFO!B111",{"$f":"GM_INFO!B111","v":4},null,"/head",null,null,null,{"$f":"K119*ROUND(E119,0)","v":756}]
[null,null,null,null,{"$f":"E214","v":212.36536362457954},null,"ewes",null,"Reset Rate>","=GM_INFO!B112",{"$f":"GM_INFO!B112","v":4},null,"/head",null,null,null,{"$f":"K120*E120","v":849.46145449831818}]
[null,null,null,null,{"$f":"E211","v":1150},null,"prime lambs",null,"Reset Rate>","=GM_INFO!B113",{"$f":"GM_INFO!B113","v":4},null,"/head",null,null,null,4600]
[null,null,"Wool",null,{"$f":"G234/170","v":20.255882352941185},null,"bales   ",null,"Reset Rate>","=GM_INFO!B114",{"$f":"GM_INFO!B114","v":15},null,"/bale",null,null,null,300]
[null,null,"Stock selling charges"]
[null,null,"Commission/insurance",null,null,null,null,null,"Reset Rate>","=GM_INFO!C48",{"$f":"GM_INFO!C48","v":0.06},null,"gross $",null,null,null,{"$f":"K124*Q35","v":12724.199999999997}]
[null,null,"Yard fees",null,{"$f":"E212","v":1338.6360908910606},null,"head",null,"Reset Rate>","=GM_INFO!C49",{"$f":"GM_INFO!C49","v":0.85},null,"/head",null,null,null,{"$f":"K125*ROUND(E125,0)","v":1138.1499999999999}]
[null,null,"Levy-sheep",null,{"$f":"E119","v":188.63609089106069},null,"head",null,"Reset Rate>","=GM_INFO!C50",{"$f":"GM_INFO!C50","v":0.2},null,"/head",null,null,null,37.800000000000004]
[null,null,"Levy-lambs",null,{"$f":"E211","v":1150},null,"head",null,"Reset Rate>","=GM_INFO!C51",{"$f":"GM_INFO!C51","v":1.5},null,"/head",null,null,null,1725]
[null,null,"SA sheep industry levy",null,{"$f":"E212","v":1338.6360908910606},null,"head",null,"Reset Rate>","=GM_INFO!C52",{"$f":"GM_INFO!C52","v":0.55000000000000004},null,"/head",null,null,null,736.45]
[null,null,"Wool selling charges"]
[null,null,"Brokerage/testing/insurance",null,null,null,null,null,"Reset Rate>","=GM_INFO!C53",{"$f":"GM_INFO!C53","v":0.27},null,"/kg",null,null,null,{"$f":"K130*E34","v":929.74500000000046}]
[null,null,"Wool levy",null,null,null,null,null,"Reset Rate>","=GM_INFO!C54",{"$f":"GM_INFO!C54","v":1.4999999999999999E-2},null,"gross",null,null,null,{"$f":"K131*Q34","v":281.89170000000001}]
[]
[]
[]
[]
[]
[]
[]
[]
[]
[]
[]
[null,null,"Feed and Other Costs"]
[null,null,"Hay",null,null,null,null,null,null,null,null,null,null,null,null,null,{"$f":"SUM('Prime Lambs Input'!I62:I64)","v":5304}]
[null,null,"Grain",null,null,null,null,null,null,null,null,null,null,null,null,null,{"$f":"SUM('Prime Lambs Input'!I68:I70)","v":7872}]
[null,null,"Insurance    ",null,{"$f":"AC51","v":273237.5},null,"value",null,"Reset Rate>","=GM_INFO!B107",{"$f":"GM_INFO!B107","v":2},null,"/$'000",null,null,null,{"$f":"K146/1000*E146","v":546.47500000000002}]
[null,null,"Water",null,{"$f":"$Q$6","v":1840},null,"DSE's",null,"Reset Rate>","=GM_INFO!D79",{"$f":"GM_INFO!D79","v":1.5},null,"/DSE's",null,null,null,{"$f":"K147*E147","v":2760}]
[null,null,"Veh Fuel, R&M",null,1840,null,"DSE's",null,"Reset Rate>","=GM_INFO!D80",{"$f":"GM_INFO!D80","v":1.2},null,"/DSE's",null,null,null,2208]
[null,null,"Other",null,1840,null,"DSE's",null,"Reset Rate>","=GM_INFO!D81",{"$f":"GM_INFO!D81","v":0.5},null,"/DSE's",null,null,null,920]
[]
[]
[]
[]
[]
[]
[]
[]
[]
[]
[]
[]
[]
[]
[]
[]
[]
[]
[]
[]
[null,null,"TOTAL VARIABLE COSTS",null,null,null,null,null,null,null,null,null,null,null,null,null,{"$f":"SUM(Q48:Q166)","v":132723.54242167392}]
[]
[null,null,"GROSS MARGIN TOTAL ",null,null,null,null,null,null,null,null,null,null,null,null,null,{"$f":"Q37-Q170","v":98139.23757832605}]
[]
[null,null,"GROSS MARGIN/DSE",null,null,null,null,null,null,null,null,null,null,null,null,null,{"$f":"Q172/Q6","v":53.336542162133725}]
[]
[]
[]
[]
[]
[]
[]
[]
[]
[]
[]
[]
[]
[]
[]
[]
[]
[]
[]
[null,null,"PRODUCTION DATA"]
[]
[null,null,"Stocking rate (DSE/Ha)",null,6,null,null,null,null,null,"Culling Rate (% from each group)",null,null,null,null,null,null,null,null,null,null,null,null,null,null,null,"SHEEP GROSS MARGIN "]
[null,null,"Total DSE's",null,{"$f":"SUMPRODUCT(AB48:AB50,AE48:AE50)","v":1840},null,null,null,null,null,"Age Group",null,"Ewes",null,"Wethers",null,null,null,null,null,null,null,null,null,null,null,"PRIME LAMB - "]
[null,null,"SHEEP GRAZING AREA",null,{"$f":"E197/E196","v":306.66666666666669},null,null,null,null,null,"0.5",null,{"$f":"AF214","v":0}]
[null,null,"Number of ewes mated",null,{"$f":"'Prime Lambs Input'!E7","v":1000},null,null,null,null,null,"1.5",null,0]
[null,null,"Ram percentage",null,{"$f":"'Prime Lambs Input'!E11","v":0.02},null,null,null,null,null,"2.5",null,0]
[null,null,"Age ewes bought (yrs)",null,{"$f":"'Prime Lambs Input'!E8","v":1.5},null,null,null,null,null,"3.5",null,0]
[null,null,"Age ewes culled",null,{"$f":"'Prime Lambs Input'!E9","v":6.5},null,null,null,null,null,"4.5",null,0,null,null,null,null,null,null,null,null,null,null,null,null,null,"Ewes mated",null,{"$f":"'Prime Lambs Input'!E7","v":1000},null,null,"Ram %",{"$f":"E200","v":0.02}]
[null,"=VLOOKUP(r[0]c3&\"No Ops\",CHOOSE({1,2},tbl_ops[Name]&tbl_ops[Category],INDIRECT(\"tbl_ops[\"&var_crop&\"]\")),2,0)","Years rams kept",null,{"$f":"'Prime Lambs Input'!E12","v":3},null,null,null,null,null,"5.5",null,1,null,null,null,null,null,null,null,null,null,null,null,null,null,"Age ewes purchased",null,{"$f":"E201","v":1.5},null,null,"Price of rams",{"$f":"G215","v":1500}]
[null,"=VLOOKUP(r[0]c3&\"No Ops\",CHOOSE({1,2},tbl_ops[Name]&tbl_ops[Category],INDIRECT(\"tbl_ops[\"&var_crop&\"]\")),2,0)","Flock death rate  ",null,{"$f":"'Prime Lambs Input'!E13","v":0.03},null,null,null,null,null,"6.5",null,0,null,null,null,null,null,null,null,null,null,null,null,null,null,"Age ewes sold",null,{"$f":"E202","v":6.5},null,null,"Years rams kept",{"$f":"E203","v":3}]
[null,"=VLOOKUP(r[0]c3&\"No Ops\",CHOOSE({1,2},tbl_ops[Name]&tbl_ops[Category],INDIRECT(\"tbl_ops[\"&var_crop&\"]\")),2,0)","Average weaning rate ",null,{"$f":"AC205","v":1.1499999999999999},null,null,null,null,null,null,null,null,null,null,null,null,null,null,null,null,null,null,null,null,null,"Av Weaning %",null,{"$f":"'Prime Lambs Input'!E10","v":1.1499999999999999},null,null,"Age wethers sold",0.5]
[null,"=VLOOKUP(r[0]c3&\"No Ops\",CHOOSE({1,2},tbl_ops[Name]&tbl_ops[Category],INDIRECT(\"tbl_ops[\"&var_crop&\"]\")),2,0)","% Lambs carried over",null,0,null,null,null,null,null,null,null,null,null,null,null,null,null,null,null,null,null,null,null,null,null,"dse/ewe",null,{"$f":"AE48","v":1.8},null,null,"Flock death rate",{"$f":"E204","v":0.03}]
[null,"=VLOOKUP(r[0]c3&var_rain,CHOOSE({1,2},tbl_ops[Name]&tbl_ops[Rainfall],INDIRECT(\"tbl_ops[\"&var_crop&\"]\")),2,0)"]
[null,"=VLOOKUP(r[0]c3&var_rain,CHOOSE({1,2},tbl_ops[Name]&tbl_ops[Rainfall],INDIRECT(\"tbl_ops[\"&var_crop&\"]\")),2,0)","SALES",null,"Number",null,"Price/hd",null,"Age",null,"Total"]
[null,"=VLOOKUP(r[0]c3&var_rain,CHOOSE({1,2},tbl_ops[Name]&tbl_ops[Rainfall],INDIRECT(\"tbl_ops[\"&var_crop&\"]\")),2,0)","c.f.a ewes",null,{"$f":"AG220","v":182.36536362457954},null,{"$f":"'Prime Lambs Input'!E18","v":120},null,{"$f":"E202","v":6.5},null,{"$f":"ROUND(E209,0)*G209","v":21840}]
[null,"=VLOOKUP(r[0]c3&var_rain,CHOOSE({1,2},tbl_ops[Name]&tbl_ops[Rainfall],INDIRECT(\"tbl_ops[\"&var_crop&\"]\")),2,0)","c.f.a rams",null,{"$f":"AG238","v":6.270727266481158},null,{"$f":"'Prime Lambs Input'!E19","v":80},null,{"$f":"E203+1.5","v":4.5},null,480]
[null,null,"Lambs",null,{"$f":"AG227","v":1150},null,{"$f":"'Prime Lambs Input'!E20","v":165},null,"20 Weeks",null,189750,null,null,null,null,null,null,null,null,null,null,null,null,null,null,null,"EWES","OPENING","NATURAL","PURCHASES","DEATHS","% sold","SALES","CLOSING"]
[null,null,"TOTAL",null,{"$f":"SUM(E209:E211)","v":1338.6360908910606},null,{"$f":"K212/E212","v":158.42244314422749},null,null,null,{"$f":"SUM(K209:K211)","v":212070},null,null,null,null,null,null,null,null,null,null,null,null,null,null,null,"AGE","NUMBERS","INCREASE",null,null,"culled",null,"NUMBERS"]
[null,null,"PURCHASES",null,"Number",null,"Price/hd",null,"Age",null,"Total"]
[null,null,"Ewes",null,{"$f":"AD220","v":212.36536362457954},null,{"$f":"'Prime Lambs Input'!E29","v":300},null,{"$f":"E201","v":1.5},null,{"$f":"E214*G214","v":63709.609087373865},null,null,null,null,null,null,null,null,null,null,null,null,null,null,null,"0.5-1.5yr",null,null,{"$f":"IF(AC203=1.5,AB215,AB214-AE214)","v":212.36536362457954},null,null,{"$f":"AB214-AE214","v":0},{"$f":"AB214+AC214+AD214-AE214-AG214","v":212.36536362457954}]
[null,null,"Rams",null,{"$f":"AD238","v":6.8707272664811576},null,{"$f":"'Prime Lambs Input'!E30","v":1500},null,1.5,null,{"$f":"E215*G215","v":10306.090899721736},null,null,null,null,null,null,null,null,null,null,null,null,null,null,null,"1.5-2.5yr",{"$f":"IF(AC203=1.5,AC202/(1+(1-AG206)*(1-AF215)*(1+(1-AG206)*(1-AF216)*(1+(1-AG206)*(1-AF217)*(1+(1-AG206)*(1-AF218))))),0)","v":212.36536362457954},null,{"$f":"IF(AC203=2.5,AB216-AG215,0)","v":0},{"$f":"AB215*$AG$206","v":6.370960908737386},null,{"$f":"(AB215-AE215)*AF215","v":0},205.99440271584217]
[null,null,null,null,null,null,null,null,null,null,null,null,null,null,null,null,null,null,null,null,null,null,null,null,null,null,"2.5-3.5yr",{"$f":"IF(AC203=2.5,AC202/(1+(1-AG206)*(1-AF216)*(1+(1-AG206)*(1-AF217)*(1+(1-AG206)*(1-AF218)))),AH215)","v":205.99440271584217},null,{"$f":"IF(AC203=3.5,AB217-AG216,0)","v":0},6.179832081475265,null,{"$f":"(AB216-AE216)*AF216","v":0},199.8145706343669]
[null,null,null,null,"Number of Times",null,null,null,null,null,null,null,null,null,null,null,null,null,null,null,null,null,null,null,null,null,"3.5-4.5yr",{"$f":"IF(AC203=3.5,AC202/(1+(1-AG206)*(1-AF217)*(1+(1-AG206)*(1-AF218))),AH216)","v":199.8145706343669},null,{"$f":"IF(AC203=4.5,AB218-AG217,0)","v":0},5.9944371190310068,null,{"$f":"(AB217-AE217)*AF217","v":0},193.8201335153359]
[null,null,"STOCK HEALTH REQUIREMENTS",null,"Number",null,"Drench",null,"Vacc.",null,"Blowfly",null,"DSE",null,null,null,null,null,null,null,null,null,null,null,null,null,"4.5-5.5yr",{"$f":"IF(AC203=4.5,AC202/(1+(1-AG206)*(1-AF218)),AH217)","v":193.8201335153359},null,null,5.8146040054600769,{"$f":"IF(AC204=5.5,1,0)","v":0},{"$f":"(AB218-AE218)*AF218","v":0},188.00552950987583]
[null,null,"Ewes",null,{"$f":"'Prime Lambs Input'!E7","v":1000},null,{"$f":"'Prime Lambs Input'!F52","v":2},null,{"$f":"'Prime Lambs Input'!G52","v":1},null,{"$f":"'Prime Lambs Input'!H52","v":1},null,1.8,null,null,null,null,null,null,null,null,null,null,null,null,null,"5.5-6.5yr",{"$f":"AH218","v":188.00552950987583},null,null,5.6401658852962751,{"$f":"IF(AC204=6.5,1,0)","v":1},{"$f":"(AB219-AE219)*AF219","v":182.36536362457954},0]
[null,null,"Rams",null,{"$f":"AB49","v":20},null,{"$f":"'Prime Lambs Input'!F53","v":2},null,{"$f":"'Prime Lambs Input'!G53","v":1},null,{"$f":"'Prime Lambs Input'!H53","v":0},null,2,null,null,null,null,null,null,null,null,null,null,null,null,null,"Ewes",{"$f":"SUM(AB215:AB219)","v":1000.0000000000003},null,{"$f":"AD214+AD215+AD216+AD217","v":212.36536362457954},{"$f":"SUM(AE214:AE219)","v":30.000000000000007},null,{"$f":"SUM(AG215:AG219)","v":182.36536362457954},{"$f":"SUM(AH214:AH218)","v":1000.0000000000003}]
[null,null,"Lambs",null,{"$f":"AC227","v":1150},null,{"$f":"'Prime Lambs Input'!F54","v":1},null,{"$f":"'Prime Lambs Input'!G54","v":2},null,{"$f":"'Prime Lambs Input'!H54","v":0},null,null,null,null,null,null,null,null,null,null,null,null,null,null,null,"d.s.e's",{"$f":"AB214+AB220*AC206","v":1800.0000000000007}]
[null,null,"TOTAL",null,{"$f":"SUM(E219:E221)","v":2170},null,{"$f":"SUMPRODUCT($E$219:$E$221,G219:G221)","v":3190},null,{"$f":"SUMPRODUCT($E$219:$E$221,I219:I221)","v":3320},null,{"$f":"SUMPRODUCT($E$219:$E$221,K219:K221)","v":1000},null,{"$f":"SUMPRODUCT($E$219:$E$221,M219:M221)","v":1840}]
[]
[null,null,null,null,null,null,"Wool Cut kg/hd",null,null,null,null,null,null,null,null,null,null,null,null,null,null,null,null,null,null,null,"LAMBS","OPENING","NATURAL","PURCHASES","DEATHS","% sold","SALES","CLOSING"]
[null,null,"SHEARING",null,"Number",null,null,null,"Price",null,"Total",null,null,null,null,null,null,null,null,null,null,null,null,null,null,null,"AGE","NUMBERS","INCREASE",null,null,"culled",null,"NUMBERS"]
[null,null,"Ewes",null,{"$f":"AB220-AE220","v":970.00000000000034},null,{"$f":"'Prime Lambs Input'!F43","v":3.5},null,{"$f":"'Prime Lambs Input'!G43","v":5.4989999999999997},null,{"$f":"I226*G226*E226","v":18669.105000000003}]
[null,null,"Crossbred rams",null,{"$f":"AB238-AE238","v":19.400000000000002},null,{"$f":"'Prime Lambs Input'!F44","v":2.5},null,{"$f":"'Prime Lambs Input'!G44","v":2.5499999999999998},null,{"$f":"I227*G227*E227","v":123.67500000000001},null,null,null,null,null,null,null,null,null,null,null,null,null,null,null,"0-0.5yr",null,{"$f":"AC202*AC205","v":1150},null,null,1,{"$f":"AC227*AF227","v":1150},{"$f":"AB227+AC227+AD227-AE227-AG227","v":0}]
[]
[]
[null,null,null,null,null,null,null,null,null,null,null,null,null,null,null,null,null,null,null,null,null,null,null,null,null,null,"RAMS","OPENING","NATURAL","PURCHASES","DEATHS","% sold","SALES","CLOSING"]
[null,null,null,null,null,null,null,null,null,null,null,null,null,null,null,null,null,null,null,null,null,null,null,null,null,null,"AGE","NUMBERS","INCREASE",null,null,"culled",null,"NUMBERS"]
[]
[null,null,null,null,null,null,null,null,null,null,null,null,null,null,null,null,null,null,null,null,null,null,null,null,null,null,"0.5-1.5yr",null,null,{"$f":"AB234/(1-AF233)","v":6.8707272664811576},{"$f":"AB233*$AG$206","v":0},null,null,{"$f":"AB233+AC233+AD233-AE233-AG233","v":6.8707272664811576}]
[null,null,"TOTAL",null,{"$f":"SUM(E226:E233)","v":989.40000000000032},null,{"$f":"SUMPRODUCT(E226:E233,G226:G233)","v":3443.5000000000014},null,null,null,{"$f":"SUM(K226:K233)","v":18792.780000000002},null,null,null,null,null,null,null,null,null,null,null,null,null,null,null,"1.5-2.5yr",{"$f":"IF(AG204=3,(AC202*AG202)/(1+(1-AG206)*(1-AF234)*(1+(1-AG206)*(1-AF235)*(1+(1-AG206)*(1-AF236)))),IF(AG204=4,(AC202*AG202)/(1+(1-AG206)*(1-AF234)*(1+(1-AG206)*(1-AF235)*(1+(1-AG206)*(1-AF236)*(1+(1-AG206)*(1-AF237))))),0))","v":6.8707272664811576},null,null,0.20612181799443471,null,null,{"$f":"AB234+AC234+AD234-AE234-AG234","v":6.6646054484867232}]
[null,null,null,null,null,null,null,null,null,null,null,null,null,null,null,null,null,null,null,null,null,null,null,null,null,null,"2.5-3.5yr",{"$f":"AH234","v":6.6646054484867232},null,null,0.19993816345460169,null,null,{"$f":"AB235+AC235+AD235-AE235-AG235","v":6.4646672850321218}]
[null,null,null,null,null,null,null,null,null,null,null,null,null,null,null,null,null,null,null,null,null,null,null,null,null,null,"3.5-4.5yr",{"$f":"AH235","v":6.4646672850321218},null,null,0.19394001855096366,{"$f":"IF(AG204=3,100%,0)","v":1},{"$f":"(AB236-AE236)*AF236","v":6.270727266481158},{"$f":"AB236+AC236+AD236-AE236-AG236","v":0}]
[null,null,null,null,null,null,"Hay Cost ($/T)",null,"Kg Fed per Week",null,"No of Weeks Feeding",null,"Total Cost ($)",null,null,null,null,null,null,null,null,null,null,null,null,null,"4.5-5.5yr",{"$f":"AH236","v":0},null,null,0,{"$f":"IF(AG204=4,100%,0)","v":0},{"$f":"AB237-AE237","v":0},{"$f":"AB237+AC237+AD237-AE237-AG237","v":0}]
[null,null,"FEEDING",null,"Number",null,null,null,null,null,null,null,null,null,null,null,null,null,null,null,null,null,null,null,null,null,null,{"$f":"AB233+AB234+AB235+AB236+AB237","v":20.000000000000004},null,{"$f":"AD233+AD234+AD235+AD236+AD237","v":6.8707272664811576},{"$f":"AE233+AE234+AE235+AE236+AE237","v":0.60000000000000009},null,{"$f":"AG233+AG234+AG235+AG236+AG237","v":6.270727266481158},{"$f":"AH233+AH234+AH235+AH236+AH237","v":20.000000000000004}]
[null,null,"Ewes",null,{"$f":"'Prime Lambs Input'!E62","v":1000},null,{"$f":"'Prime Lambs Input'!F62","v":260},null,{"$f":"'Prime Lambs Input'!G62","v":2.5},null,{"$f":"'Prime Lambs Input'!H62","v":8},null,{"$f":"(E239*G239*I239*K239)/1000","v":5200},null,null,null,null,null,null,null,null,null,null,null,null,null,"d.s.e's",{"$f":"AB238*AE142","v":0}]
[null,null,"Rams",null,{"$f":"'Prime Lambs Input'!E63","v":20},null,{"$f":"'Prime Lambs Input'!F63","v":260},null,{"$f":"'Prime Lambs Input'!G63","v":2.5},null,{"$f":"'Prime Lambs Input'!H63","v":8},null,104]
[null,null,"Lambs",null,{"$f":"'Prime Lambs Input'!E64","v":1150},null,{"$f":"'Prime Lambs Input'!F64","v":260},null,{"$f":"'Prime Lambs Input'!G64","v":0},null,{"$f":"'Prime Lambs Input'!H64","v":0},null,0]
[null,null,null,null,null,null,"Grain Cost ($/T)",null,"Kg Fed per Week",null,"No of Weeks Feeding",null,"Total Cost ($)"]
[null,null,null,null,"Number"]
[null,null,"Ewes",null,{"$f":"'Prime Lambs Input'!E68","v":1000},null,{"$f":"'Prime Lambs Input'!F68","v":320},null,{"$f":"'Prime Lambs Input'!G68","v":3},null,{"$f":"'Prime Lambs Input'!H68","v":8},null,{"$f":"(E244*G244*I244*K244)/1000","v":7680}]
[null,null,"Rams",null,{"$f":"'Prime Lambs Input'!E69","v":20},null,{"$f":"'Prime Lambs Input'!F69","v":320},null,{"$f":"'Prime Lambs Input'!G69","v":3},null,{"$f":"'Prime Lambs Input'!H69","v":10},null,192]
[null,null,"Lambs",null,{"$f":"'Prime Lambs Input'!E70","v":1150},null,{"$f":"'Prime Lambs Input'!F70","v":0},null,{"$f":"'Prime Lambs Input'!G70","v":0},null,{"$f":"'Prime Lambs Input'!H70","v":0},null,0]
[null,null,"TOTAL FEED COST",null,null,null,null,null,null,null,null,null,{"$f":"SUM(M239:M241,M244:M246)","v":13176}]
[]
[]
[null,null,"GM SENSITIVITY"]
[null,null,"Gross Margin/DSE",null,"Average Weaning Rate"]
[null,null,null,null,null,null,0.95,null,1.05,null,1.1499999999999999,null,1.25,null,1.35,null,1.45]
[null,null,null,null,140,null,{"$f":"($E$199*G$252*$E253*(1-$K$124)+SUM($K$209:$K$210)+$K$234-$AK$57-$E$199*G$252*$AO$52)/$E$197","v":25.403271648315428},null,{"$f":"($E$199*I$252*$E253*(1-$K$124)+SUM($K$209:$K$210)+$K$234-$AK$57-$E$199*I$252*$AO$52)/$E$197","v":32.026315126576293},null,{"$f":"($E$199*K$252*$E253*(1-$K$124)+SUM($K$209:$K$210)+$K$234-$AK$57-$E$199*K$252*$AO$52)/$E$197","v":38.649358604837168},null,{"$f":"($E$199*M$252*$E253*(1-$K$124)+SUM($K$209:$K$210)+$K$234-$AK$57-$E$199*M$252*$AO$52)/$E$197","v":45.272402083098036},null,{"$f":"($E$199*O$252*$E253*(1-$K$124)+SUM($K$209:$K$210)+$K$234-$AK$57-$E$199*O$252*$AO$52)/$E$197","v":51.895445561358905},null,{"$f":"($E$199*Q$252*$E253*(1-$K$124)+SUM($K$209:$K$210)+$K$234-$AK$57-$E$199*Q$252*$AO$52)/$E$197","v":58.51848903961978}]
[null,null,null,null,145,null,27.829902083098037,null,34.708380343967598,null,41.586858604837168,null,48.465336865706732,null,55.343815126576295,null,62.222293387445866]
[null,null,"Average\nLamb Sale\nPrice($/hd)",null,150,null,30.256532517880647,null,37.390445561358902,null,44.524358604837168,null,51.658271648315427,null,58.792184691793686,null,65.926097735271952]
[null,null,null,null,155,null,32.683162952663253,null,40.072510778750207,null,47.461858604837168,null,54.851206430924123,null,62.240554257011077,null,69.629902083098045]
[null,null,null,null,160,null,35.109793387445862,null,42.754575996141511,null,50.399358604837168,null,58.044141213532818,null,65.688923822228475,null,73.333706430924124]
[null,null,null,null,165,null,37.536423822228471,null,45.436641213532816,null,53.336858604837168,null,61.237075996141513,null,69.137293387445865,null,77.037510778750217]
[null,null,null,null,170,null,39.96305425701108,null,48.118706430924121,null,56.274358604837168,null,64.430010778750216,null,72.585662952663256,null,80.74131512657631]
[null,null,null,null,175,null,42.38968469179369,null,50.800771648315425,null,59.211858604837168,null,67.622945561358904,null,76.034032517880661,null,84.445119474402389]
[null,null,null,null,180,null,44.816315126576299,null,53.48283686570673,null,62.149358604837168,null,70.815880343967606,null,79.482402083098052,null,88.148923822228483]
[null,null,null,null,185,null,47.242945561358908,null,56.164902083098035,null,65.086858604837175,null,74.008815126576295,null,82.930771648315442,null,91.852728170054561]
[null,null,null,null,190,null,49.669575996141518,null,58.846967300489339,null,68.024358604837175,null,77.201749909185011,null,86.379141213532833,null,95.556532517880655]

{"sheet":"Prime Lambs Merino Ewes Input","index":8,"n_rows":72,"n_cols":10,"rows_kept":72,"cut":false,"hidden":true,"merged":[[4,2,4,9],[36,2,37,4]]}
[null,null,"Prime Lambs  Merino Ewes"]
[null,null,{"$f":"UPPER(var_animal)&\" GROSS  MARGIN - \"&TEXT(m_year,\"0000\")","v":"PRIME LAMBS  MERINO EWES GROSS  MARGIN - 2019"}]
[]
[null,null,"GENERAL INFORMATION"]
[null,null,"This represents a Merino Ewe enterprise mated to a terminal sire. All ewe replacements are purchased, but age of replacements can be varied from 1.5 years to 4.5 years. NB. Can be bought from own self-replacing merino enterprise.  Following are the various assumptions used in the calculation of the Gross Margin. Cells with yellow highlight can be changed. No allowance has been made for pasture expenses such as seed, fertiliser and chemicals. Refer to pasture gross margins in the “Cropping Gross Margin Plan” for annual and perennial pasture costs. Use the livestock gross margin per DSE as income for the pasture gross margin."]
[]
[null,null,"Ewes mated",null,1000]
[null,null,"Age ewes purchased",null,1.5]
[null,null,"Age ewes sold",null,5.5]
[null,null,"Av Weaning %",null,0.95]
[null,null,"Ram percentage",null,2.5000000000000001E-2]
[null,null,"Years Rams Kept",null,3]
[null,null,"Flock death Rate",null,0.03]
[null,null,"% Lambs carried over",null,0]
[]
[]
[null,null,"LIVESTOCK SALES",null,"Price/Hd","Number","Total"]
[null,null,"c.f.a Ewes",null,115,{"$f":"'Prime Lambs Merino Ewes'!AG220","v":231.53548003398916},{"$f":"E18*ROUND(F18,0)","v":26680}]
[null,null,"c.f.a Rams",null,80,{"$f":"'Prime Lambs Merino Ewes'!AG238","v":7.838409083101447},{"$f":"E19*ROUND(F19,0)","v":640}]
[null,null,"Lambs",null,160,{"$f":"'Prime Lambs Merino Ewes'!AG227","v":950},{"$f":"E20*ROUND(F20,0)","v":152000}]
[]
[]
[]
[]
[null,null,"TOTAL SALES",null,null,{"$f":"SUM(F18:F23)","v":1189.3738891170906},{"$f":"SUM(G18:G23)","v":179320}]
[]
[]
[null,null,"LIVESTOCK PURCHASES",null,"Price/Hd","Number","Total"]
[null,null,"Ewes",null,240,{"$f":"'Prime Lambs Merino Ewes'!AD220","v":261.53548003398919},{"$f":"E29*F29","v":62768.515208157405},"Change Ewe price depending on"]
[null,null,"Rams",null,1500,{"$f":"'Prime Lambs Merino Ewes'!AD238","v":8.5884090831014461},{"$f":"E30*F30","v":12882.613624652169},"age purchased."]
[]
[null,null,"TOTAL PURCHASES",null,null,{"$f":"SUM(F29:F30)","v":270.12388911709064},{"$f":"SUM(G29:G30)","v":75651.128832809569}]
[]
[]
[null,null,"WOOL PRICE (cents/kg)",null,null,{"$f":"TEXT(m_year-3,\"0000\")&\" Average (Clean)\"","v":"2016 Average (Clean)"},{"$f":"TEXT(m_year-2,\"0000\")&\" Average (Clean)\"","v":"2017 Average (Clean)"},{"$f":"TEXT(m_year-1,\"0000\")&\" Average (Clean)\"","v":"2018 Average (Clean)"},"Budget Base (Clean)","Budget Base (Greasy)"]
[null,null,null,null,"Wool- High Rainfall 21 mic 68% yield",1278,1533,2085,2020,1374]
[]
[]
[]
[]
[null,null,"WOOL SALES - SHEARING",null,null,"Wool Cut"]
[null,null,null,null,"Number","kg/hd","Price","Total"]
[null,null,"Ewes",null,{"$f":"'Prime Lambs Merino Ewes'!E226","v":970},6.5,{"$f":"J36/100","v":13.74},{"$f":"E43*F43*G43","v":86630.7}]
[null,null,"Crossbred Rams",null,{"$f":"'Prime Lambs Merino Ewes'!E227","v":24.25},3,{"$f":"GM_INFO!F98/100","v":2.83},{"$f":"E44*F44*G44","v":205.88249999999999}]
[]
[null,null,"TOTAL",null,{"$f":"SUM(E43:E45)","v":994.25},{"$f":"(E43*F43)+(E44*F44)","v":6377.75},null,{"$f":"SUM(H43:H45)","v":86836.582500000004}]
[]
[]
[null,null,"STOCK HEALTH REQUIREMENTS"]
[null,null,null,null,null,null,"      Number of times"]
[null,null,null,null,"Number","Drench","Vacc.","Blowfly"]
[null,null,"Ewes",null,{"$f":"'Prime Lambs Merino Ewes'!E219","v":1000},1,1,1]
[null,null,"Rams",null,{"$f":"'Prime Lambs Merino Ewes'!E220","v":25},2,1,0]
[null,null,"Lambs",null,{"$f":"'Prime Lambs Merino Ewes'!E221","v":950},1,2,0]
[]
[null,null,"TOTAL",null,{"$f":"SUM(E52:E54)","v":1975},{"$f":"SUMPRODUCT($E$52:$E$54,F52:F54)","v":2000},{"$f":"SUMPRODUCT($E$52:$E$54,G52:G54)","v":2925},1000]
[]
[]
[null,null,"FEEDING"]
[null,null,"HAY",null,null,"Hay","Kgs Fed","No Weeks","Total"]
[null,null,null,null,"Number","Cost ($/T)","per Week","of Feeding","Cost ($)"]
[null,null,"Ewes",null,{"$f":"'Prime Lambs Merino Ewes'!E219","v":1000},260,2.5,8,{"$f":"(H62*G62*E62)/1000*F62","v":5200}]
[null,null,"Rams",null,{"$f":"'Prime Lambs Merino Ewes'!E220","v":25},260,2.5,8,130]
[null,null,"Lambs",null,{"$f":"'Prime Lambs Merino Ewes'!E221","v":950},260,null,null,0]
[]
[null,null,"GRAIN",null,null,"Grain","Kgs Fed","No weeks","Total"]
[null,null,null,null,"Number","Cost ($/T)","per week","of Feeding","Cost ($)"]
[null,null,"Ewes",null,{"$f":"'Prime Lambs Merino Ewes'!E219","v":1000},320,3,8,{"$f":"(H68*G68*E68)/1000*F68","v":7680}]
[null,null,"Rams",null,{"$f":"'Prime Lambs Merino Ewes'!E220","v":25},320,3,10,240]
[null,null,"Lambs",null,{"$f":"'Prime Lambs Merino Ewes'!E221","v":950},null,null,null,0]
[]
[null,null,null,null,null,null,null,"Total Feed Cost",{"$f":"SUM(I62:I64,I68:I70)","v":13250}]

{"sheet":"Prime Lambs Merino Ewes","index":9,"n_rows":263,"n_cols":52,"rows_kept":263,"cut":false,"hidden":true,"merged":[[254,2,258,2],[195,10,195,14],[216,4,216,10],[223,6,224,6],[236,6,237,6],[236,8,237,8],[236,10,237,10],[236,12,237,12],[241,6,242,6],[241,8,242,8],[241,10,242,10],[241,12,242,12],[250,4,250,16]]}
[null,null,"Prime Lambs Merino Ewes"]
[null,null,{"$f":"UPPER(Var_Animal)&\"  GROSS  MARGIN - \"&TEXT(m_year,\"0000\")","v":"PRIME LAMBS MERINO EWES  GROSS  MARGIN - 2019"}]
[]
[null,null,"ASSUMPTIONS"]
[]
[null,null,"Ave Breeding Ewe Fibre Diameter",null,21,null,null,null,null,null,null,null,null,null,"Total DSE's",null,{"$f":"E197","v":1850}]
[null,null,"No. of breeding ewes (1st Cross)",null,{"$f":"'Prime Lambs Merino Ewes Input'!$E$7","v":1000}]
[null,null,"1st cross ewe - Terminal meat sire"]
[]
[]
[]
[]
[]
[]
[]
[]
[]
[]
[]
[]
[]
[]
[]
[]
[]
[]
[]
[]
[null,null,null,null,null,null,null,null,null,null,null,null,null,null,null,null,null,null,null,null,null," "]
[]
[]
[null,null,"INCOME",null,null,null,null,null,null,null,null,null,null,null,null,null,"$"]
[]
[null,null,"Wool (kg greasy)",null,{"$f":"G234","v":6377.75},null,"kg",null,"av price",null,{"$f":"K234*100/G234","v":1361.555133079848},null,"c/kg",null,null,null,{"$f":"K234","v":86836.582500000004}]
[null,null,"Sales",null,{"$f":"E212","v":1189.3738891170906},null,"animals",null,"av price",null,{"$f":"G212","v":150.76840145962413},null,"/head",null,null,null,{"$f":"E212*G212","v":179320}]
[]
[null,null,"Gross Income",null,null,null,null,null,null,null,null,null,null,null,null,null,{"$f":"SUM(Q34:Q35)","v":266156.58250000002}]
[]
[]
[]
[]
[]
[]
[]
[null,null,null,null,null,null,null,null,null,null,null,null,null,null,null,null,null,null,null,null,null,null,null,null,null,null,"STOCK VALUE AND D.S.E REQUIREMENT",null,null,null,null,null,"Non lamb related expenses",null,null,null,null,null,"Lamb Costs ","No:","per head",null,null,null,"SHEEP GROSS MARGIN "]
[null,null,"VARIABLE COSTS",null,null,null,null,null,null,null,null,null,null,null,null,null,null,null,null,null,null,null,null,null,null,null,null,null,"Value","Ave Live","DSE",null,null,null,null,null,null,null,null,null,null,null,null,null,"PRIME LAMB - "]
[null,null,"Shearing",null,null,null,null,null,null,null,"Rate",null,null,null,null,null,null,null,null,null,null,null,null,null,null,null,null,"Number","$/head","Wt (Kgs)","rating",null,"Shearing",null,null,{"$f":"SUM(Q48:Q58)","v":8996.9729676800016},null,null,"Marking",{"$f":"$E$121","v":950},{"$f":"K76+K77","v":1.5799999999999998},{"$f":"AN47*AO47","v":1500.9999999999998}]
[null,null,"Shearing",null,{"$f":"E226","v":970},null,"sheep   ",null,"Reset Rate>","=GM_INFO!C30",{"$f":"GM_INFO!C30","v":310.77},null,"/100",null,null,null,{"$f":"K48/100*ROUND(E48,0)","v":3014.4690000000001},null,null,null,null,null,null,null,null,null,"ewes  ",{"$f":"'Prime Lambs Merino Ewes Input'!$E$7","v":1000},{"$f":"(G209+G214)/2","v":177.5},55,{"$f":"IF(AND(AD48>=55,AD48<60),1.8,IF(AND(AD48>=60,AD48<65),2.5,IF(AND(AD48>=65,AD48<70),1.9,IF(AND(AD48>=70,AD48<75),2,IF(AND(AD48>=75,AD48<80),2.1,IF(AND(AD48>=80,AD48<85),2.2,IF(AND(AD48>=85,AD48<90),2.3,IF(AD48>=90,2.4,0))))))))","v":1.8},null,"Animal health",null,null,{"$f":"(E219*G219+E220*G220)*K90+(E219*I219+E220*I220)*K91+(E219*K219)*K92","v":2340.6},null,null,"Animal health",950,{"$f":"G220*K91+I220*K90","v":1.1280000000000001},{"$f":"AN48*AO48","v":1071.6000000000001}]
[null,null,"(Federal awards)",null,{"$f":"E227","v":24.25},null,"rams    ",null,"Reset Rate>","=GM_INFO!C31",{"$f":"GM_INFO!C31","v":621.54},null,"/100",null,null,null,149.1696,null,null,null,null,null,null,null,null,null,"rams",{"$f":"'Prime Lambs Merino Ewes Input'!E11*'Prime Lambs Merino Ewes'!AB48","v":25},{"$f":"(G210+G215)/2","v":790},100,2,null,"Stock Purchase",null,null,{"$f":"SUM(Q105:Q105)","v":75651.128832809569},null,null,"Freight",950,{"$f":"K121","v":4},{"$f":"AN49*AO49","v":3800}]
[null,null,"Shed labour",null,5,null,"days   ",null,"Reset Rate>","=GM_INFO!C32",{"$f":"GM_INFO!C32","v":234.8},null,"/day",null,null,null,{"$f":"K50*ROUND(E50,0)","v":1174},null,null,null,null,null,null,null,null,null,"lambs",{"$f":"AC227","v":950},{"$f":"G211/2","v":80},35,0,null,"Freight","sheep",null,{"$f":"SUM(Q119:Q120)","v":2002.1419201359568},null,null,"Yard Fees",950,{"$f":"K125","v":0.85},{"$f":"AN50*AO50","v":807.5}]
[null,null,"Woolclasser",null,2.5,null,"days   ",null,"Reset Rate>","=GM_INFO!C33",{"$f":"GM_INFO!C33","v":297.79000000000002},null,"/day",null,null,null,{"$f":"K51*E51","v":744.47500000000002},null,null,null,null,null,null,null,null,null,"TOTAL",{"$f":"SUM(AB48:AB50)","v":1975},{"$f":"AB48*AC48+AB49*AC49+AB50*AC50/2","v":235250},null,null,null,null,"Wool",null,{"$f":"Q122","v":570},null,null,"Levies",950,{"$f":"K127+K128","v":2.0499999999999998},{"$f":"AN51*AO51","v":1947.4999999999998},null,null,"Ewes mated",null,{"$f":"'Prime Lambs Merino Ewes Input'!$E$7","v":1000},null,null,"Ram %",{"$f":"E200","v":2.5000000000000001E-2}]
[null,null,"Superannuation (on ord wages only)",null,null,null,null,null,"Reset Rate>","=GM_INFO!C34",{"$f":"GM_INFO!C34","v":9.5000000000000001E-2},null," wages",null,null,null,{"$f":"(Q48+Q49+Q50+Q51)*K52","v":482.80079200000006},null,null,null,null,null,null,null,null,null,null,null,null,null,null,null,"Commission on livestock sales",null,null,{"$f":"(K209+K210)*K124","v":1639.2},null,null,null,null,{"$f":"SUM(AO47:AO51)","v":9.6080000000000005},null,{"$f":"AO52*AD50","v":336.28000000000003},null,"Age ewes purchased",null,{"$f":"E201","v":1.5},null,null,"Price of rams",{"$f":"AL68","v":0}]
[null,null,"W/Cover (incl. super + otime etc)",null,null,null,null,null,"Reset Rate>","=GM_INFO!C35",{"$f":"GM_INFO!C35","v":0.04},null," total ",null,null,null,{"$f":"(Q48+Q49+Q50+Q51+Q52)*K53","v":222.59657568000003},null,null,null,null,null,null,null,null,null,null,null,null,null,null,null,"Yard fees",null,null,{"$f":"E119*K125","v":203.467805749527},null,null,"Commission",{"$f":"$E$121","v":950},{"$f":"G212","v":150.76840145962413},{"$f":"K124","v":0.06},{"$f":"AD50*AO53*AP53","v":316.61364306521062},null,"Age ewes sold",null,{"$f":"E202","v":5.5},null,null,"Years rams kept",{"$f":"E203","v":3}]
[null,null,"Wool packs",null,{"$f":"E122","v":37.516176470588235},null,"packs   ",null,"Reset Rate>","=GM_INFO!C28",{"$f":"GM_INFO!C28","v":11.2},null,"/pack",null,null,null,{"$f":"K54*ROUND(E54,0)","v":425.59999999999997},null,null,null,null,null,null,null,null,null,null,null,null,null,null,null,"Levies",null,null,{"$f":"E126*(K126+K128)","v":179.53041683781797},null,null,null,null,null,null,null,null,"Av Weaning %",null,{"$f":"'Prime Lambs Merino Ewes Input'!E10","v":0.95},null,null,"Age wethers sold",0.5]
[null,null,"Shed sundries",null,{"$f":"E48+E49","v":994.25},null,"sheep   ",null,"Reset Rate>","=GM_INFO!C36",{"$f":"GM_INFO!C36","v":0.2},null,"/head",null,null,null,198.8,null,null,null,null,null,null,null,null,null,null,null,null,null,null,null,"Wool Selling Charges",null,null,{"$f":"Q130+Q131","v":3024.5412375000001},null,null,null,null,null,null,{"$f":"SUM(AQ43:AQ53)","v":652.89364306521065},null,"dse/ewe",null,{"$f":"AE48","v":1.8},null,null,"Flock death rate",{"$f":"E204","v":0.03}]
[null,null,"Lice control",null,{"$f":"E48+E49","v":994.25},null,"sheep   ",null,"Reset Rate>","=GM_INFO!C19",{"$f":"GM_INFO!C19","v":1.6768000000000001},null,"/head",null,null,null,1666.7392,null,null,null,null,null,null,null,null,null,null,null,null,null,null,null,"Feed & other costs",null,null,{"$f":"SUM(Q144:Q149)","v":21490.5}]
[null,null,"Crutch & Wig",null,{"$f":"E48+2*E49","v":1018.5},null,"ewes",null,"Reset Rate>","=GM_INFO!C38",{"$f":"GM_INFO!C38","v":90.12},null,"/100",null,null,null,{"$f":"K57/100*ROUND(E57,0)","v":918.32280000000003},null,null,null,null,null,null,null,null,null,null,null,null,null,null,null,null,null,null,null,{"$f":"SUM(AJ47:AJ56)","v":116098.08318071287}]
[null,null,null,null,0,null,"lambs",null,"Reset Rate>","=GM_INFO!C38",{"$f":"GM_INFO!C38","v":90.12},null,"/100",null,null,null,0]
[]
[null,null,null,null,null,null,null,null,null,null,null,null,null,null,null,null,null,null,null,null,null,null,null,null,null,null,null,null,null,null,null,null,null,null,null,null,null,null,null,null,null,null,null,null,"EWES","OPENING","NATURAL","PURCHASES","DEATHS","% sold","SALES","CLOSING"]
[null,null,null,null,null,null,null,null,null,null,null,null,null,null,null,null,null,null,null,null,null,null,null,null,null,null,null,null,null,null,null,null,null,null,null,null,null,null,null,null,null,null,null,null,"AGE","NUMBERS","INCREASE",null,null,"culled",null,"NUMBERS"]
[]
[null,null,null,null,null,null,null,null,null,null,null,null,null,null,null,null,null,null,null,null,null,null,null,null,null,null,null,null,null,null,null,null,null,null,null,null,null,null,null,null,null,null,null,null,"0.5-1.5yr",null,null,{"$f":"IF($N$78=1.5,AT64,AT63-AW63)","v":0},null,null,{"$f":"AT63-AW63","v":0},{"$f":"AT63+AU63+AV63-AW63-AY63","v":0}]
[null,null,null,null,null,null,null,null,null,null,null,null,null,null,null,null,null,null,null,null,null,null,null,null,null,null,null,null,null,null,null,null,null,null,null,null,null,null,null,null,null,null,null,null,"1.5-2.5yr",{"$f":"IF(AU52=1.5,AU51/(1+(1-AY55)*(1-AX64)*(1+(1-AY55)*(1-AX65)*(1+(1-AY55)*(1-AX66)*(1+(1-AY55)*(1-AX67))))),0)","v":261.53548003398919},null,{"$f":"IF(AU52=2.5,AT65-AY64,0)","v":0},{"$f":"AT64*$R$81","v":0},null,{"$f":"(AT64-AW64)*AX64","v":0},261.53548003398919]
[null,null,null,null,null,null,null,null,null,null,null,null,null,null,null,null,null,null,null,null,null,null,null,null,null,null,null,null,null,null,null,null,null,null,null,null,null,null,null,null,null,null,null,null,"2.5-3.5yr",{"$f":"IF(AU52=2.5,AU51/(1+(1-AY55)*(1-AX65)*(1+(1-AY55)*(1-AX66)*(1+(1-AY55)*(1-AX67)))),AZ64)","v":261.53548003398919},null,{"$f":"IF(AU52=3.5,AT66-AY65,0)","v":0},{"$f":"AT65*$R$81","v":0},null,{"$f":"(AT65-AW65)*AX65","v":0},261.53548003398919]
[null,null,null,null,null,null,null,null,null,null,null,null,null,null,null,null,null,null,null,null,null,null,null,null,null,null,null,null,null,null,null,null,null,null,null,null,null,null,null,null,null,null,null,null,"3.5-4.5yr",{"$f":"IF(AU52=3.5,AU51/(1+(1-AY55)*(1-AX66)*(1+(1-AY55)*(1-AX67))),AZ65)","v":261.53548003398919},null,{"$f":"IF(AU52=4.5,AT67-AY66,0)","v":0},{"$f":"AT66*$R$81","v":0},null,{"$f":"(AT66-AW66)*AX66","v":0},261.53548003398919]
[null,null,null,null,null,null,null,null,null,null,null,null,null,null,null,null,null,null,null,null,null,null,null,null,null,null,null,null,null,null,null,null,null,null,null,null,null,null,null,null,null,null,null,null,"4.5-5.5yr",{"$f":"IF(AU52=4.5,AU51/(1+(1-AY55)*(1-AX67)),AZ66)","v":261.53548003398919},null,null,{"$f":"AT67*$R$81","v":0},{"$f":"IF(AU53=5.5,1,0)","v":1},{"$f":"(AT67-AW67)*AX67","v":261.53548003398919},0]
[null,null,null,null,null,null,null,null,null,null,null,null,null,null,null,null,null,null,null,null,null,null,null,null,null,null,null,null,null,null,null,null,null,null,null,null,null,null,null,null,null,null,null,null,"5.5-6.5yr",{"$f":"AZ67","v":0},null,null,{"$f":"AT68*$R$81","v":0},{"$f":"IF(AU53=6.5,1,0)","v":0},{"$f":"(AT68-AW68)*AX68","v":0},0]
[null,null,null,null,null,null,null,null,null,null,null,null,null,null,null,null,null,null,null,null,null,null,null,null,null,null,null,null,null,null,null,null,null,null,null,null,null,null,null,null,null,null,null,null,"Ewes",{"$f":"SUM(AT64:AT68)","v":1046.1419201359568},null,{"$f":"AV63+AV64+AV65+AV66","v":0},{"$f":"SUM(AW63:AW68)","v":0},null,{"$f":"SUM(AY64:AY68)","v":261.53548003398919},{"$f":"SUM(AZ63:AZ67)","v":784.60644010196756}]
[null,null,null,null,null,null,null,null,null,null,null,null,null,null,null,null,null,null,null,null,null,null,null,null,null,null,null,null,null,null,null,null,null,null,null,null,null,null,null,null,null,null,null,null,"d.s.e's",{"$f":"AT63+AT69*AU55","v":1883.0554562447221}]
[]
[]
[null,null,null,null,null,null,null,null,null,null,null,null,null,null,null,null,null,null,null,null,null,null,null,null,null,null,null,null,null,null,null,null,null,null,null,null,null,null,null,null,null,null,null,null,"LAMBS","OPENING","NATURAL","PURCHASES","DEATHS","% sold","SALES","CLOSING"]
[null,null,null,null,null,null,null,null,null,null,null,null,null,null,null,null,null,null,null,null,null,null,null,null,null,null,null,null,null,null,null,null,null,null,null,null,null,null,null,null,null,null,null,null,"AGE","NUMBERS","INCREASE",null,null,"culled",null,"NUMBERS"]
[null,null,"Marking"]
[null,null,"Lamb marking",null,{"$f":"AC227","v":950},null,"lambs",null,"Reset Rate>","=GM_INFO!C42",{"$f":"GM_INFO!C42","v":1.1499999999999999},null,"/head",null,null,null,{"$f":"K76*ROUND(E76,0)","v":1092.5},null,null,null,null,null,null,null,null,null,null,null,null,null,null,null,null,null,null,null,null,null,null,null,null,null,null,null,"0-0.5yr",null,{"$f":"AU51*AU54","v":950},null,null,1,{"$f":"AU76*AX76","v":950},{"$f":"AT76+AU76+AV76-AW76-AY76","v":0}]
[null,null,"Ear tags",null,{"$f":"AC227","v":950},null,"lambs",null,"Reset Rate>","=GM_INFO!C43",{"$f":"GM_INFO!C43","v":0.43},null,"/head",null,null,null,408.5]
[]
[null,null,null,null,null,null,null,null,null,null,null,null,null,null,null,null,null,null,null,null,null,null,null,null,null,null,null,null,null,null,null,null,null,null,null,null,null,null,null,null,null,null,null,null,"RAMS","OPENING","NATURAL","PURCHASES","DEATHS","% sold","SALES","CLOSING"]
[null,null,null,null,null,null,null,null,null,null,null,null,null,null,null,null,null,null,null,null,null,null,null,null,null,null,null,null,null,null,null,null,null,null,null,null,null,null,null,null,null,null,null,null,"AGE","NUMBERS","INCREASE",null,null,"culled",null,"NUMBERS"]
[]
[null,null,null,null,null,null,null,null,null,null,null,null,null,null,null,null,null,null,null,null,null,null,null,null,null,null,null,null,null,null,null,null,null,null,null,null,null,null,null,null,null,null,null,null,"0.5-1.5yr",null,null,{"$f":"AT83/(1-AX82)","v":8.5884090831014461},{"$f":"AT82*$R$81","v":0},null,null,{"$f":"AT82+AU82+AV82-AW82-AY82","v":8.5884090831014461}]
[null,null,null,null,null,null,null,null,null,null,null,null,null,null,null,null,null,null,null,null,null,null,null,null,null,null,null,null,null,null,null,null,null,null,null,null,null,null,null,null,null,null,null,null,"1.5-2.5yr",{"$f":"IF(AY53=3,(AU51*AY51)/(1+(1-AY55)*(1-AX83)*(1+(1-AY55)*(1-AX84)*(1+(1-AY55)*(1-AX85)))),IF(AY53=4,(AU51*AY51)/(1+(1-AY55)*(1-AX83)*(1+(1-AY55)*(1-AX84)*(1+(1-AY55)*(1-AX85)*(1+(1-AY55)*(1-AX86))))),0))","v":8.5884090831014461},null,null,{"$f":"AT83*$R$81","v":0},null,null,{"$f":"AT83+AU83+AV83-AW83-AY83","v":8.5884090831014461}]
[null,null,null,null,null,null,null,null,null,null,null,null,null,null,null,null,null,null,null,null,null,null,null,null,null,null,null,null,null,null,null,null,null,null,null,null,null,null,null,null,null,null,null,null,"2.5-3.5yr",{"$f":"AZ83","v":8.5884090831014461},null,null,{"$f":"AT84*$R$81","v":0},null,null,{"$f":"AT84+AU84+AV84-AW84-AY84","v":8.5884090831014461}]
[null,null,null,null,null,null,null,null,null,null,null,null,null,null,null,null,null,null,null,null,null,null,null,null,null,null,null,null,null,null,null,null,null,null,null,null,null,null,null,null,null,null,null,null,"3.5-4.5yr",{"$f":"AZ84","v":8.5884090831014461},null,null,{"$f":"AT85*$R$81","v":0},{"$f":"IF(AY53=3,100%,0)","v":1},{"$f":"(AT85-AW85)*AX85","v":8.5884090831014461},{"$f":"AT85+AU85+AV85-AW85-AY85","v":0}]
[null,null,null,null,null,null,null,null,null,null,null,null,null,null,null,null,null,null,null,null,null,null,null,null,null,null,null,null,null,null,null,null,null,null,null,null,null,null,null,null,null,null,null,null,"4.5-5.5yr",{"$f":"AZ85","v":0},null,null,{"$f":"AT86*$R$81","v":0},{"$f":"IF(AY53=4,100%,0)","v":0},{"$f":"AT86-AW86","v":0},{"$f":"AT86+AU86+AV86-AW86-AY86","v":0}]
[null,null,null,null,null,null,null,null,null,null,null,null,null,null,null,null,null,null,null,null,null,null,null,null,null,null,null,null,null,null,null,null,null,null,null,null,null,null,null,null,null,null,null,null,null,{"$f":"AT82+AT83+AT84+AT85+AT86","v":25.765227249304338},null,{"$f":"AV82+AV83+AV84+AV85+AV86","v":8.5884090831014461},{"$f":"AW82+AW83+AW84+AW85+AW86","v":0},null,{"$f":"AY82+AY83+AY84+AY85+AY86","v":8.5884090831014461},{"$f":"AZ82+AZ83+AZ84+AZ85+AZ86","v":25.765227249304338}]
[null,null,null,null,null,null,null,null,null,null,null,null,null,null,null,null,null,null,null,null,null,null,null,null,null,null,null,null,null,null,null,null,null,null,null,null,null,null,null,null,null,null,null,null,"d.s.e's",{"$f":"AT87*AE49","v":51.530454498608677}]
[null,null,"Animal Health"]
[null,null,"Drench",null,{"$f":"G222","v":2000},null,"sheep",null,"Reset Rate>","=GM_INFO!C21",{"$f":"GM_INFO!C21","v":0.6},null,"/head",null,null,null,{"$f":"K90*ROUND(E90,0)","v":1200}]
[null,null,"Vaccinate",null,{"$f":"I222","v":2925},null,"sheep",null,"Reset Rate>","=GM_INFO!C25",{"$f":"GM_INFO!C23","v":0.26400000000000001},null,"/head",null,null,null,772.2]
[null,null,"Blowfly control",null,{"$f":"K222","v":1000},null,"sheep",null,"Reset Rate>","=GM_INFO!C27",{"$f":"GM_INFO!C27","v":1.44},null,"/head",null,null,null,1440]
[]
[]
[]
[]
[]
[]
[]
[]
[]
[]
[]
[null,null,"Stock purchases"]
[null,null,"Purchases",null,null,null,null,null,null,null,null,null,null,null,null,null,{"$f":"K214+K215","v":75651.128832809569}]
[]
[]
[]
[]
[]
[]
[]
[]
[]
[]
[]
[null,null,"Sale Costs"]
[null,null,"Freight "]
[null,null,"Livestock",null,{"$f":"SUM(E209:E210)","v":239.37388911709061},null,"culls",null,"Reset Rate>","=GM_INFO!B111",{"$f":"GM_INFO!B111","v":4},null,"/head",null,null,null,{"$f":"K119*ROUND(E119,0)","v":956}]
[null,null,null,null,{"$f":"E214","v":261.53548003398919},null,"ewes",null,"Reset Rate>","=GM_INFO!B112",{"$f":"GM_INFO!B112","v":4},null,"/head",null,null,null,{"$f":"K120*E120","v":1046.1419201359568}]
[null,null,null,null,{"$f":"E211","v":950},null,"prime lambs",null,"Reset Rate>","=GM_INFO!B113",{"$f":"GM_INFO!B113","v":4},null,"/head",null,null,null,3800]
[null,null,"Wool",null,{"$f":"G234/170","v":37.516176470588235},null,"bales   ",null,"Reset Rate>","=GM_INFO!B114",{"$f":"GM_INFO!B114","v":15},null,"/bale",null,null,null,570]
[null,null,"Stock selling charges"]
[null,null,"Commission/insurance",null,null,null,null,null,"Reset Rate>","=GM_INFO!C48",{"$f":"GM_INFO!C48","v":0.06},null,"gross $",null,null,null,{"$f":"K124*Q35","v":10759.199999999999}]
[null,null,"Yard fees",null,{"$f":"E212","v":1189.3738891170906},null,"head",null,"Reset Rate>","=GM_INFO!C49",{"$f":"GM_INFO!C49","v":0.85},null,"/head",null,null,null,{"$f":"K125*ROUND(E125,0)","v":1010.65}]
[null,null,"Levy-sheep",null,{"$f":"E119","v":239.37388911709061},null,"head",null,"Reset Rate>","=GM_INFO!C50",{"$f":"GM_INFO!C50","v":0.2},null,"/head",null,null,null,47.800000000000004]
[null,null,"Levy-lambs",null,{"$f":"E211","v":950},null,"head",null,"Reset Rate>","=GM_INFO!C51",{"$f":"GM_INFO!C51","v":1.5},null,"/head",null,null,null,1425]
[null,null,"SA sheep industry levy",null,{"$f":"E212","v":1189.3738891170906},null,"head",null,"Reset Rate>","=GM_INFO!C52",{"$f":"GM_INFO!C52","v":0.55000000000000004},null,"/head",null,null,null,653.95000000000005]
[null,null,"Wool selling charges"]
[null,null,"Brokerage/testing/insurance",null,null,null,null,null,"Reset Rate>","=GM_INFO!C53",{"$f":"GM_INFO!C53","v":0.27},null,"/kg",null,null,null,{"$f":"K130*E34","v":1721.9925000000001}]
[null,null,"Wool levy",null,null,null,null,null,"Reset Rate>","=GM_INFO!C54",{"$f":"GM_INFO!C54","v":1.4999999999999999E-2},null,"gross",null,null,null,{"$f":"K131*Q34","v":1302.5487375}]
[]
[]
[]
[]
[]
[]
[]
[]
[]
[]
[]
[null,null,"Feed and Other Costs"]
[null,null,"Hay",null,null,null,null,null,null,null,null,null,null,null,null,null,{"$f":"SUM('Prime Lambs Merino Ewes Input'!I62:I64)","v":5330}]
[null,null,"Grain",null,null,null,null,null,null,null,null,null,null,null,null,null,{"$f":"SUM('Prime Lambs Merino Ewes Input'!I68:I70)","v":7920}]
[null,null,"Insurance    ",null,{"$f":"AC51","v":235250},null,"value",null,"Reset Rate>","=GM_INFO!B107",{"$f":"GM_INFO!B107","v":2},null,"/$'000",null,null,null,{"$f":"K146/1000*E146","v":470.5}]
[null,null,"Water",null,{"$f":"$Q$6","v":1850},null,"DSE's",null,"Reset Rate>","=GM_INFO!D79",{"$f":"GM_INFO!E79","v":2.5},null,"/DSE's",null,null,null,{"$f":"K147*E147","v":4625}]
[null,null,"Veh Fuel, R&M",null,1850,null,"DSE's",null,"Reset Rate>","=GM_INFO!D80",{"$f":"GM_INFO!E80","v":1.2},null,"/DSE's",null,null,null,2220]
[null,null,"Other",null,1850,null,"DSE's",null,"Reset Rate>","=GM_INFO!D81",{"$f":"GM_INFO!E81","v":0.5},null,"/DSE's",null,null,null,925]
[]
[]
[]
[]
[]
[]
[]
[]
[]
[]
[]
[]
[]
[]
[]
[]
[]
[]
[]
[]
[null,null,"TOTAL VARIABLE COSTS",null,null,null,null,null,null,null,null,null,null,null,null,null,{"$f":"SUM(Q48:Q166)","v":134345.08495812549}]
[]
[null,null,"GROSS MARGIN TOTAL ",null,null,null,null,null,null,null,null,null,null,null,null,null,{"$f":"Q37-Q170","v":131811.49754187453}]
[]
[null,null,"GROSS MARGIN/DSE",null,null,null,null,null,null,null,null,null,null,null,null,null,{"$f":"Q172/Q6","v":71.249458130742994}]
[]
[]
[]
[]
[]
[]
[]
[]
[]
[]
[]
[]
[]
[]
[]
[]
[]
[]
[]
[null,null,"PRODUCTION DATA"]
[]
[null,null,"Stocking rate (DSE/Ha)",null,6,null,null,null,null,null,"Culling Rate (% from each group)",null,null,null,null,null,null,null,null,null,null,null,null,null,null,null,"SHEEP GROSS MARGIN "]
[null,null,"Total DSE's",null,{"$f":"SUMPRODUCT(AB48:AB50,AE48:AE50)","v":1850},null,null,null,null,null,"Age Group",null,"Ewes",null,"Wethers",null,null,null,null,null,null,null,null,null,null,null,"PRIME LAMB - "]
[null,null,"SHEEP GRAZING AREA",null,{"$f":"E197/E196","v":308.33333333333331},null,null,null,null,null,"0.5",null,{"$f":"AF214","v":0}]
[null,null,"Number of ewes mated",null,{"$f":"'Prime Lambs Merino Ewes Input'!E7","v":1000},null,null,null,null,null,"1.5",null,0]
[null,null,"Ram percentage",null,{"$f":"'Prime Lambs Merino Ewes Input'!E11","v":2.5000000000000001E-2},null,null,null,null,null,"2.5",null,0]
[null,null,"Age ewes bought (yrs)",null,{"$f":"'Prime Lambs Merino Ewes Input'!E8","v":1.5},null,null,null,null,null,"3.5",null,0]
[null,null,"Age ewes culled",null,{"$f":"'Prime Lambs Merino Ewes Input'!E9","v":5.5},null,null,null,null,null,"4.5",null,1,null,null,null,null,null,null,null,null,null,null,null,null,null,"Ewes mated",null,{"$f":"'Prime Lambs Merino Ewes Input'!E7","v":1000},null,null,"Ram %",{"$f":"E200","v":2.5000000000000001E-2}]
[null,"=VLOOKUP(r[0]c3&\"No Ops\",CHOOSE({1,2},tbl_ops[Name]&tbl_ops[Category],INDIRECT(\"tbl_ops[\"&var_crop&\"]\")),2,0)","Years rams kept",null,{"$f":"'Prime Lambs Merino Ewes Input'!E12","v":3},null,null,null,null,null,"5.5",null,0,null,null,null,null,null,null,null,null,null,null,null,null,null,"Age ewes purchased",null,{"$f":"E201","v":1.5},null,null,"Price of rams",{"$f":"G215","v":1500}]
[null,"=VLOOKUP(r[0]c3&\"No Ops\",CHOOSE({1,2},tbl_ops[Name]&tbl_ops[Category],INDIRECT(\"tbl_ops[\"&var_crop&\"]\")),2,0)","Flock death rate  ",null,{"$f":"'Prime Lambs Merino Ewes Input'!E13","v":0.03},null,null,null,null,null,"6.5",null,0,null,null,null,null,null,null,null,null,null,null,null,null,null,"Age ewes sold",null,{"$f":"E202","v":5.5},null,null,"Years rams kept",{"$f":"E203","v":3}]
[null,"=VLOOKUP(r[0]c3&\"No Ops\",CHOOSE({1,2},tbl_ops[Name]&tbl_ops[Category],INDIRECT(\"tbl_ops[\"&var_crop&\"]\")),2,0)","Average weaning rate ",null,{"$f":"AC205","v":0.95},null,null,null,null,null,null,null,null,null,null,null,null,null,null,null,null,null,null,null,null,null,"Av Weaning %",null,{"$f":"'Prime Lambs Merino Ewes Input'!E10","v":0.95},null,null,"Age wethers sold",0.5]
[null,"=VLOOKUP(r[0]c3&\"No Ops\",CHOOSE({1,2},tbl_ops[Name]&tbl_ops[Category],INDIRECT(\"tbl_ops[\"&var_crop&\"]\")),2,0)","% Lambs carried over",null,0,null,null,null,null,null,null,null,null,null,null,null,null,null,null,null,null,null,null,null,null,null,"dse/ewe",null,{"$f":"AE48","v":1.8},null,null,"Flock death rate",{"$f":"E204","v":0.03}]
[null,"=VLOOKUP(r[0]c3&var_rain,CHOOSE({1,2},tbl_ops[Name]&tbl_ops[Rainfall],INDIRECT(\"tbl_ops[\"&var_crop&\"]\")),2,0)"]
[null,"=VLOOKUP(r[0]c3&var_rain,CHOOSE({1,2},tbl_ops[Name]&tbl_ops[Rainfall],INDIRECT(\"tbl_ops[\"&var_crop&\"]\")),2,0)","SALES",null,"Number",null,"Price/hd",null,"Age",null,"Total"]
[null,"=VLOOKUP(r[0]c3&var_rain,CHOOSE({1,2},tbl_ops[Name]&tbl_ops[Rainfall],INDIRECT(\"tbl_ops[\"&var_crop&\"]\")),2,0)","c.f.a ewes",null,{"$f":"AG220","v":231.53548003398916},null,{"$f":"'Prime Lambs Merino Ewes Input'!E18","v":115},null,{"$f":"E202","v":5.5},null,{"$f":"ROUND(E209,0)*G209","v":26680}]
[null,"=VLOOKUP(r[0]c3&var_rain,CHOOSE({1,2},tbl_ops[Name]&tbl_ops[Rainfall],INDIRECT(\"tbl_ops[\"&var_crop&\"]\")),2,0)","c.f.a rams",null,{"$f":"AG238","v":7.838409083101447},null,{"$f":"'Prime Lambs Merino Ewes Input'!E19","v":80},null,{"$f":"E203+1.5","v":4.5},null,640]
[null,null,"Lambs",null,{"$f":"AG227","v":950},null,{"$f":"'Prime Lambs Merino Ewes Input'!E20","v":160},null,"20 Weeks",null,152000,null,null,null,null,null,null,null,null,null,null,null,null,null,null,null,"EWES","OPENING","NATURAL","PURCHASES","DEATHS","% sold","SALES","CLOSING"]
[null,null,"TOTAL",null,{"$f":"SUM(E209:E211)","v":1189.3738891170906},null,{"$f":"K212/E212","v":150.76840145962413},null,null,null,{"$f":"SUM(K209:K211)","v":179320},null,null,null,null,null,null,null,null,null,null,null,null,null,null,null,"AGE","NUMBERS","INCREASE",null,null,"culled",null,"NUMBERS"]
[null,null,"PURCHASES",null,"Number",null,"Price/hd",null,"Age",null,"Total"]
[null,null,"Ewes",null,{"$f":"AD220","v":261.53548003398919},null,{"$f":"'Prime Lambs Merino Ewes Input'!E29","v":240},null,{"$f":"E201","v":1.5},null,{"$f":"E214*G214","v":62768.515208157405},null,null,null,null,null,null,null,null,null,null,null,null,null,null,null,"0.5-1.5yr",null,null,{"$f":"IF(AC203=1.5,AB215,AB214-AE214)","v":261.53548003398919},null,null,{"$f":"AB214-AE214","v":0},{"$f":"AB214+AC214+AD214-AE214-AG214","v":261.53548003398919}]
[null,null,"Rams",null,{"$f":"AD238","v":8.5884090831014461},null,{"$f":"'Prime Lambs Merino Ewes Input'!E30","v":1500},null,1.5,null,{"$f":"E215*G215","v":12882.613624652169},null,null,null,null,null,null,null,null,null,null,null,null,null,null,null,"1.5-2.5yr",{"$f":"IF(AC203=1.5,AC202/(1+(1-AG206)*(1-AF215)*(1+(1-AG206)*(1-AF216)*(1+(1-AG206)*(1-AF217)*(1+(1-AG206)*(1-AF218))))),0)","v":261.53548003398919},null,{"$f":"IF(AC203=2.5,AB216-AG215,0)","v":0},{"$f":"AB215*$AG$206","v":7.8460644010196754},null,{"$f":"(AB215-AE215)*AF215","v":0},253.68941563296951]
[null,null,null,null,null,null,null,null,null,null,null,null,null,null,null,null,null,null,null,null,null,null,null,null,null,null,"2.5-3.5yr",{"$f":"IF(AC203=2.5,AC202/(1+(1-AG206)*(1-AF216)*(1+(1-AG206)*(1-AF217)*(1+(1-AG206)*(1-AF218)))),AH215)","v":253.68941563296951},null,{"$f":"IF(AC203=3.5,AB217-AG216,0)","v":0},7.6106824689890855,null,{"$f":"(AB216-AE216)*AF216","v":0},246.07873316398042]
[null,null,null,null,"Number of Times",null,null,null,null,null,null,null,null,null,null,null,null,null,null,null,null,null,null,null,null,null,"3.5-4.5yr",{"$f":"IF(AC203=3.5,AC202/(1+(1-AG206)*(1-AF217)*(1+(1-AG206)*(1-AF218))),AH216)","v":246.07873316398042},null,{"$f":"IF(AC203=4.5,AB218-AG217,0)","v":0},7.3823619949194121,null,{"$f":"(AB217-AE217)*AF217","v":0},238.696371169061]
[null,null,"STOCK HEALTH REQUIREMENTS",null,"Number",null,"Drench",null,"Vacc.",null,"Blowfly",null,"DSE",null,null,null,null,null,null,null,null,null,null,null,null,null,"4.5-5.5yr",{"$f":"IF(AC203=4.5,AC202/(1+(1-AG206)*(1-AF218)),AH217)","v":238.696371169061},null,null,7.1608911350718296,{"$f":"IF(AC204=5.5,1,0)","v":1},{"$f":"(AB218-AE218)*AF218","v":231.53548003398916},0]
[null,null,"Ewes",null,{"$f":"'Prime Lambs Merino Ewes Input'!E7","v":1000},null,{"$f":"'Prime Lambs Merino Ewes Input'!F52","v":1},null,{"$f":"'Prime Lambs Merino Ewes Input'!G52","v":1},null,{"$f":"'Prime Lambs Merino Ewes Input'!H52","v":1},null,1.8,null,null,null,null,null,null,null,null,null,null,null,null,null,"5.5-6.5yr",{"$f":"AH218","v":0},null,null,0,{"$f":"IF(AC204=6.5,1,0)","v":0},{"$f":"(AB219-AE219)*AF219","v":0},0]
[null,null,"Rams",null,{"$f":"AB49","v":25},null,{"$f":"'Prime Lambs Merino Ewes Input'!F53","v":2},null,{"$f":"'Prime Lambs Merino Ewes Input'!G53","v":1},null,{"$f":"'Prime Lambs Merino Ewes Input'!H53","v":0},null,2,null,null,null,null,null,null,null,null,null,null,null,null,null,"Ewes",{"$f":"SUM(AB215:AB219)","v":1000},null,{"$f":"AD214+AD215+AD216+AD217","v":261.53548003398919},{"$f":"SUM(AE214:AE219)","v":30},null,{"$f":"SUM(AG215:AG219)","v":231.53548003398916},{"$f":"SUM(AH214:AH218)","v":1000}]
[null,null,"Lambs",null,{"$f":"AC227","v":950},null,{"$f":"'Prime Lambs Merino Ewes Input'!F54","v":1},null,{"$f":"'Prime Lambs Merino Ewes Input'!G54","v":2},null,{"$f":"'Prime Lambs Merino Ewes Input'!H54","v":0},null,null,null,null,null,null,null,null,null,null,null,null,null,null,null,"d.s.e's",{"$f":"AB214+AB220*AC206","v":1800}]
[null,null,"TOTAL",null,{"$f":"SUM(E219:E221)","v":1975},null,{"$f":"SUMPRODUCT($E$219:$E$221,G219:G221)","v":2000},null,{"$f":"SUMPRODUCT($E$219:$E$221,I219:I221)","v":2925},null,{"$f":"SUMPRODUCT($E$219:$E$221,K219:K221)","v":1000},null,{"$f":"SUMPRODUCT($E$219:$E$221,M219:M221)","v":1850}]
[]
[null,null,null,null,null,null,"Wool Cut kg/hd",null,null,null,null,null,null,null,null,null,null,null,null,null,null,null,null,null,null,null,"LAMBS","OPENING","NATURAL","PURCHASES","DEATHS","% sold","SALES","CLOSING"]
[null,null,"SHEARING",null,"Number",null,null,null,"Price",null,"Total",null,null,null,null,null,null,null,null,null,null,null,null,null,null,null,"AGE","NUMBERS","INCREASE",null,null,"culled",null,"NUMBERS"]
[null,null,"Ewes",null,{"$f":"AB220-AE220","v":970},null,{"$f":"'Prime Lambs Merino Ewes Input'!F43","v":6.5},null,{"$f":"'Prime Lambs Merino Ewes Input'!G43","v":13.74},null,{"$f":"I226*G226*E226","v":86630.7}]
[null,null,"Crossbred rams",null,{"$f":"AB238-AE238","v":24.25},null,{"$f":"'Prime Lambs Merino Ewes Input'!F44","v":3},null,{"$f":"'Prime Lambs Merino Ewes Input'!G44","v":2.83},null,{"$f":"I227*G227*E227","v":205.88249999999999},null,null,null,null,null,null,null,null,null,null,null,null,null,null,null,"0-0.5yr",null,{"$f":"AC202*AC205","v":950},null,null,1,{"$f":"AC227*AF227","v":950},{"$f":"AB227+AC227+AD227-AE227-AG227","v":0}]
[]
[]
[null,null,null,null,null,null,null,null,null,null,null,null,null,null,null,null,null,null,null,null,null,null,null,null,null,null,"RAMS","OPENING","NATURAL","PURCHASES","DEATHS","% sold","SALES","CLOSING"]
[null,null,null,null,null,null,null,null,null,null,null,null,null,null,null,null,null,null,null,null,null,null,null,null,null,null,"AGE","NUMBERS","INCREASE",null,null,"culled",null,"NUMBERS"]
[]
[null,null,null,null,null,null,null,null,null,null,null,null,null,null,null,null,null,null,null,null,null,null,null,null,null,null,"0.5-1.5yr",null,null,{"$f":"AB234/(1-AF233)","v":8.5884090831014461},{"$f":"AB233*$AG$206","v":0},null,null,{"$f":"AB233+AC233+AD233-AE233-AG233","v":8.5884090831014461}]
[null,null,"TOTAL",null,{"$f":"SUM(E226:E233)","v":994.25},null,{"$f":"SUMPRODUCT(E226:E233,G226:G233)","v":6377.75},null,null,null,{"$f":"SUM(K226:K233)","v":86836.582500000004},null,null,null,null,null,null,null,null,null,null,null,null,null,null,null,"1.5-2.5yr",{"$f":"IF(AG204=3,(AC202*AG202)/(1+(1-AG206)*(1-AF234)*(1+(1-AG206)*(1-AF235)*(1+(1-AG206)*(1-AF236)))),IF(AG204=4,(AC202*AG202)/(1+(1-AG206)*(1-AF234)*(1+(1-AG206)*(1-AF235)*(1+(1-AG206)*(1-AF236)*(1+(1-AG206)*(1-AF237))))),0))","v":8.5884090831014461},null,null,0.2576522724930434,null,null,{"$f":"AB234+AC234+AD234-AE234-AG234","v":8.3307568106084027}]
[null,null,null,null,null,null,null,null,null,null,null,null,null,null,null,null,null,null,null,null,null,null,null,null,null,null,"2.5-3.5yr",{"$f":"AH234","v":8.3307568106084027},null,null,0.24992270431825206,null,null,{"$f":"AB235+AC235+AD235-AE235-AG235","v":8.0808341062901512}]
[null,null,null,null,null,null,null,null,null,null,null,null,null,null,null,null,null,null,null,null,null,null,null,null,null,null,"3.5-4.5yr",{"$f":"AH235","v":8.0808341062901512},null,null,0.24242502318870451,{"$f":"IF(AG204=3,100%,0)","v":1},{"$f":"(AB236-AE236)*AF236","v":7.838409083101447},{"$f":"AB236+AC236+AD236-AE236-AG236","v":0}]
[null,null,null,null,null,null,"Hay Cost ($/T)",null,"Kg Fed per Week",null,"No of Weeks Feeding",null,"Total Cost ($)",null,null,null,null,null,null,null,null,null,null,null,null,null,"4.5-5.5yr",{"$f":"AH236","v":0},null,null,0,{"$f":"IF(AG204=4,100%,0)","v":0},{"$f":"AB237-AE237","v":0},{"$f":"AB237+AC237+AD237-AE237-AG237","v":0}]
[null,null,"FEEDING",null,"Number",null,null,null,null,null,null,null,null,null,null,null,null,null,null,null,null,null,null,null,null,null,null,{"$f":"AB233+AB234+AB235+AB236+AB237","v":25},null,{"$f":"AD233+AD234+AD235+AD236+AD237","v":8.5884090831014461},{"$f":"AE233+AE234+AE235+AE236+AE237","v":0.75},null,{"$f":"AG233+AG234+AG235+AG236+AG237","v":7.838409083101447},{"$f":"AH233+AH234+AH235+AH236+AH237","v":25}]
[null,null,"Ewes",null,{"$f":"'Prime Lambs Merino Ewes Input'!E62","v":1000},null,{"$f":"'Prime Lambs Merino Ewes Input'!F62","v":260},null,{"$f":"'Prime Lambs Merino Ewes Input'!G62","v":2.5},null,{"$f":"'Prime Lambs Merino Ewes Input'!H62","v":8},null,{"$f":"(E239*G239*I239*K239)/1000","v":5200},null,null,null,null,null,null,null,null,null,null,null,null,null,"d.s.e's",{"$f":"AB238*AE142","v":0}]
[null,null,"Rams",null,{"$f":"'Prime Lambs Merino Ewes Input'!E63","v":25},null,{"$f":"'Prime Lambs Merino Ewes Input'!F63","v":260},null,{"$f":"'Prime Lambs Merino Ewes Input'!G63","v":2.5},null,{"$f":"'Prime Lambs Merino Ewes Input'!H63","v":8},null,130]
[null,null,"Lambs",null,{"$f":"'Prime Lambs Merino Ewes Input'!E64","v":950},null,{"$f":"'Prime Lambs Merino Ewes Input'!F64","v":260},null,{"$f":"'Prime Lambs Merino Ewes Input'!G64","v":0},null,{"$f":"'Prime Lambs Merino Ewes Input'!H64","v":0},null,0]
[null,null,null,null,null,null,"Grain Cost ($/T)",null,"Kg Fed per Week",null,"No of Weeks Feeding",null,"Total Cost ($)"]
[null,null,null,null,"Number"]
[null,null,"Ewes",null,{"$f":"'Prime Lambs Merino Ewes Input'!E68","v":1000},null,{"$f":"'Prime Lambs Merino Ewes Input'!F68","v":320},null,{"$f":"'Prime Lambs Merino Ewes Input'!G68","v":3},null,{"$f":"'Prime Lambs Merino Ewes Input'!H68","v":8},null,{"$f":"(E244*G244*I244*K244)/1000","v":7680}]
[null,null,"Rams",null,{"$f":"'Prime Lambs Merino Ewes Input'!E69","v":25},null,{"$f":"'Prime Lambs Merino Ewes Input'!F69","v":320},null,{"$f":"'Prime Lambs Merino Ewes Input'!G69","v":3},null,{"$f":"'Prime Lambs Merino Ewes Input'!H69","v":10},null,240]
[null,null,"Lambs",null,{"$f":"'Prime Lambs Merino Ewes Input'!E70","v":950},null,{"$f":"'Prime Lambs Merino Ewes Input'!F70","v":0},null,{"$f":"'Prime Lambs Merino Ewes Input'!G70","v":0},null,{"$f":"'Prime Lambs Merino Ewes Input'!H70","v":0},null,0]
[null,null,"TOTAL FEED COST",null,null,null,null,null,null,null,null,null,{"$f":"SUM(M239:M241,M244:M246)","v":13250}]
[]
[]
[null,null,"GM SENSITIVITY"]
[null,null,"Gross Margin/DSE",null,"Average Weaning Rate"]
[null,null,null,null,null,null,0.75,null,0.85,null,0.95,null,1.05,null,1.1499999999999999,null,1.25]
[null,null,null,null,135,null,{"$f":"($E$199*G$252*$E253*(1-$K$124)+SUM($K$209:$K$210)+$K$234-$AK$57-$E$199*G$252*$AO$52)/$E$197","v":46.50135098339846},null,{"$f":"($E$199*I$252*$E253*(1-$K$124)+SUM($K$209:$K$210)+$K$234-$AK$57-$E$199*I$252*$AO$52)/$E$197","v":52.841459091506565},null,{"$f":"($E$199*K$252*$E253*(1-$K$124)+SUM($K$209:$K$210)+$K$234-$AK$57-$E$199*K$252*$AO$52)/$E$197","v":59.181567199614669},null,{"$f":"($E$199*M$252*$E253*(1-$K$124)+SUM($K$209:$K$210)+$K$234-$AK$57-$E$199*M$252*$AO$52)/$E$197","v":65.521675307722774},null,{"$f":"($E$199*O$252*$E253*(1-$K$124)+SUM($K$209:$K$210)+$K$234-$AK$57-$E$199*O$252*$AO$52)/$E$197","v":71.861783415830871},null,{"$f":"($E$199*Q$252*$E253*(1-$K$124)+SUM($K$209:$K$210)+$K$234-$AK$57-$E$199*Q$252*$AO$52)/$E$197","v":78.201891523938997}]
[null,null,null,null,140,null,48.406756388803863,null,55.000918550966027,null,61.595080713128183,null,68.189242875290347,null,74.783405037452496,null,81.37756719961466]
[null,null,"Average\nLamb Sale\nPrice($/hd)",null,145,null,50.312161794209267,null,57.160378010425482,null,64.008594226641705,null,70.856810442857906,null,77.705026659074122,null,84.553242875290337]
[null,null,null,null,150,null,52.217567199614678,null,59.319837469884945,null,66.422107740155198,null,73.52437801042548,null,80.626648280695747,null,87.728918550966014]
[null,null,null,null,155,null,54.122972605020081,null,61.4792969293444,null,68.83562125366872,null,76.191945577993053,null,83.548269902317358,null,90.904594226641692]
[null,null,null,null,160,null,56.028378010425484,null,63.638756388803863,null,71.249134767182227,null,78.859513145560612,null,86.469891523938983,null,94.080269902317369]
[null,null,null,null,165,null,57.933783415830888,null,65.798215848263325,null,73.662648280695748,null,81.527080713128186,null,89.391513145560609,null,97.255945577993046]
[null,null,null,null,170,null,59.839188821236299,null,67.957675307722766,null,76.076161794209256,null,84.194648280695745,null,92.313134767182234,null,100.43162125366872]
[null,null,null,null,175,null,61.744594226641702,null,70.117134767182236,null,78.489675307722777,null,86.862215848263318,null,95.234756388803845,null,103.6072969293444]
[null,null,null,null,180,null,63.649999632047106,null,72.276594226641706,null,80.903188821236284,null,89.529783415830892,null,98.15637801042547,null,106.78297260502008]
[null,null,null,null,185,null,65.555405037452516,null,74.436053686101161,null,83.316702334749792,null,92.197350983398451,null,101.0779996320471,null,109.95864828069575]

{"sheet":"Lamb Trading Input","index":10,"n_rows":73,"n_cols":10,"rows_kept":73,"cut":false,"hidden":true,"merged":[[4,2,4,9],[36,2,37,4]]}
[]
[null,null,{"$f":"\"LAMB TRADING GROSS  MARGIN - \"&TEXT(m_year,\"0000\")","v":"LAMB TRADING GROSS  MARGIN - 2019"}]
[]
[null,null,"GENERAL INFORMATION"]
[null,null,"This represents a merino Lamb flock, producing 21 micron wool. Adjust wool price if different micron wool is produced. Following are the various assumptions used in the calculation of the Gross Margin. Cells with yellow highlight can be changed. No allowance has been made for pasture expenses such as seed, fertiliser and chemicals. Refer to pasture gross margins in the “Cropping Gross Margin Plan” for annual and perennial pasture costs. Use the livestock gross margin per DSE as income for the pasture gross margin."]
[]
[null,null,"No of Lambs",null,1000]
[]
[null,null,"Age Lambs sold",null,0.8]
[null,null,"Age Lambs bought",null,0.5]
[null,null,"Lambs bought at",null,35,"kg liveweight"]
[null,null,"Lambs sold at",null,55,"kg liveweight"]
[null,null,"Flock death Rate",null,0.02]
[null,null,"DSE rating/Lamb",null,0.8]
[]
[]
[null,null,"LIVESTOCK SALES",null,"Price/Hd","Number","Total"]
[null,null,"Lambs",null,null,{"$f":"ROUND('Lamb Trading'!AG220,0)","v":0},{"$f":"E18*F18","v":0}]
[]
[]
[]
[]
[]
[]
[null,null,"TOTAL SALES",null,null,{"$f":"SUM(F18:F23)","v":0},{"$f":"SUM(G18:G23)","v":0}]
[]
[]
[null,null,"LIVESTOCK PURCHASES",null,"Price/Hd","Number","Total"]
[null,null,"Lambs",null,130,{"$f":"ROUND('Lamb Trading'!AD220,0)","v":208},{"$f":"E29*F29","v":27040}]
[]
[]
[null,null,"TOTAL PURCHASES",null,null,{"$f":"SUM(F29:F30)","v":208},{"$f":"SUM(G29:G30)","v":27040}]
[]
[]
[null,null,"WOOL PRICE (cents/kg)",null,null,{"$f":"TEXT(m_year-3,\"0000\")&\" Average (Clean)\"","v":"2016 Average (Clean)"},{"$f":"TEXT(m_year-2,\"0000\")&\" Average (Clean)\"","v":"2017 Average (Clean)"},{"$f":"TEXT(m_year-1,\"0000\")&\" Average (Clean)\"","v":"2018 Average (Clean)"},"Budget Base (Clean)","Budget Base (Greasy)"]
[null,null,null,null,"Cereal Zone 21 mic 68% yield",1160,1274,1397,1400,952]
[null,null,"Allow 90% to account for lower value of bellies, skirtings etc.",null,null,null,null,null,null,{"$f":"J36*0.9","v":856.80000000000007}]
[]
[]
[]
[null,null,"WOOL SALES - SHEARING",null,null,"Wool Cut","Yield"]
[null,null,null,null,"Number","kg/hd","%"]
[null,null,"Lambs",null,{"$f":"'Lamb Trading'!E233","v":1000},1.5,0.7]
[]
[]
[]
[]
[]
[]
[]
[null,null,"TOTAL",null,{"$f":"SUM(E43:E50)","v":1000},{"$f":"SUMPRODUCT(E43:E49,F43:F49)","v":1500}]
[]
[]
[null,null,"STOCK HEALTH REQUIREMENTS"]
[null,null,null,null,null,null,"      Number of times"]
[null,null,null,null,"Number","Drench","Vacc.","Blowfly","DSE rating"]
[null,null,"Lambs",null,{"$f":"'Lamb Trading'!E220","v":1000},1,1,1,0.6]
[null,null,"TOTAL",null,{"$f":"SUM(E57:E57)","v":1000},{"$f":"SUMPRODUCT($E$57:$E$57,F57:F57)","v":1000},{"$f":"SUMPRODUCT($E$57:$E$57,G57:G57)","v":1000},{"$f":"SUMPRODUCT($E$57:$E$57,H57:H57)","v":1000},{"$f":"SUMPRODUCT($E$57:$E$57,I57:I57)","v":600}]
[]
[null,null,"Av Live Weight",null,45]
[null,null,"DSE Rating",null,0.8]
[]
[]
[]
[]
[null,null,"FEEDING"]
[null,null,null,null,"Supplementry","Feed Lot",null,null,"Supplementry","Feed Lot"]
[null,null,null,null,"kg fed","kg fed","/animal","$/tonne","Total","Total"]
[null,null,"Oats/barley",null,null,55,"kg/lamb",null,{"$f":"(H69*E69)/1000","v":0},{"$f":"(H69*F69)/1000","v":0}]
[null,null,"Hay",null,15,10,"kg/lamb",null,0,0]
[null,null,"Lupins",null,null,9,"kg/lamb",null,0,0]
[null,null,"Supplements",null,null,1,"kg/lamb",2000,0,2]
[null,null,"Total",null,null,null,null,null,{"$f":"SUM(I69:I72)","v":0},{"$f":"SUM(J69:J72)","v":2}]

{"sheet":"Lamb Trading","index":11,"n_rows":272,"n_cols":52,"rows_kept":272,"cut":false,"hidden":true,"merged":[[263,2,267,2],[217,4,217,10],[230,6,231,6],[275,4,275,16],[259,4,259,16]]}
[null,null,"LAMB TRADING"]
[null,null,{"$f":"UPPER(Var_Animal)&\"  GROSS  MARGIN - \"&TEXT(m_year,\"0000\")","v":"LAMB TRADING  GROSS  MARGIN - 2019"}]
[]
[null,null,"ASSUMPTIONS"]
[null,null,null,null,null,null,null,null,null,null,null,null,null,null,"Total DSE's",null,{"$f":"E197","v":600}]
[null,null,"Ave Lamb Fibre Diameter",null,20,null,null,null,null,null,null,null,null,null,"Number of Lambs shorn",null,1]
[null,null,"Number of Lambs",null,{"$f":"'Lamb Trading Input'!$E$7","v":1000},null,null,null,null,null,null,null,null,null,"Stocking Rate (DSE/Ha)",null,{"$f":"E196","v":12}]
[null,null,"Lambs bought at",null,{"$f":"'Lamb Trading Input'!E11","v":35},null,"kg liveweight",null,null,null,370,null,"c/kg dwt"]
[null,null,"Lambs sold at",null,{"$f":"'Lamb Trading Input'!E12","v":55},null,"kg liveweight",null,null,"@",730,null,"c/kg dwt"]
[]
[]
[]
[]
[]
[]
[]
[]
[]
[]
[]
[]
[]
[]
[]
[]
[]
[]
[]
[null,null,null,null,null,null,null,null,null,null,null,null,null,null,null,null,null,null,null,null,null," "]
[]
[]
[null,null,"INCOME",null,null,null,null,null,null,null,null,null,null,null,null,null,"$"]
[]
[null,null,"Wool (kg greasy)",null,{"$f":"I234","v":1500},null,"kg",null,"av price",null,{"$f":"GM_INFO!F95*0.9","v":1375.2},null,"c/kg",null,null,null,{"$f":"E34*K34/100","v":20628}]
[null,null,"Sales",null,{"$f":"E211","v":980},null,"animals",null,"av price",null,{"$f":"G210","v":172.64500000000001},null,"/head",null,null,null,{"$f":"K35*E35","v":169192.1}]
[]
[null,null,"Gross Income",null,null,null,null,null,null,null,null,null,null,null,null,null,{"$f":"SUM(Q34:Q35)","v":189820.1}]
[]
[]
[]
[]
[]
[]
[]
[null,null,null,null,null,null,null,null,null,null,null,null,null,null,null,null,null,null,null,null,null,null,null,null,null,null,"STOCK VALUE AND D.S.E REQUIREMENT"]
[null,null,"VARIABLE COSTS"]
[null,null,"Shearing",null,null,null,null,null,null,null,"Rate"]
[null,null,"Shearing",null,{"$f":"E234*Q6","v":1000},null,"sheep   ",null,"Reset Rate>","=GM_INFO!C30",{"$f":"GM_INFO!C30","v":310.77},null,"/100",null,null,null,{"$f":"K48/100*ROUND(E48,0)","v":3107.7}]
[]
[null,null,"Shed labour",null,2,null,"days   ",null,"Reset Rate>","=GM_INFO!C32",{"$f":"GM_INFO!C32","v":234.8},null,"/day",null,null,null,{"$f":"K50*ROUND(E50,0)","v":469.6}]
[null,null,"Woolclasser",null,1,null,"days   ",null,"Reset Rate>","=GM_INFO!C33",{"$f":"GM_INFO!C33","v":297.79000000000002},null,"/day",null,null,null,{"$f":"K51*E51","v":297.79000000000002}]
[null,null,"Superannuation (on ord wages only)",null,null,null,null,null,"Reset Rate>","=GM_INFO!C34",{"$f":"GM_INFO!C34","v":9.5000000000000001E-2},null," wages",null,null,null,{"$f":"(Q48+Q50+Q51)*K52","v":368.13354999999996}]
[null,null,"W/Cover (incl. super + otime etc)",null,null,null,null,null,"Reset Rate>","=GM_INFO!C35",{"$f":"GM_INFO!C35","v":0.04},null," total ",null,null,null,{"$f":"(Q48+Q49+Q50+Q51+Q52)*K53","v":169.72894199999999}]
[null,null,"Wool packs",null,{"$f":"E122","v":8.8235294117647065},null,"packs   ",null,"Reset Rate>","=GM_INFO!C28",{"$f":"GM_INFO!C28","v":11.2},null,"/pack",null,null,null,{"$f":"K54*ROUND(E54,0)","v":100.8}]
[null,null,"Shed sundries",null,{"$f":"E48","v":1000},null,"sheep   ",null,"Reset Rate>","=GM_INFO!C36",{"$f":"GM_INFO!C36","v":0.2},null,"/head",null,null,null,200]
[null,null,"Lice control",null,{"$f":"E48","v":1000},null,"sheep   ",null,"Reset Rate>","=GM_INFO!C19",{"$f":"GM_INFO!C19","v":1.6768000000000001},null,"/head",null,null,null,1676.8000000000002]
[null,null,"Crutching",null,{"$f":"E7-E48","v":0},null,"sheep   ",null,"Reset Rate>","=GM_INFO!C38",{"$f":"GM_INFO!C38","v":90.12},null,"/100",null,null,null,{"$f":"K57/100*ROUND(E57,0)","v":0}]
[]
[]
[]
[]
[]
[]
[]
[]
[]
[]
[]
[]
[]
[]
[]
[]
[]
[]
[]
[]
[]
[null,null,null,null,null,null,null,null,null,null,null,null,null,null,null,null,null,null,null,null,null,null,null,null,null,null,null,null,null,null,null,null,null,null,null,null,null,null,null,null,null,null,null,null,"RAMS","OPENING","NATURAL","PURCHASES","DEATHS","% sold","SALES","CLOSING"]
[null,null,null,null,null,null,null,null,null,null,null,null,null,null,null,null,null,null,null,null,null,null,null,null,null,null,null,null,null,null,null,null,null,null,null,null,null,null,null,null,null,null,null,null,"AGE","NUMBERS","INCREASE",null,null,"culled",null,"NUMBERS"]
[]
[null,null,null,null,null,null,null,null,null,null,null,null,null,null,null,null,null,null,null,null,null,null,null,null,null,null,null,null,null,null,null,null,null,null,null,null,null,null,null,null,null,null,null,null,"0.5-1.5yr",null,null,{"$f":"AT83/(1-AX82)","v":0},{"$f":"AT82*$R$81","v":0},null,null,{"$f":"AT82+AU82+AV82-AW82-AY82","v":0}]
[null,null,null,null,null,null,null,null,null,null,null,null,null,null,null,null,null,null,null,null,null,null,null,null,null,null,null,null,null,null,null,null,null,null,null,null,null,null,null,null,null,null,null,null,"1.5-2.5yr",{"$f":"IF(AY53=3,(AU51*AY51)/(1+(1-AY55)*(1-AX83)*(1+(1-AY55)*(1-AX84)*(1+(1-AY55)*(1-AX85)))),IF(AY53=4,(AU51*AY51)/(1+(1-AY55)*(1-AX83)*(1+(1-AY55)*(1-AX84)*(1+(1-AY55)*(1-AX85)*(1+(1-AY55)*(1-AX86))))),0))","v":0},null,null,{"$f":"AT83*$R$81","v":0},null,null,{"$f":"AT83+AU83+AV83-AW83-AY83","v":0}]
[null,null,null,null,null,null,null,null,null,null,null,null,null,null,null,null,null,null,null,null,null,null,null,null,null,null,null,null,null,null,null,null,null,null,null,null,null,null,null,null,null,null,null,null,"2.5-3.5yr",{"$f":"AZ83","v":0},null,null,{"$f":"AT84*$R$81","v":0},null,null,{"$f":"AT84+AU84+AV84-AW84-AY84","v":0}]
[null,null,null,null,null,null,null,null,null,null,null,null,null,null,null,null,null,null,null,null,null,null,null,null,null,null,null,null,null,null,null,null,null,null,null,null,null,null,null,null,null,null,null,null,"3.5-4.5yr",{"$f":"AZ84","v":0},null,null,{"$f":"AT85*$R$81","v":0},{"$f":"IF(AY53=3,100%,0)","v":0},{"$f":"(AT85-AW85)*AX85","v":0},{"$f":"AT85+AU85+AV85-AW85-AY85","v":0}]
[null,null,null,null,null,null,null,null,null,null,null,null,null,null,null,null,null,null,null,null,null,null,null,null,null,null,null,null,null,null,null,null,null,null,null,null,null,null,null,null,null,null,null,null,"4.5-5.5yr",{"$f":"AZ85","v":0},null,null,{"$f":"AT86*$R$81","v":0},{"$f":"IF(AY53=4,100%,0)","v":0},{"$f":"AT86-AW86","v":0},{"$f":"AT86+AU86+AV86-AW86-AY86","v":0}]
[null,null,null,null,null,null,null,null,null,null,null,null,null,null,null,null,null,null,null,null,null,null,null,null,null,null,null,null,null,null,null,null,null,null,null,null,null,null,null,null,null,null,null,null,null,{"$f":"AT82+AT83+AT84+AT85+AT86","v":0},null,{"$f":"AV82+AV83+AV84+AV85+AV86","v":0},{"$f":"AW82+AW83+AW84+AW85+AW86","v":0},null,{"$f":"AY82+AY83+AY84+AY85+AY86","v":0},{"$f":"AZ82+AZ83+AZ84+AZ85+AZ86","v":0}]
[null,null,null,null,null,null,null,null,null,null,null,null,null,null,null,null,null,null,null,null,null,null,null,null,null,null,null,null,null,null,null,null,null,null,null,null,null,null,null,null,null,null,null,null,"d.s.e's",{"$f":"AT87*AE49","v":0}]
[null,null,"Animal Health"]
[null,null,"Drench",null,{"$f":"G228","v":1000},null,"sheep",null,"Reset Rate>","=GM_INFO!C21",{"$f":"GM_INFO!C21","v":0.6},null,"/head",null,null,null,{"$f":"K90*ROUND(E90,0)","v":600}]
[null,null,"Vaccinate",null,{"$f":"I228","v":1000},null,"sheep",null,"Reset Rate>","=GM_INFO!C25",{"$f":"GM_INFO!C25","v":0.32800000000000001},null,"/head",null,null,null,328]
[null,null,"Blowfly control",null,{"$f":"K228*0.5","v":500},null,"sheep",null,"Reset Rate>","=GM_INFO!C27",{"$f":"GM_INFO!C27","v":1.44},null,"/head",null,null,null,720]
[null,null,"Other expenses",null,null,null,"sheep",null,"Reset Rate>",null,null,null,"/head",null,null,null,0]
[]
[]
[]
[]
[]
[]
[]
[]
[]
[]
[null,null,"Stock purchases"]
[null,null,"Purchases",null,{"$f":"ROUND(E213,0)","v":1000},null,"Lambs",null,"Reset Rate>","='LambS INPUT'!E29",{"$f":"'Lamb Trading Input'!E29","v":130},null,"/head",null,null,null,{"$f":"K105*E105","v":130000}]
[]
[]
[]
[]
[]
[]
[]
[]
[]
[]
[]
[null,null,"Sale Costs"]
[null,null,"Freight "]
[null,null,"Livestock",null,{"$f":"E211+E213","v":1980},null,"sheep",null,"Reset Rate>","=GM_INFO!B111",{"$f":"GM_INFO!B111","v":4},null,"/head",null,null,null,{"$f":"K119*ROUND(E119,0)","v":7920}]
[null,null,null,null,null,null,null,null,"Reset Rate>",null,null,null,"/head"]
[null,null,null,null,null,null,null,null,"Reset Rate>",null,null,null,"/head"]
[null,null,"Wool",null,{"$f":"I234/170","v":8.8235294117647065},null,"bales   ",null,"Reset Rate>","=GM_INFO!B114",{"$f":"GM_INFO!B114","v":15},null,"/bale",null,null,null,135]
[null,null,"Stock selling charges"]
[null,null,"Commission/insurance",null,null,null,null,null,"Reset Rate>","=GM_INFO!C48",{"$f":"GM_INFO!C48","v":0.06},null,"gross $",null,null,null,{"$f":"K124*Q35","v":10151.526}]
[null,null,"Yard fees",null,{"$f":"E211","v":980},null,"head",null,"Reset Rate>","=GM_INFO!C49",{"$f":"GM_INFO!C49","v":0.85},null,"/head",null,null,null,{"$f":"K125*ROUND(E125,0)","v":833}]
[null,null,"Levy trans-sheep",null,{"$f":"E211","v":980},null,"head",null,"Reset Rate>","=GM_INFO!C50",{"$f":"GM_INFO!C50","v":0.2},null,"/head",null,null,null,196]
[]
[null,null,"SA sheep industry levy",null,{"$f":"E211","v":980},null,"head",null,"Reset Rate>","=GM_INFO!C52",{"$f":"GM_INFO!C52","v":0.55000000000000004},null,"/head",null,null,null,539]
[null,null,"Wool selling charges"]
[null,null,"Brokerage/testing/insurance",null,null,null,null,null,"Reset Rate>","=GM_INFO!C53",{"$f":"GM_INFO!C53","v":0.27},null,"/kg",null,null,null,{"$f":"K130*E34","v":405}]
[null,null,"Wool levy",null,null,null,null,null,"Reset Rate>","=GM_INFO!C54",{"$f":"GM_INFO!C54","v":1.4999999999999999E-2},null,"gross",null,null,null,{"$f":"K131*Q34","v":309.42}]
[]
[]
[]
[]
[]
[]
[]
[]
[]
[]
[]
[null,null,"Feed and Other Costs"]
[null,null,"Supplementary Feeding",null,0,null,null,null,null,null,{"$f":"M250","v":0},null,"/head",null,null,null,{"$f":"IF(E144*K144=0,M250,E144*K144)","v":0}]
[null,null,"Feed Lot",null,0,null,null,null,null,null,{"$f":"N250","v":0},null,"/head",null,null,null,{"$f":"IF(E145*K145=0,O250,E145*K145)","v":2}]
[null,null,"Insurance    ",null,{"$f":"E239*G239","v":151072.5},null,"value",null,"Reset Rate>","=GM_INFO!B107",{"$f":"GM_INFO!B107","v":2},null,"/$'000",null,null,null,{"$f":"K146/1000*E146","v":302.14499999999998}]
[null,null,"Water",null,{"$f":"$E$197","v":600},null,"DSE's",null,"Reset Rate>","=GM_INFO!k79",{"$f":"GM_INFO!K79","v":1.5},null,"/DSE's",null,null,null,{"$f":"K147*E147","v":900}]
[null,null,"Veh Fuel, R&M",null,600,null,"DSE's",null,"Reset Rate>","=GM_INFO!k80",{"$f":"GM_INFO!K80","v":1},null,"/DSE's",null,null,null,600]
[null,null,"Other",null,600,null,"DSE's",null,"Reset Rate>","=GM_INFO!k81",{"$f":"GM_INFO!K81","v":0.5},null,"/DSE's",null,null,null,300]
[]
[]
[]
[]
[]
[]
[]
[]
[]
[]
[]
[]
[]
[]
[]
[]
[]
[]
[]
[]
[null,null,"TOTAL VARIABLE COSTS",null,null,null,null,null,null,null,null,null,null,null,null,null,{"$f":"SUM(Q48:Q166)","v":160631.643492}]
[]
[null,null,"GROSS MARGIN TOTAL ",null,null,null,null,null,null,null,null,null,null,null,null,null,{"$f":"Q37-Q170","v":29188.456508000003}]
[]
[null,null,"GROSS MARGIN/DSE",null,null,null,null,null,null,null,null,null,null,null,null,null,{"$f":"Q172/E197","v":48.647427513333341}]
[]
[]
[]
[]
[]
[]
[]
[]
[]
[]
[]
[]
[]
[]
[]
[]
[]
[]
[]
[null,null,"PRODUCTION DATA"]
[]
[null,null,"Stocking rate (DSE/Ha)",null,12,null,null,null,null,null,null,null,null,null,null,null,null,null,null,null,null,null,null,null,null,null,"SHEEP GROSS MARGIN "]
[null,null,"Total DSE's",null,{"$f":"'Lamb Trading Input'!I58","v":600}]
[null,null,"SHEEP GRAZING AREA",null,{"$f":"E197/E196","v":50}]
[null,null,"Number of Lambs",null,{"$f":"'Lamb Trading Input'!E7","v":1000}]
[null,null,"Flock death rate  ",null,{"$f":"'Lamb Trading Input'!E13","v":0.02}]
[null,null,"Age Lambs bought",null,{"$f":"'Lamb Trading Input'!E10","v":0.5}]
[null,null,"Age Lambs sold",null,{"$f":"'Lamb Trading Input'!E9","v":0.8},null,null,null,null,null,null,null,null,null,null,null,null,null,null,null,null,null,null,null,null,null,"No of Lambs",null,{"$f":"'Lamb Trading Input'!E7","v":1000}]
[null,"=VLOOKUP(r[0]c3&\"No Ops\",CHOOSE({1,2},tbl_ops[Name]&tbl_ops[Category],INDIRECT(\"tbl_ops[\"&var_crop&\"]\")),2,0)",null,null,null,null,null,null,null,null,null,null,null,null,null,null,null,null,null,null,null,null,null,null,null,null,"Age Lambs purchased",null,{"$f":"E201","v":0.5}]
[null,"=VLOOKUP(r[0]c3&\"No Ops\",CHOOSE({1,2},tbl_ops[Name]&tbl_ops[Category],INDIRECT(\"tbl_ops[\"&var_crop&\"]\")),2,0)",null,null,null,null,null,null,null,null,null,null,null,null,null,null,null,null,null,null,null,null,null,null,null,null,"Age Lambs sold",null,{"$f":"E202","v":0.8}]
[null,"=VLOOKUP(r[0]c3&\"No Ops\",CHOOSE({1,2},tbl_ops[Name]&tbl_ops[Category],INDIRECT(\"tbl_ops[\"&var_crop&\"]\")),2,0)",null,null,null,null,null,null,null,null,null,null,null,null,null,null,null,null,null,null,null,null,null,null,null,null,"Flock death rate",null,{"$f":"E200","v":0.02}]
[null,"=VLOOKUP(r[0]c3&\"No Ops\",CHOOSE({1,2},tbl_ops[Name]&tbl_ops[Category],INDIRECT(\"tbl_ops[\"&var_crop&\"]\")),2,0)",null,null,null,null,null,null,null,null,null,null,null,null,null,null,null,null,null,null,null,null,null,null,null,null,"dse/Lamb",null,{"$f":"'Lamb Trading Input'!E14","v":0.8}]
[]
[null,"=VLOOKUP(r[0]c3&var_rain,CHOOSE({1,2},tbl_ops[Name]&tbl_ops[Rainfall],INDIRECT(\"tbl_ops[\"&var_crop&\"]\")),2,0)"]
[null,"=VLOOKUP(r[0]c3&var_rain,CHOOSE({1,2},tbl_ops[Name]&tbl_ops[Rainfall],INDIRECT(\"tbl_ops[\"&var_crop&\"]\")),2,0)","SALES",null,"Number",null,"Price/hd",null,"Age",null,"Total"]
[null,"=VLOOKUP(r[0]c3&var_rain,CHOOSE({1,2},tbl_ops[Name]&tbl_ops[Rainfall],INDIRECT(\"tbl_ops[\"&var_crop&\"]\")),2,0)","Prime Lambs",null,{"$f":"E199-(E199*E200)","v":980},null,{"$f":"E9*0.43*K9/100","v":172.64500000000001},null,{"$f":"E202","v":0.8},null,{"$f":"E210*G210","v":169192.1}]
[null,"=VLOOKUP(r[0]c3&var_rain,CHOOSE({1,2},tbl_ops[Name]&tbl_ops[Rainfall],INDIRECT(\"tbl_ops[\"&var_crop&\"]\")),2,0)","TOTAL",null,{"$f":"E210","v":980},null,null,null,null,null,{"$f":"K210","v":169192.1},null,null,null,null,null,null,null,null,null,null,null,null,null,null,null,"LambS","OPENING","NATURAL","PURCHASES","DEATHS","% sold","SALES","CLOSING"]
[null,null,"PURCHASES",null,"Number",null,"Price/hd",null,"Age",null,"Total",null,null,null,null,null,null,null,null,null,null,null,null,null,null,null,"AGE","NUMBERS","INCREASE",null,null,"culled",null,"NUMBERS"]
[null,null,"Store Lambs",null,{"$f":"E199","v":1000},null,{"$f":"(E8*K8)/100","v":129.5},null,{"$f":"E201","v":0.5},null,{"$f":"ROUND(E213,0)*G213","v":129500}]
[null,null,null,null,null,null,null,null,null,null,null,null,null,null,null,null,null,null,null,null,null,null,null,null,null,null,"0-0.5yr",null,null,{"$f":"IF(AC203=0.5,AB215-AE214-AG214,0)","v":208.16159308032229},{"$f":"AB214*$AC$205","v":0},{"$f":"IF(AC204=0.5,100%,0)","v":0},{"$f":"AC214*AF214","v":0},{"$f":"AB214+AC214+AD214-AE214-AG214","v":208.16159308032229}]
[null,null,null,null,null,null,null,null,null,null,null,null,null,null,null,null,null,null,null,null,null,null,null,null,null,null,"0.5-1.5yr",{"$f":"IF(AC203=0.5,AC202/(1+(1-AC205)*(1-AF215)*(1+(1-AC205)*(1-AF216)*(1+(1-AC205)*(1-AF217)*(1+(1-AC205)*(1-AF218))))),0)","v":208.16159308032229},null,{"$f":"IF(AC203=1.5,AB216-AE215-AG215,0)","v":0},4.1632318616064463,{"$f":"IF(AC204=1.5,100%,0)","v":0},{"$f":"(AB215-AE215)*AF215","v":0},203.99836121871584]
[null,null,null,null,null,null,null,null,null,null,null,null,null,null,null,null,null,null,null,null,null,null,null,null,null,null,"1.5-2.5yr",{"$f":"IF(AC203=1.5,AC202/(1+(1-AC205)*(1-AF216)*(1+(1-AC205)*(1-AF217)*(1+(1-AC205)*(1-AF218)))),AH215)","v":203.99836121871584},null,null,4.0799672243743172,{"$f":"IF(AC204=2.5,100%,0)","v":0},{"$f":"(AB216-AE216)*AF216","v":0},199.91839399434153]
[null,null,null,null,null,null,null,null,null,null,null,null,null,null,null,null,null,null,null,null,null,null,null,null,null,null,"2.5-3.5yr",{"$f":"AH216","v":199.91839399434153},null,null,3.9983678798868305,{"$f":"IF(AC204=3.5,100%,0)","v":0},{"$f":"(AB217-AE217)*AF217","v":0},195.92002611445469]
[null,null,null,null,"Number of Times",null,null,null,null,null,null,null,null,null,null,null,null,null,null,null,null,null,null,null,null,null,"3.5-4.5yr",{"$f":"AH217","v":195.92002611445469},null,null,3.9184005222890939,{"$f":"IF(AC204=4.5,100%,0)","v":0},{"$f":"(AB218-AE218)*AF218","v":0},192.0016255921656]
[null,null,"STOCK HEALTH REQUIREMENTS",null,"Number",null,"Drench",null,"Vacc.",null,"Blowfly",null,null,null,null,null,null,null,null,null,null,null,null,null,null,null,"4.5-5.5yr",{"$f":"AH218","v":192.0016255921656},null,null,3.8400325118433121,{"$f":"IF(AC204=5.5,100%,0)","v":0},{"$f":"(AB219-AE219)*AF219","v":0},188.16159308032229]
[null,null,"Lambs",null,{"$f":"ROUND('Lamb Trading Input'!E7,0)","v":1000},null,{"$f":"'Lamb Trading Input'!F57","v":1},null,{"$f":"'Lamb Trading Input'!G57","v":1},null,{"$f":"'Lamb Trading Input'!H57","v":1},null,null,null,null,null,null,null,null,null,null,null,null,null,null,null,"Total",{"$f":"SUM(AB215:AB219)","v":1000},null,{"$f":"SUM(AD214:AD219)","v":208.16159308032229},{"$f":"SUM(AE214:AE219)","v":20},null,{"$f":"SUM(AG214:AG219)","v":0},{"$f":"SUM(AH214:AH219)","v":1188.1615930803223}]
[null,null,null,null,null,null,null,null,null,null,null,null,null,null,null,null,null,null,null,null,null,null,null,null,null,null,"d.s.e's",{"$f":"AB220*AC206","v":800}]
[]
[]
[]
[]
[]
[]
[null,null,"TOTAL",null,{"$f":"SUM(E220:E227)","v":1000},null,{"$f":"SUMPRODUCT($E$220:$E$227,G220:G227)","v":1000},null,{"$f":"SUMPRODUCT($E$220:$E$227,I220:I227)","v":1000},null,{"$f":"SUMPRODUCT($E$220:$E$227,K220:K227)","v":1000}]
[]
[]
[null,null,null,null,null,null,"Wool Cut kg/hd",null,"Total",null,"Yield",null,"Total"]
[null,null,"SHEARING",null,"Number",null,null,null,"Greasy kg",null,"%",null,"clean kg"]
[null,null,"Lambs",null,{"$f":"'Lamb Trading Input'!E7","v":1000},null,{"$f":"'Lamb Trading Input'!F43","v":1.5},null,{"$f":"G233*E233","v":1500},null,{"$f":"'Lamb Trading Input'!G43","v":0.7},null,{"$f":"E233*G233*K233","v":1050}]
[null,null,"TOTAL",null,{"$f":"E233","v":1000},null,null,null,{"$f":"I233","v":1500}]
[]
[]
[null,null,"STOCK VALUE",null,null,null,"Value",null,"Av Live",null,"DSE"]
[null,null,null,null,"Number",null,"$/head",null,"weight (kgs)",null,"rating"]
[null,null,"Lambs",null,{"$f":"E199","v":1000},null,{"$f":"(G210+G213)/2","v":151.07249999999999},null,{"$f":"'Lamb Trading Input'!E60","v":45},null,{"$f":"'Lamb Trading Input'!E61","v":0.8}]
[null,null,"TOTAL",null,{"$f":"E239","v":1000}]
[]
[]
[]
[null,null,null,null,"Supplementry",null,"Feed Lot",null,null,null,null,null,"Supplementry",null,"Feed Lot"]
[null,null,"FEEDING",null,"kg fed",null,"kg fed",null,"/animal",null,"$/tonne",null,"Total",null,"Total"]
[null,null,{"$f":"'Lamb Trading Input'!C69","v":"Oats/barley"},null,{"$f":"'Lamb Trading Input'!E69","v":0},null,{"$f":"'Lamb Trading Input'!F69","v":55},null,{"$f":"'Lamb Trading Input'!G69","v":"kg/lamb"},null,{"$f":"'Lamb Trading Input'!H69","v":0},null,{"$f":"'Lamb Trading Input'!I69","v":0},null,{"$f":"'Lamb Trading Input'!J69","v":0}]
[null,null,{"$f":"'Lamb Trading Input'!C70","v":"Hay"},null,{"$f":"'Lamb Trading Input'!E70","v":15},null,{"$f":"'Lamb Trading Input'!F70","v":10},null,{"$f":"'Lamb Trading Input'!G70","v":"kg/lamb"},null,{"$f":"'Lamb Trading Input'!H70","v":0},null,{"$f":"'Lamb Trading Input'!I70","v":0},null,{"$f":"'Lamb Trading Input'!J70","v":0}]
[null,null,{"$f":"'Lamb Trading Input'!C71","v":"Lupins"},null,{"$f":"'Lamb Trading Input'!E71","v":0},null,{"$f":"'Lamb Trading Input'!F71","v":9},null,{"$f":"'Lamb Trading Input'!G71","v":"kg/lamb"},null,{"$f":"'Lamb Trading Input'!H71","v":0},null,{"$f":"'Lamb Trading Input'!I71","v":0},null,{"$f":"'Lamb Trading Input'!J71","v":0}]
[null,null,{"$f":"'Lamb Trading Input'!C72","v":"Supplements"},null,{"$f":"'Lamb Trading Input'!E72","v":0},null,{"$f":"'Lamb Trading Input'!F72","v":1},null,{"$f":"'Lamb Trading Input'!G72","v":"kg/lamb"},null,{"$f":"'Lamb Trading Input'!H72","v":2000},null,{"$f":"'Lamb Trading Input'!I72","v":0},null,{"$f":"'Lamb Trading Input'!J72","v":2}]
[null,null,null,null,null,null,null,null,null,null,null,null,{"$f":"'Lamb Trading Input'!I73","v":0},null,{"$f":"'Lamb Trading Input'!J73","v":2}]
[]
[]
[]
[]
[]
[]
[]
[]
[null,null,"GM SENSITIVITY"]
[null,null,"Gross Margin/DSE",null,"Average Greasy Wool Price (c/Kg)"]
[null,null,null,null,null,null,1150,null,1250,null,1375,null,1450,null,1550,null,1650]
[null,null,null,null,140,null,{"$f":"(G$261*$E$34*(1-$K$131)/100+$E262*$E$35*(1-$K$124)-($Q$170-$Q$124-$Q$131))/$E$197","v":-7.0190791533332959},null,{"$f":"(I$261*$E$34*(1-$K$131)/100+$E262*$E$35*(1-$K$124)-($Q$170-$Q$124-$Q$131))/$E$197","v":-4.5565791533332956},null,{"$f":"(K$261*$E$34*(1-$K$131)/100+$E262*$E$35*(1-$K$124)-($Q$170-$Q$124-$Q$131))/$E$197","v":-1.4784541533332958},null,{"$f":"(M$261*$E$34*(1-$K$131)/100+$E262*$E$35*(1-$K$124)-($Q$170-$Q$124-$Q$131))/$E$197","v":0.36842084666670416},null,{"$f":"(O$261*$E$34*(1-$K$131)/100+$E262*$E$35*(1-$K$124)-($Q$170-$Q$124-$Q$131))/$E$197","v":2.8309208466667042},null,{"$f":"(Q$261*$E$34*(1-$K$131)/100+$E262*$E$35*(1-$K$124)-($Q$170-$Q$124-$Q$131))/$E$197","v":5.2934208466667041}]
[null,null,null,null,145,null,0.65758751333337084,null,3.1200875133333708,null,6.1982125133333712,null,8.045087513333371,null,10.507587513333371,null,12.97008751333337]
[null,null,"Average\nSheep Sale\nPrice($/hd)",null,150,null,8.3342541800000376,null,10.796754180000038,null,13.874879180000038,null,15.721754180000037,null,18.184254180000039,null,20.646754180000038]
[null,null,null,null,165,null,31.364254180000039,null,33.826754180000037,null,36.904879180000037,null,38.751754180000034,null,41.21425418000004,null,43.676754180000039]
[null,null,null,null,170,null,39.040920846666701,null,41.503420846666707,null,44.581545846666707,null,46.428420846666704,null,48.890920846666702,null,51.353420846666701]
[null,null,null,null,173,null,43.646920846666667,null,46.109420846666666,null,49.187545846666666,null,51.034420846666663,null,53.496920846666669,null,55.959420846666667]
[null,null,null,null,175,null,46.71758751333337,null,49.180087513333369,null,52.258212513333369,null,54.105087513333373,null,56.567587513333372,null,59.03008751333337]
[null,null,null,null,180,null,54.39425418000004,null,56.856754180000038,null,59.934879180000038,null,61.781754180000036,null,64.244254180000041,null,66.706754180000033]
[null,null,null,null,185,null,62.070920846666702,null,64.533420846666701,null,67.611545846666701,null,69.458420846666698,null,71.920920846666704,null,74.383420846666709]
[null,null,null,null,190,null,69.747587513333372,null,72.210087513333377,null,75.288212513333377,null,77.135087513333374,null,79.597587513333366,null,82.060087513333372]
[null,null,null,null,195,null,77.424254180000034,null,79.88675418000004,null,82.96487918000004,null,84.811754180000037,null,87.274254180000042,null,89.736754180000034]

{"sheet":"GM_INFO","index":12,"n_rows":126,"n_cols":11,"rows_kept":126,"cut":false,"hidden":true,"merged":[[13,0,13,4],[88,0,88,4],[100,0,100,4]]}
["G.M. LINK SHEET"]
[]
["COMMENT: spreadsheet is protected EXCEPT for highlighted cells,"]
["         i.e. those cells which can be changed."]
[]
["DATE",{"$f":"m_year","v":2019}]
[]
[]
[]
["_______________________________________________________________________________________________________________________"]
["Todays Date:",{"$f":"NOW()","v":"2019-02-18T11:24:40.320"}]
[]
[]
[{"$f":"\"FARM COSTS - \"&m_year","v":"FARM COSTS - 2019"}]
[]
[]
["SHEEP"]
["Lice Control","Avenge",19.05,"/litre"]
[null,null,1.6768000000000001,"/80ml dose"]
["Drench","Triguard",36,"/litre"]
[null,null,0.6,"/10ml dose"]
["Vaccine","Glanvac 3",66,"/250ml"]
[null,null,0.26400000000000001,"/1ml dose"]
[null,"Glanvac 6",82,"250ml"]
[null,null,0.32800000000000001,"/1ml dose"]
["Blowfly Control","Clik",54.25,"/litre"]
[null,null,1.44,"/24 ml dose"]
["Wool packs","nylon",11.2,"ea"]
[]
["Shearing","Sheep",310.77,"/100"]
[null,"rams",621.54,"/100"]
[null,"shed labour",234.8,"/day"]
[null,"wool classer",297.79000000000002,"day"]
[null,"superannuation",9.5000000000000001E-2,"wages"]
[null,"Work Cover-Allow",0.04,"total"]
[null,"shed sundries",0.2,"/head"]
[]
["Crutching","sheep",90.12,"/100"]
[null,"rams",180.24,"/100"]
[]
["lamb marking ","mulesing / materials ",1.4,"/head"]
[null,"marking only",1.1499999999999999,"/head"]
[null,"ear tags",0.43,"/head"]
[null,"pain relief",0.45,"/head"]
["Stock purchaces","purchase rams",1000,"/head"]
[null,"purchase wethers",80,"/head"]
[]
["Stock selling ","commission/insurance",0.06]
[null,"yard fees",0.85,"/head"]
[null,"sheep transaction levy",0.2,"/head"]
[null,"lamb transaction levy",1.5,"/head"]
[null,"SA sheep industry levy",0.55000000000000004,"/head"]
[null,"wool brokerage / testing / insurance",0.27,"/kg"]
[null,"wool levy",1.4999999999999999E-2]
[]
[]
[]
[]
[]
["BEEF",null,null,null,null,null,null,"BEEF FEEDLOT"]
["Drench (backline) ","Genesis Pour-on",null,124,"/litre",null,null,"Drench, Dectomax",4.88,"/head"]
[null,null,null,4.1124999999999998,"/25ml dose",null,null,"Ear Tags",0.5,"/tag"]
["5 in 1 vaccine",null,null,95,"/500 ml",null,null,"HGP implant , Synovex",2.5,"/dose"]
[null,null,null,0.76,"/4ml dose",null,null,"Lice Treatments",0,"/dose"]
[null,null,null,null,null,null,null,"Vaccine ",1,"/dose"]
[null,null,null,null,null,null,null,"Veterinary",1.25,"/head"]
["Trace Element  treatments",null,null,3,"/head",null,null,"Vitamin injection",1.5,"/head"]
["HGP implant",null,null,1.75,null,null,null,"Premix cost per tonne mixed feed",50,"/tonne"]
["Vitamin injection",null,null,1.3,null,null,null,"Milling costs + Labour",26,"/head"]
[null,null,null,null,null,null,null,"Water",20,"/head"]
[null,null,null,null,null,null,null,"Insurance",2]
[null,null,null,null,null,null,null,"Transport In",15]
["NLIS Breeder Tags (incl levy)",null,null,4.75,"each",null,null,"Transport Out",30]
[null,null,null,null,null,null,null,"Commission",0.06]
[null,"freight cattle in",null,30,"/head",null,null,"Levies ",5]
[null,"freight cattle out",null,30,"/head"]
[null,"Cattle levy",null,5,"/head"]
[null,null,null,"Prime Lambs","Prime Lambs Cereal","Merino SR Cereal","Wethers Cereal","Cleanskin","Beef Cereal","Beef Trading","Lamb trading"]
["FEED & OTHER COSTS","water","/DSE",1.5,2.5,2.5,2.5,2.5,2.5,1.5,1.5]
[null,"Veh fuel, R&M","/DSE",1.2,1.2,1.2,1,0.8,1,1,1]
[null,"other","/DSE",0.5,0.5,0.5,0.5,0.5,0.5,0.5,0.5]
[null,"hay","/tonne incl freight",260]
[null,"Feed Cereal grain","/tonne incl freight",320]
[null,"Lamb Feedlot Mix","/tonne incl freight",300]
[null,"Blocks/ Mineral Mix",null,5]
[]
[]
[]
[{"$f":"\"FARM COSTS - \"&m_year","v":"FARM COSTS - 2019"}]
[]
[]
[]
["STOCK RETURNS ",null,null,null,null,"Budget Base (Greasy)"]
["WOOL- High Rainfall 28 mic 70%Yield",null,null,null,null,611]
["          - High Rainfall 19.5 mic 70% Yld",null,null,null,null,1528]
["          - Med Rainfall 21 mic 68% Yield",null,null,null,null,1374]
["          - Low Rainfall 22 mic 63% Yield",null,null,null,null,1255]
["             - Crossbred Ram 32 mic ",null,null,null,null,283]
[]
[]
[{"$f":"\"FARM COSTS - \"&m_year","v":"FARM COSTS - 2019"}]
[]
[]
[]
["INSURANCE COSTS"]
["Livestock"]
["Sheep and cattle",2,"/$1,000 insured "]
[]
[]
["FREIGHT COSTS","Prime Lambs"]
["culls",4]
["ewes",4]
["prime lambs",4]
["bales   ",15]
["rams",4]
["hoggets",4]
["vealers",30]
[]
["BEEF"]
["Vealers",270,"kg liveweight @",3,"/kg L/W"]
["Yearling",400,"kg liveweight @",2.8,"/kg L/W"]
["Cows",550,"kg liveweight @",1.8,"/kg L/W"]
[]
["BEEF TRADING"]
["Vealers",280,"kg liveweight @",3,"/kg L/W"]
["Yearling",420,"kg liveweight @",2.8,"/kg L/W"]

{"sheet":"Merino SR Input","index":13,"n_rows":83,"n_cols":10,"rows_kept":83,"cut":false,"hidden":true,"merged":[[4,2,4,9],[36,2,37,4]]}
[]
[null,null,{"$f":"\"MERINO SR GROSS  MARGIN - \"&TEXT(m_year,\"0000\")","v":"MERINO SR GROSS  MARGIN - 2019"}]
[]
[null,null,"GENERAL INFORMATION"]
[null,null,"This represents a self-replacing merino ewe flock, producing 21 micron wool. Adjust wool price if different micron wool is produced. Following are the various assumptions used in the calculation of the Gross Margin.  Cells with yellow highlight can be changed. No allowance has been made for pasture expenses such as seed, fertiliser and chemicals. Refer to pasture gross margins in the “Cropping Gross Margin Plan” for annual and perennial pasture costs. Use the livestock gross margin per DSE as income for the pasture gross margin."]
[]
[null,null,"Stocking rate (DSE/Ha)",null,6,null,"Years Rams Kept",null,4]
[null,null,"Ewes mated",null,1000,null,"Flock death Rate",null,0.03]
[null,null,"Total DSE's",null,{"$f":"'Merino SR'!M228","v":2420},null,"% Lambs carried over",null,0]
[null,null,"SHEEP GRAZING AREA",null,285]
[null,null,"Age ewes 1st mating",null,1.5]
[null,null,"Age ewes sold",null,6.5]
[null,null,"Av Weaning %",null,0.95]
[null,null,"Ram percentage",null,2.5000000000000001E-2]
[]
[]
[null,null,"LIVESTOCK SALES",null,"Price/Hd","Number","Total"]
[null,null,"c.f.a Ewes",null,115,{"$f":"'Merino SR'!AG220","v":203.95962350393697},{"$f":"E18*ROUND(F18,0)","v":23460}]
[null,null,"c.f.a Merino Rams",null,75,{"$f":"'Merino SR'!AG244","v":5.7883870008497293},450]
[null,null,"ewe hoggets",null,240,{"$f":"'Merino SR'!AG222","v":226.79037649606303},54480]
[null,null,"wether lambs",null,130,{"$f":"'Merino SR'!AG230","v":475},61750]
[null,null,null,null,null,null,0]
[null,null,null,null,null,null,0]
[]
[null,null,"TOTAL SALES",null,null,{"$f":"SUM(F18:F23)","v":911.53838700084975},{"$f":"SUM(G18:G23)","v":140140}]
[]
[]
[null,null,"LIVESTOCK PURCHASES",null,"Price/Hd","Number","Total"]
[null,null,"Ewes",null,250,{"$f":"'Merino SR'!AD220","v":0},{"$f":"E29*F29","v":0}]
[null,null,"Rams",null,2000,{"$f":"'Merino SR'!AD244","v":6.5383870008497293},{"$f":"E30*F30","v":13076.774001699459}]
[]
[null,null,"TOTAL PURCHASES",null,null,{"$f":"SUM(F29:F30)","v":6.5383870008497293},{"$f":"SUM(G29:G30)","v":13076.774001699459}]
[]
[]
[null,null,"WOOL PRICE (cents/kg)",null,null,{"$f":"TEXT(m_year-3,\"0000\")&\" Average (Clean)\"","v":"2016 Average (Clean)"},{"$f":"TEXT(m_year-2,\"0000\")&\" Average (Clean)\"","v":"2017 Average (Clean)"},{"$f":"TEXT(m_year-1,\"0000\")&\" Average (Clean)\"","v":"2018 Average (Clean)"},"Budget Base (Clean)","Budget Base (Greasy)"]
[null,null,null,null,"Cereal Zone 21 mic 68% yield",1278,1533,2085,2020,1374]
[null,null,"Allow 90% to account for lower value of bellies, skirtings etc.",null,null,null,null,null,null,{"$f":"J36*0.9","v":1236.6000000000001}]
[]
[]
[]
[null,null,"WOOL SALES - SHEARING",null,null,"Wool Cut","Wool Price"]
[null,null,null,null,"Number","kg/hd","cents/kg"]
[null,null,"Ewes",null,{"$f":"ROUND('Merino SR'!E233,0)","v":980},6.5,{"$f":"$J$37","v":1236.6000000000001}]
[null,null,"Ewe hoggets",null,{"$f":"ROUND('Merino SR'!E234,0)","v":468},5.5,1236.6000000000001]
[null,null,"Wether weaners",null,{"$f":"ROUND('Merino SR'!E235,0)","v":0},5,1236.6000000000001]
[null,null,"Lambs",null,{"$f":"ROUND('Merino SR'!E236,0)","v":950},2,1236.6000000000001]
[null,null,"Merino rams",null,{"$f":"ROUND('Merino SR'!E237,0)","v":25},9.5,1236.6000000000001]
[]
[]
[]
[null,null,"TOTAL",null,{"$f":"SUM(E43:E50)","v":2423},{"$f":"SUMPRODUCT(E43:E49,F43:F49)","v":11081.5}]
[]
[]
[null,null,"STOCK HEALTH REQUIREMENTS"]
[null,null,null,null,null,null,"      Number of times"]
[null,null,null,null,"Number","Drench","Vacc.","Blowfly"]
[null,null,"Ewes",null,{"$f":"'Merino SR'!E220","v":1000},1,1,1]
[null,null,"Ewe hoggets",null,{"$f":"'Merino SR'!E221","v":475},1,1,1]
[null,null,"Wether weaners",null,{"$f":"'Merino SR'!E222","v":0},1,1,1]
[null,null,"Merino lambs",null,{"$f":"'Merino SR'!E223","v":950},1,2,0]
[null,null,"Merino rams",null,{"$f":"'Merino SR'!E224","v":25.000000000000004},2,1,1]
[]
[null,null,"TOTAL",null,{"$f":"SUM(E57:E61)","v":2450},{"$f":"SUMPRODUCT($E$57:$E$61,F57:F61)","v":2475},{"$f":"SUMPRODUCT($E$57:$E$61,G57:G61)","v":3400},{"$f":"SUMPRODUCT($E$57:$E$61,H57:H61)","v":1500}]
[]
[]
[null,null,"FEEDING"]
[null,null,"HAY",null,null,"Hay","Kgs Fed","No Weeks","Total"]
[null,null,null,null,"Number","Cost ($/T)","per Week","of Feeding","Cost ($)"]
[null,null,"Ewes",null,{"$f":"'Merino SR'!E220","v":1000},260,2,10,{"$f":"(H69*G69*E69)/1000*F69","v":5200}]
[null,null,"Weaner",null,null,null,null,null,0]
[null,null,"Ewe hoggets",null,null,null,null,null,0]
[null,null,"Merino lambs",null,null,null,null,null,0]
[null,null,"Merino rams",null,null,null,null,null,0]
[]
[null,null,"GRAIN",null,null,"Grain","Kgs Fed","No Weeks","Total"]
[null,null,null,null,"Number","Cost ($/T)","per Week","of Feeding","Cost ($)"]
[null,null,"Ewes",null,{"$f":"'Merino SR'!E220","v":1000},320,2.4,10,{"$f":"(H77*G77*E77)/1000*F77","v":7680}]
[null,null,"Weaner",null,{"$f":"'Merino SR'!E221","v":475},500,1,10,2375]
[null,null,"Ewe hoggets",null,null,null,null,null,0]
[null,null,"Merino lambs",null,null,null,null,null,0]
[null,null,"Merino rams",null,null,null,null,null,0]
[]
[null,null,null,null,null,null,null,"Total Feed Cost",{"$f":"SUM(I69:I73,I77:I81)","v":15255}]

{"sheet":"Merino SR","index":14,"n_rows":284,"n_cols":52,"rows_kept":284,"cut":false,"hidden":true,"merged":[[279,4,279,16],[263,4,263,16],[267,2,271,2],[198,10,198,14],[217,4,217,10],[230,6,231,6],[243,6,244,6],[243,8,244,8],[243,10,244,10],[243,12,244,12],[250,6,251,6],[250,8,251,8],[250,10,251,10],[250,12,251,12]]}
[null,null,"MERINO SR"]
[null,null,{"$f":"UPPER(Var_Animal)&\"  GROSS  MARGIN - \"&TEXT(m_year,\"0000\")","v":"MERINO SR  GROSS  MARGIN - 2019"}]
[]
[null,null,"ASSUMPTIONS"]
[]
[null,null,"Ave Breeding Ewe Fibre Diameter",null,21,null,null,null,null,null,null,null,null,null,"Total DSE's",null,{"$f":"'Merino SR Input'!E9","v":2420}]
[null,null,"No. of breeding ewes",null,{"$f":"'Merino SR Input'!$E$8","v":1000},null,null,null,null,null,null,null,null,null,"Stocking Rate (DSE/Ha)",null,{"$f":"'Merino SR Input'!E7","v":6}]
[]
[]
[]
[]
[]
[]
[]
[]
[]
[]
[]
[]
[]
[]
[]
[]
[]
[]
[]
[]
[]
[null,null,null,null,null,null,null,null,null,null,null,null,null,null,null,null,null,null,null,null,null," "]
[]
[]
[null,null,"INCOME",null,null,null,null,null,null,null,null,null,null,null,null,null,"$"]
[]
[null,null,"Wool (kg greasy)",null,{"$f":"I241","v":11079.886022291519},null,"kg",null,"av price",null,{"$f":"'Merino SR Input'!J37","v":1236.6000000000001},null,"c/kg",null,null,null,{"$f":"M241","v":137013.87055165693}]
[null,null,"Sales",null,{"$f":"E214","v":911.53838700084975},null,"animals",null,"av price",null,{"$f":"G214","v":153.74009695970091},null,"/head",null,null,null,{"$f":"I214","v":140140}]
[]
[null,null,"Gross Income",null,null,null,null,null,null,null,null,null,null,null,null,null,{"$f":"SUM(Q34:Q35)","v":277153.87055165693}]
[]
[]
[]
[]
[]
[]
[]
[null,null,null,null,null,null,null,null,null,null,null,null,null,null,null,null,null,null,null,null,null,null,null,null,null,null,"STOCK VALUE AND D.S.E REQUIREMENT"]
[null,null,"VARIABLE COSTS"]
[null,null,"Shearing",null,null,null,null,null,null,null,"Rate"]
[null,null,"Shearing",null,{"$f":"E241-E237","v":2398.2805418910029},null,"sheep   ",null,"Reset Rate>","=GM_INFO!C30",{"$f":"GM_INFO!C30","v":310.77},null,"/100",null,null,null,{"$f":"K48/100*ROUND(E48,0)","v":7452.2645999999995}]
[null,null,"(Federal awards)",null,{"$f":"E224","v":25.000000000000004},null,"rams    ",null,"Reset Rate>","=GM_INFO!C31",{"$f":"GM_INFO!C31","v":621.54},null,"/100",null,null,null,155.38499999999999]
[null,null,"Shed labour",null,8,null,"days   ",null,"Reset Rate>","=GM_INFO!C32",{"$f":"GM_INFO!C32","v":234.8},null,"/day",null,null,null,{"$f":"K50*ROUND(E50,0)","v":1878.4}]
[null,null,"Woolclasser",null,4,null,"days   ",null,"Reset Rate>","=GM_INFO!C33",{"$f":"GM_INFO!C33","v":297.79000000000002},null,"/day",null,null,null,{"$f":"K51*E51","v":1191.1600000000001}]
[null,null,"Superannuation (on ord wages only)",null,null,null,null,null,"Reset Rate>","=GM_INFO!C34",{"$f":"GM_INFO!C34","v":9.5000000000000001E-2},null," wages",null,null,null,{"$f":"(Q48+Q49+Q50+Q51)*K52","v":1014.334912}]
[null,null,"W/Cover (incl. super + otime etc)",null,null,null,null,null,"Reset Rate>","=GM_INFO!C35",{"$f":"GM_INFO!C35","v":0.04},null," total ",null,null,null,{"$f":"(Q48+Q49+Q50+Q51+Q52)*K53","v":467.66178048}]
[null,null,"Wool packs",null,{"$f":"E122","v":65.175800131126579},null,"packs   ",null,"Reset Rate>","=GM_INFO!C28",{"$f":"GM_INFO!C28","v":11.2},null,"/pack",null,null,null,{"$f":"K54*ROUND(E54,0)","v":728}]
[null,null,"Shed sundries",null,{"$f":"E48+E49","v":2423.2805418910029},null,"sheep   ",null,"Reset Rate>","=GM_INFO!C36",{"$f":"GM_INFO!C36","v":0.2},null,"/head",null,null,null,484.6]
[null,null,"Lice control",null,{"$f":"E48+E49","v":2423.2805418910029},null,"sheep   ",null,"Reset Rate>","=GM_INFO!C19",{"$f":"GM_INFO!C19","v":1.6768000000000001},null,"/head",null,null,null,4062.8864000000003]
[null,null,"Crutch & Wig",null,{"$f":"SUM(E233:E235)","v":1448.2805418910029},null,"ewes",null,"Reset Rate>","=GM_INFO!C38",{"$f":"GM_INFO!C38","v":90.12},null,"/100",null,null,null,{"$f":"K57/100*ROUND(E57,0)","v":1304.9376}]
[null,null,null,null,{"$f":"E49","v":25.000000000000004},null,"rams    ",null,"Reset Rate>","=GM_INFO!C39",{"$f":"GM_INFO!C39","v":180.24},null,"/100",null,null,null,45.06]
[]
[]
[]
[]
[]
[]
[]
[]
[]
[]
[]
[]
[]
[]
[]
[]
[null,null,"Marking"]
[null,null,"Lamb marking",null,{"$f":"E199*E205","v":950},null,"lambs",null,"Reset Rate>","=GM_INFO!C41",{"$f":"GM_INFO!C41","v":1.4},null,"/head",null,null,null,{"$f":"K76*ROUND(E76,0)","v":1330}]
[null,null,"Ear tags",null,{"$f":"E76","v":950},null,"lambs",null,"Reset Rate>","=GM_INFO!C43",{"$f":"GM_INFO!C43","v":0.43},null,"/head",null,null,null,408.5]
[null,null,"Pain relief",null,900,null,"lambs",null,"Reset Rate>","=GM_INFO!C44",{"$f":"GM_INFO!C44","v":0.45},null,"/head",null,null,null,{"$f":"K78*ROUND(E78,0)","v":405}]
[null,null,null,null,null,null,null,null,null,null,null,null,null,null,null,null,null,null,null,null,null,null,null,null,null,null,null,null,null,null,null,null,null,null,null,null,null,null,null,null,null,null,null,null,"RAMS","OPENING","NATURAL","PURCHASES","DEATHS","% sold","SALES","CLOSING"]
[null,null,null,null,null,null,null,null,null,null,null,null,null,null,null,null,null,null,null,null,null,null,null,null,null,null,null,null,null,null,null,null,null,null,null,null,null,null,null,null,null,null,null,null,"AGE","NUMBERS","INCREASE",null,null,"culled",null,"NUMBERS"]
[]
[null,null,null,null,null,null,null,null,null,null,null,null,null,null,null,null,null,null,null,null,null,null,null,null,null,null,null,null,null,null,null,null,null,null,null,null,null,null,null,null,null,null,null,null,"0.5-1.5yr",null,null,{"$f":"AT83/(1-AX82)","v":0},{"$f":"AT82*$R$81","v":0},null,null,{"$f":"AT82+AU82+AV82-AW82-AY82","v":0}]
[null,null,null,null,null,null,null,null,null,null,null,null,null,null,null,null,null,null,null,null,null,null,null,null,null,null,null,null,null,null,null,null,null,null,null,null,null,null,null,null,null,null,null,null,"1.5-2.5yr",{"$f":"IF(AY53=3,(AU51*AY51)/(1+(1-AY55)*(1-AX83)*(1+(1-AY55)*(1-AX84)*(1+(1-AY55)*(1-AX85)))),IF(AY53=4,(AU51*AY51)/(1+(1-AY55)*(1-AX83)*(1+(1-AY55)*(1-AX84)*(1+(1-AY55)*(1-AX85)*(1+(1-AY55)*(1-AX86))))),0))","v":0},null,null,{"$f":"AT83*$R$81","v":0},null,null,{"$f":"AT83+AU83+AV83-AW83-AY83","v":0}]
[null,null,null,null,null,null,null,null,null,null,null,null,null,null,null,null,null,null,null,null,null,null,null,null,null,null,null,null,null,null,null,null,null,null,null,null,null,null,null,null,null,null,null,null,"2.5-3.5yr",{"$f":"AZ83","v":0},null,null,{"$f":"AT84*$R$81","v":0},null,null,{"$f":"AT84+AU84+AV84-AW84-AY84","v":0}]
[null,null,null,null,null,null,null,null,null,null,null,null,null,null,null,null,null,null,null,null,null,null,null,null,null,null,null,null,null,null,null,null,null,null,null,null,null,null,null,null,null,null,null,null,"3.5-4.5yr",{"$f":"AZ84","v":0},null,null,{"$f":"AT85*$R$81","v":0},{"$f":"IF(AY53=3,100%,0)","v":0},{"$f":"(AT85-AW85)*AX85","v":0},{"$f":"AT85+AU85+AV85-AW85-AY85","v":0}]
[null,null,null,null,null,null,null,null,null,null,null,null,null,null,null,null,null,null,null,null,null,null,null,null,null,null,null,null,null,null,null,null,null,null,null,null,null,null,null,null,null,null,null,null,"4.5-5.5yr",{"$f":"AZ85","v":0},null,null,{"$f":"AT86*$R$81","v":0},{"$f":"IF(AY53=4,100%,0)","v":0},{"$f":"AT86-AW86","v":0},{"$f":"AT86+AU86+AV86-AW86-AY86","v":0}]
[null,null,null,null,null,null,null,null,null,null,null,null,null,null,null,null,null,null,null,null,null,null,null,null,null,null,null,null,null,null,null,null,null,null,null,null,null,null,null,null,null,null,null,null,null,{"$f":"AT82+AT83+AT84+AT85+AT86","v":0},null,{"$f":"AV82+AV83+AV84+AV85+AV86","v":0},{"$f":"AW82+AW83+AW84+AW85+AW86","v":0},null,{"$f":"AY82+AY83+AY84+AY85+AY86","v":0},{"$f":"AZ82+AZ83+AZ84+AZ85+AZ86","v":0}]
[null,null,null,null,null,null,null,null,null,null,null,null,null,null,null,null,null,null,null,null,null,null,null,null,null,null,null,null,null,null,null,null,null,null,null,null,null,null,null,null,null,null,null,null,"d.s.e's",{"$f":"AT87*AE49","v":0}]
[null,null,"Animal Health"]
[null,null,"Drench",null,{"$f":"G228","v":2475},null,"sheep",null,"Reset Rate>","=GM_INFO!C21",{"$f":"GM_INFO!C21","v":0.6},null,"/head",null,null,null,{"$f":"K90*ROUND(E90,0)","v":1485}]
[null,null,"Vaccinate",null,{"$f":"I228","v":3400},null,"sheep",null,"Reset Rate>","=GM_INFO!C23",{"$f":"GM_INFO!C23","v":0.26400000000000001},null,"/head",null,null,null,897.6]
[null,null,"Blowfly control",null,{"$f":"K228","v":1500},null,"sheep",null,"Reset Rate>","=GM_INFO!C27",{"$f":"GM_INFO!C27","v":1.44},null,"/head",null,null,null,2160]
[]
[]
[]
[]
[]
[]
[]
[]
[]
[]
[]
[null,null,"Stock purchases"]
[null,null,"Purchases",null,{"$f":"ROUND(AD244,0)","v":7},null,"rams",null,"Reset Rate>","='Merino SR Input'!E30",{"$f":"'Merino SR Input'!E30","v":2000},null,"/head",null,null,null,{"$f":"K105*E105","v":14000}]
[]
[]
[]
[]
[]
[]
[]
[]
[]
[]
[]
[null,null,"Sale Costs"]
[null,null,"Freight "]
[null,null,"Livestock",null,{"$f":"E214","v":911.53838700084975},null,"sheep",null,"Reset Rate>","=GM_INFO!B111",{"$f":"GM_INFO!B111","v":4},null,"/head",null,null,null,{"$f":"K119*ROUND(E119,0)","v":3648}]
[null,null,null,null,null,null,null,null,"Reset Rate>",null,null,null,"/head"]
[null,null,null,null,null,null,null,null,"Reset Rate>",null,null,null,"/head"]
[null,null,"Wool",null,{"$f":"I241/170","v":65.175800131126579},null,"bales   ",null,"Reset Rate>","=GM_INFO!B114",{"$f":"GM_INFO!B114","v":15},null,"/bale",null,null,null,975]
[null,null,"Stock selling charges"]
[null,null,"Commission/insurance",null,null,null,null,null,"Reset Rate>","=GM_INFO!C48",{"$f":"GM_INFO!C48","v":0.06},null,"gross $",null,null,null,{"$f":"K124*Q35","v":8408.4}]
[null,null,"Yard fees",null,{"$f":"E214","v":911.53838700084975},null,"head",null,"Reset Rate>","=GM_INFO!C49",{"$f":"GM_INFO!C49","v":0.85},null,"/head",null,null,null,{"$f":"K125*ROUND(E125,0)","v":775.19999999999993}]
[null,null,"Levy trans-sheep",null,{"$f":"SUM(E210:E212)","v":436.53838700084975},null,"head",null,"Reset Rate>","=GM_INFO!C50",{"$f":"GM_INFO!C50","v":0.2},null,"/head",null,null,null,87.4]
[null,null,"Levy trans-lambs",null,{"$f":"E213","v":475},null,"head",null,"Reset Rate>","=GM_INFO!C51",{"$f":"GM_INFO!C51","v":1.5},null,"/head",null,null,null,712.5]
[null,null,"SA sheep industry levy",null,{"$f":"E214","v":911.53838700084975},null,"head",null,"Reset Rate>","=GM_INFO!C52",{"$f":"GM_INFO!C52","v":0.55000000000000004},null,"/head",null,null,null,501.6]
[null,null,"Wool selling charges"]
[null,null,"Brokerage/testing/insurance",null,null,null,null,null,"Reset Rate>","=GM_INFO!C53",{"$f":"GM_INFO!C53","v":0.27},null,"/kg",null,null,null,{"$f":"K130*E34","v":2991.5692260187102}]
[null,null,"Wool levy",null,null,null,null,null,"Reset Rate>","=GM_INFO!C54",{"$f":"GM_INFO!C54","v":1.4999999999999999E-2},null,"gross",null,null,null,{"$f":"K131*Q34","v":2055.208058274854}]
[]
[]
[]
[]
[]
[]
[]
[]
[]
[]
[]
[null,null,"Feed and Other Costs"]
[null,null,"Hand Feeding",null,null,null,null,null,null,null,null,null,null,null,null,null,{"$f":"'Merino SR Input'!I83","v":15255}]
[]
[null,null,"Insurance    ",null,{"$f":"E229","v":376663.2375512672},null,"value",null,"Reset Rate>","=GM_INFO!B107",{"$f":"GM_INFO!B107","v":2},null,"/$'000",null,null,null,{"$f":"K146/1000*E146","v":753.32647510253446}]
[null,null,"Water",null,{"$f":"'Merino SR Input'!$E$9","v":2420},null,"DSE's",null,"Reset Rate>","=GM_INFO!D79",{"$f":"GM_INFO!E79","v":2.5},null,"/DSE's",null,null,null,{"$f":"K147*E147","v":6050}]
[null,null,"Veh Fuel, R&M",null,{"$f":"'Merino SR Input'!$E$9","v":2420},null,"DSE's",null,"Reset Rate>","=GM_INFO!D80",{"$f":"GM_INFO!E80","v":1.2},null,"/DSE's",null,null,null,2904]
[null,null,"Other",null,{"$f":"'Merino SR Input'!$E$9","v":2420},null,"DSE's",null,"Reset Rate>","=GM_INFO!D81",{"$f":"GM_INFO!E81","v":0.5},null,"/DSE's",null,null,null,1210]
[]
[]
[]
[]
[]
[]
[]
[]
[]
[]
[]
[]
[]
[]
[]
[]
[]
[]
[]
[]
[null,null,"TOTAL VARIABLE COSTS",null,null,null,null,null,null,null,null,null,null,null,null,null,{"$f":"SUM(Q48:Q166)","v":85797.9940518761}]
[]
[null,null,"GROSS MARGIN TOTAL ",null,null,null,null,null,null,null,null,null,null,null,null,null,{"$f":"Q37-Q170","v":191355.87649978083}]
[]
[null,null,"GROSS MARGIN/DSE",null,null,null,null,null,null,null,null,null,null,null,null,null,{"$f":"Q172/Q6","v":79.072676239578854}]
[]
[]
[]
[]
[]
[]
[]
[]
[]
[]
[]
[]
[]
[]
[]
[]
[]
[]
[]
[null,null,"PRODUCTION DATA"]
[]
[null,null,null,null,null,null,null,null,null,null,null,null,null,null,null,null,null,null,null,null,null,null,null,null,null,null,"SHEEP GROSS MARGIN "]
[null,null,null,null,null,null,null,null,null,null,null,null,null,null,null,null,null,null,null,null,null,null,null,null,null,null,"PRIME LAMB - "]
[]
[null,null,"Number of ewes mated",null,{"$f":"'Merino SR Input'!E8","v":1000},null,null,null,null,null,"Culling Rate (% from each group)"]
[null,null,"Ram percentage",null,{"$f":"'Merino SR Input'!E14","v":2.5000000000000001E-2},null,null,null,null,null,"Age Group",null,"Ewes",null,"Wethers"]
[null,null,"Age ewes 1st mating",null,{"$f":"'Merino SR Input'!E11","v":1.5},null,null,null,null,null,"0.5",null,{"$f":"AF213","v":0}]
[null,null,"Age ewes culled",null,{"$f":"'Merino SR Input'!E12","v":6.5},null,null,null,null,null,"1.5",null,0.49222002495076078,null,null,null,null,null,null,null,null,null,null,null,null,null,"Ewes mated",null,{"$f":"'Merino SR Input'!E8","v":1000},null,null,"Ram %",{"$f":"E200","v":2.5000000000000001E-2}]
[null,"=VLOOKUP(r[0]c3&\"No Ops\",CHOOSE({1,2},tbl_ops[Name]&tbl_ops[Category],INDIRECT(\"tbl_ops[\"&var_crop&\"]\")),2,0)","Years rams kept",null,{"$f":"'Merino SR Input'!I7","v":4},null,null,null,null,null,"2.5",null,0.05,null,null,null,null,null,null,null,null,null,null,null,null,null,"Age at 1st mating",null,{"$f":"E201","v":1.5},null,null,"Price of rams",{"$f":"'Merino SR Input'!E30","v":2000}]
[null,"=VLOOKUP(r[0]c3&\"No Ops\",CHOOSE({1,2},tbl_ops[Name]&tbl_ops[Category],INDIRECT(\"tbl_ops[\"&var_crop&\"]\")),2,0)","Flock death rate  ",null,{"$f":"'Merino SR Input'!I8","v":0.03},null,null,null,null,null,"3.5",null,0.05,null,null,null,null,null,null,null,null,null,null,null,null,null,"Age ewes sold",null,{"$f":"E202","v":6.5},null,null,"Years rams kept",{"$f":"E203","v":4}]
[null,"=VLOOKUP(r[0]c3&\"No Ops\",CHOOSE({1,2},tbl_ops[Name]&tbl_ops[Category],INDIRECT(\"tbl_ops[\"&var_crop&\"]\")),2,0)","Average weaning rate ",null,{"$f":"AC205","v":0.95},null,null,null,null,null,"4.5",null,0.05,null,null,null,null,null,null,null,null,null,null,null,null,null,"Av Weaning %",null,{"$f":"'Merino SR Input'!E13","v":0.95},null,null,"Age wethers sold",0.5]
[null,"=VLOOKUP(r[0]c3&\"No Ops\",CHOOSE({1,2},tbl_ops[Name]&tbl_ops[Category],INDIRECT(\"tbl_ops[\"&var_crop&\"]\")),2,0)","% Lambs carried over",null,0,null,null,null,null,null,"5.5",null,0.05,null,null,null,null,null,null,null,null,null,null,null,null,null,"dse/ewe",null,1.6,null,null,"Flock death rate",{"$f":"E204","v":0.03}]
[null,null,"Age wethers sold",null,{"$f":"AG205","v":0.5},null,null,null,null,null,"6.5",null,1]
[null,"=VLOOKUP(r[0]c3&var_rain,CHOOSE({1,2},tbl_ops[Name]&tbl_ops[Rainfall],INDIRECT(\"tbl_ops[\"&var_crop&\"]\")),2,0)"]
[null,"=VLOOKUP(r[0]c3&var_rain,CHOOSE({1,2},tbl_ops[Name]&tbl_ops[Rainfall],INDIRECT(\"tbl_ops[\"&var_crop&\"]\")),2,0)","SALES",null,"Number",null,"Price/hd",null,"Total"]
[null,"=VLOOKUP(r[0]c3&var_rain,CHOOSE({1,2},tbl_ops[Name]&tbl_ops[Rainfall],INDIRECT(\"tbl_ops[\"&var_crop&\"]\")),2,0)","c.f.a ewes",null,{"$f":"AG220","v":203.95962350393697},null,{"$f":"'Merino SR Input'!E18","v":115},null,{"$f":"ROUND(E210,0)*G210","v":23460}]
[null,"=VLOOKUP(r[0]c3&var_rain,CHOOSE({1,2},tbl_ops[Name]&tbl_ops[Rainfall],INDIRECT(\"tbl_ops[\"&var_crop&\"]\")),2,0)","c.f.a merino rams",null,{"$f":"AG244","v":5.7883870008497293},null,{"$f":"'Merino SR Input'!E19","v":75},null,450,null,null,null,null,null,null,null,null,null,null,null,null,null,null,null,null,null,"EWES","OPENING","NATURAL","PURCHASES","DEATHS","% sold","SALES","CLOSING"]
[null,null,"Ewe hoggets",null,{"$f":"AG222","v":226.79037649606303},null,{"$f":"'Merino SR Input'!E20","v":240},null,54480,null,null,null,null,null,null,null,null,null,null,null,null,null,null,null,null,null,"AGE","NUMBERS","INCREASE",null,null,"culled",null,"NUMBERS"]
[null,null,"Wether lambs",null,{"$f":"AG230","v":475},null,{"$f":"'Merino SR Input'!E21","v":130},null,61750,null,null,null,null,null,null,null,null,null,null,null,null,null,null,null,null,null,"0-0.5yr",null,{"$f":"AC202*AC205/2","v":475},null,{"$f":"AB213*$AG$206","v":0},0,{"$f":"AC213*AF213","v":0},{"$f":"AB213+AC213+AD213-AE213-AG213","v":475}]
[null,null,"TOTAL",null,{"$f":"SUM(E210:E213)","v":911.53838700084975},null,{"$f":"I214/E214","v":153.74009695970091},null,{"$f":"SUM(I210:I213)","v":140140},null,null,null,null,null,null,null,null,null,null,null,null,null,null,null,null,null,"0.5-1.5yr",{"$f":"AH213","v":475},null,null,14.25,{"$f":"(AB214*(1-AG206)-AB215)/(AB214-AE214)","v":0.49222002495076078},{"$f":"AB214-AE214-AB215","v":226.79037649606303},233.95962350393697]
[null,null,null,null,null,null,null,null,null,null,null,null,null,null,null,null,null,null,null,null,null,null,null,null,null,null,"1.5-2.5yr",{"$f":"AC202/(1+(1-AG206)*(1-AF215)*(1+(1-AG206)*(1-AF216)*(1+(1-AG206)*(1-AF217)*(1+(1-AG206)*(1-AF218)))))","v":233.95962350393697},null,null,7.0187887051181086,0.05,{"$f":"(AB215-AE215)*AF215","v":11.347041739940943},215.59379305887791]
[null,null,null,null,null,null,null,null,null,null,null,null,null,null,null,null,null,null,null,null,null,null,null,null,null,null,"2.5-3.5yr",{"$f":"AH215","v":215.59379305887791},null,null,6.4678137917663365,0.05,{"$f":"(AB216-AE216)*AF216","v":10.456298963355579},198.669680303756]
[null,null,null,null,null,null,null,null,null,null,null,null,null,null,null,null,null,null,null,null,null,null,null,null,null,null,"3.5-4.5yr",{"$f":"AH216","v":198.669680303756},null,null,5.9600904091126798,0.05,{"$f":"(AB217-AE217)*AF217","v":9.6354794947321665},183.07411039991115]
[null,null,null,null,"Number of Times",null,null,null,null,null,null,null,null,null,null,null,null,null,null,null,null,null,null,null,null,null,"4.5-5.5yr",{"$f":"AH217","v":183.07411039991115},null,null,5.4922233119973338,{"$f":"IF(AC204=5.5,1,5%)","v":0.05},{"$f":"(AB218-AE218)*AF218","v":8.8790943543956917},{"$f":"AB218+AC218+AD218-AE218-AG218","v":168.70279273351812}]
[null,null,"STOCK HEALTH REQUIREMENTS",null,"Number",null,"Drench",null,"Vacc.",null,"Blowfly",null,"DSE",null,null,null,null,null,null,null,null,null,null,null,null,null,"5.5-6.5yr",{"$f":"AH218","v":168.70279273351812},null,null,5.0610837820055439,{"$f":"IF(AC204=6.5,100%,0)","v":1},{"$f":"(AB219-AE219)*AF219","v":163.64170895151258},0]
[null,null,"Ewes",null,{"$f":"'Merino SR Input'!E8","v":1000},null,{"$f":"'Merino SR Input'!F57","v":1},null,{"$f":"'Merino SR Input'!G57","v":1},null,{"$f":"'Merino SR Input'!H57","v":1},null,1.8,null,null,null,null,null,null,null,null,null,null,null,null,null,"Ewes",{"$f":"SUM(AB215:AB219)","v":1000.0000000000001},{"$f":"SUM(AC213:AC217)","v":475},{"$f":"SUM(AD213:AD219)","v":0},{"$f":"SUM(AE213:AE218)","v":39.188916217994461},null,{"$f":"SUM(AG215:AG219)","v":203.95962350393697},{"$f":"SUM(AH214:AH218)","v":1000.0000000000001}]
[null,null,"Ewe hoggets",null,{"$f":"AB222","v":475},null,{"$f":"'Merino SR Input'!F58","v":1},null,{"$f":"'Merino SR Input'!G58","v":1},null,{"$f":"'Merino SR Input'!H58","v":1},null,1.2,null,null,null,null,null,null,null,null,null,null,null,null,null,"d.s.e's",{"$f":"AB214+AC206*(AB215+AB216+AB217+AB218)","v":1805.0755316263712}]
[null,null,"Wether weaners",null,{"$f":"AB228","v":0},null,{"$f":"'Merino SR Input'!F59","v":1},null,{"$f":"'Merino SR Input'!G59","v":1},null,{"$f":"'Merino SR Input'!H59","v":1},null,0.8,null,null,null,null,null,null,null,null,null,null,null,null,null,"Ewe Hoggets",{"$f":"AB214","v":475},null,null,null,null,{"$f":"AG214","v":226.79037649606303},{"$f":"AH213","v":475}]
[null,null,"Merino lambs",null,{"$f":"AC213+AC227","v":950},null,{"$f":"'Merino SR Input'!F60","v":1},null,{"$f":"'Merino SR Input'!G60","v":2},null,{"$f":"'Merino SR Input'!H60","v":0},null,0]
[null,null,"Merino rams",null,{"$f":"AB244","v":25.000000000000004},null,{"$f":"'Merino SR Input'!F61","v":2},null,{"$f":"'Merino SR Input'!G61","v":1},null,{"$f":"'Merino SR Input'!H61","v":1},null,2,null,null,null,null,null,null,null,null,null,null,null,null,null,"WETHERS","OPENING","NATURAL","PURCHASES","DEATHS","% sold","SALES","CLOSING"]
[null,null,null,null,null,null,null,null,null,null,null,null,null,null,null,null,null,null,null,null,null,null,null,null,null,null,"AGE","NUMBERS","INCREASE",null,null,"culled",null,"NUMBERS"]
[]
[null,null,null,null,null,null,null,null,null,null,null,null,null,null,null,null,null,null,null,null,null,null,null,null,null,null,"0-0.5yr",null,{"$f":"AC205*AC202/2","v":475},null,{"$f":"AB227*$AG$206","v":0},{"$f":"IF(AG205=0.5,100%,0)","v":1},{"$f":"AC227*AF227","v":475},{"$f":"AB227+AC227+AD227-AE227-AG227","v":0}]
[null,null,"TOTAL",null,{"$f":"SUM(E220:E227)","v":2450},null,{"$f":"SUMPRODUCT($E$220:$E$227,G220:G227)","v":2475},null,{"$f":"SUMPRODUCT($E$220:$E$227,I220:I227)","v":3400},null,{"$f":"SUMPRODUCT($E$220:$E$227,K220:K227)","v":1500},null,{"$f":"SUMPRODUCT($E$220:$E$227,M220:M227)","v":2420},null,null,null,null,null,null,null,null,null,null,null,null,null,"0.5-1.5yr",{"$f":"AH227","v":0},null,null,0,{"$f":"IF(AG205=1.5,100%,0)","v":0},{"$f":"(AB228-AE228)*AF228","v":0},{"$f":"AB228+AC228+AD228-AE228-AG228","v":0}]
[null,null,"TOTAL VALUE",null,{"$f":"E228*G214","v":376663.2375512672},null,null,null,null,null,null,null,null,null,null,null,null,null,null,null,null,null,null,null,null,null,"1.5-2.5",0,null,null,0,{"$f":"IF(AG205=2.5,100%,0)","v":0},{"$f":"(AB229-AE229)*AF229","v":0}]
[null,null,null,null,null,null,null,null,null,null,null,null,null,null,null,null,null,null,null,null,null,null,null,null,null,null,"Wth lambs",{"$f":"AB227","v":0},{"$f":"AC227","v":475},0,{"$f":"AE227","v":0},null,{"$f":"AG227","v":475},0]
[null,null,null,null,null,null,"Wool Cut kg/hd",null,"Total",null,"Wool Price",null,"Total",null,null,null,null,null,null,null,null,null,null,null,null,null,"Wth hgts",0,0,0,{"$f":"AE228","v":0},null,0,0]
[null,null,"SHEARING",null,"Number",null,null,null,"Greasy kg",null,"cents/kg",null,null,null,null,null,null,null,null,null,null,null,null,null,null,null,"Wethers",0,0,0,{"$f":"AE229","v":0},null,0,0]
[null,null,"Ewes",null,{"$f":"AB220-0.5*AE220","v":980.40554189100294},null,{"$f":"'Merino SR Input'!F43","v":6.5},null,{"$f":"G233*E233","v":6372.6360222915191},null,{"$f":"'Merino SR Input'!G43","v":1236.6000000000001},null,{"$f":"K233*G233*E233/100","v":78804.01705165692},null,null,null,null,null,null,null,null,null,null,null,null,null,"d.s.e's",{"$f":"AB231+AB232","v":0}]
[null,null,"Ewe hoggets",null,{"$f":"AB214-0.5*AE214","v":467.875},null,{"$f":"'Merino SR Input'!F44","v":5.5},null,2573.3125,null,{"$f":"'Merino SR Input'!G44","v":1236.6000000000001},null,31821.582375000002]
[null,null,"Wether weaners",null,{"$f":"AB228-0.5*AE228","v":0},null,{"$f":"'Merino SR Input'!F45","v":5},null,0,null,{"$f":"'Merino SR Input'!G45","v":1236.6000000000001},null,0]
[null,null,"Lambs",null,{"$f":"AC213+AC227","v":950},null,{"$f":"'Merino SR Input'!F46","v":2},null,1900,null,{"$f":"'Merino SR Input'!G46","v":1236.6000000000001},null,23495.400000000005,null,null,null,null,null,null,null,null,null,null,null,null,null,"RAMS","OPENING","NATURAL","PURCHASES","DEATHS","% sold","SALES","CLOSING"]
[null,null,"Merino rams",null,{"$f":"AB244-0.5*AE244","v":24.625000000000004},null,{"$f":"'Merino SR Input'!F47","v":9.5},null,233.93750000000003,null,{"$f":"'Merino SR Input'!G47","v":1236.6000000000001},null,2892.8711250000006,null,null,null,null,null,null,null,null,null,null,null,null,null,"AGE","NUMBERS","INCREASE",null,null,"culled",null,"NUMBERS"]
[]
[null,null,null,null,null,null,null,null,null,null,null,null,null,null,null,null,null,null,null,null,null,null,null,null,null,null,"0.5-1.5yr",null,null,{"$f":"AB240/(1-AF239)","v":6.5383870008497293},null,null,null,{"$f":"AB239+AC239+AD239-AE239-AG239","v":6.5383870008497293}]
[null,null,null,null,null,null,null,null,null,null,null,null,null,null,null,null,null,null,null,null,null,null,null,null,null,null,"1.5-2.5yr",{"$f":"IF(AG204=3,(AC202*AG202)/(1+(1-AG206)*(1-AF240)*(1+(1-AG206)*(1-AF241)*(1+(1-AG206)*(1-AF242)))),IF(AG204=4,(AC202*AG202)/(1+(1-AG206)*(1-AF240)*(1+(1-AG206)*(1-AF241)*(1+(1-AG206)*(1-AF242)*(1+(1-AG206)*(1-AF243))))),0))","v":6.5383870008497293},null,null,{"$f":"AB240*$AG$206","v":0.19615161002549186},0,{"$f":"(SUM(AB240:AD240)-AE240)*AF240","v":0},{"$f":"AB240+AC240+AD240-AE240-AG240","v":6.3422353908242375}]
[null,null,"TOTAL",null,{"$f":"SUM(E233:E239)","v":2422.9055418910029},null,{"$f":"SUMPRODUCT(E233:E234,G233:G234)","v":8945.9485222915191},null,{"$f":"SUM(I233:I239)","v":11079.886022291519},null,null,null,{"$f":"SUM(M233:M239)","v":137013.87055165693},null,null,null,null,null,null,null,null,null,null,null,null,null,"2.5-3.5yr",{"$f":"AH240","v":6.3422353908242375},null,null,0.19026706172472713,0,{"$f":"(SUM(AB241:AD241)-AE241)*AF241","v":0},{"$f":"AB241+AC241+AD241-AE241-AG241","v":6.1519683290995104}]
[null,null,null,null,null,null,null,null,null,null,null,null,null,null,null,null,null,null,null,null,null,null,null,null,null,null,"3.5-4.5yr",{"$f":"AH241","v":6.1519683290995104},null,null,0.1845590498729853,{"$f":"IF(AG204=3,100%,0)","v":0},{"$f":"(SUM(AB242:AD242)-AE242)*AF242","v":0},{"$f":"AB242+AC242+AD242-AE242-AG242","v":5.9674092792265254}]
[null,null,null,null,null,null,null,null,null,null,null,null,null,null,null,null,null,null,null,null,null,null,null,null,null,null,"4.5-5.5yr",{"$f":"AH242","v":5.9674092792265254},null,null,0.17902227837679577,{"$f":"IF(AG204=4,100%,0)","v":1},{"$f":"AB243-AE243","v":5.7883870008497293},{"$f":"AB243+AC243+AD243-AE243-AG243","v":0}]
[null,null,null,null,null,null,"Hay Cost ($/T)",null,"Kg Fed per Week",null,"No of Weeks Feeding",null,"Total Cost ($)",null,null,null,null,null,null,null,null,null,null,null,null,null,null,{"$f":"AB239+AB240+AB241+AB242+AB243","v":25.000000000000004},null,{"$f":"AD239+AD240+AD241+AD242+AD243","v":6.5383870008497293},{"$f":"AE239+AE240+AE241+AE242+AE243","v":0.75},null,{"$f":"AG239+AG240+AG241+AG242+AG243","v":5.7883870008497293},{"$f":"AH239+AH240+AH241+AH242+AH243","v":25.000000000000004}]
[null,null,"FEEDING",null,"Number",null,null,null,null,null,null,null,null,null,null,null,null,null,null,null,null,null,null,null,null,null,"d.s.e's",{"$f":"AB244*2","v":50.000000000000007}]
[null,null,"Ewes",null,{"$f":"'Merino SR Input'!E69","v":1000},null,{"$f":"'Merino SR Input'!F69","v":260},null,{"$f":"'Merino SR Input'!G69","v":2},null,{"$f":"'Merino SR Input'!H69","v":10},null,{"$f":"(E246*G246*I246*K246)/1000","v":5200}]
[null,null,"Weaner",null,{"$f":"'Merino SR Input'!E70","v":0},null,{"$f":"'Merino SR Input'!F70","v":0},null,{"$f":"'Merino SR Input'!G70","v":0},null,{"$f":"'Merino SR Input'!H70","v":0},null,{"$f":"(E247*G247*I247*K247)/1000","v":0}]
[null,null,"Ewe hoggets",null,{"$f":"'Merino SR Input'!E71","v":0},null,{"$f":"'Merino SR Input'!F71","v":0},null,{"$f":"'Merino SR Input'!G71","v":0},null,{"$f":"'Merino SR Input'!H71","v":0},null,0]
[null,null,"Merino lambs",null,{"$f":"'Merino SR Input'!E72","v":0},null,{"$f":"'Merino SR Input'!F72","v":0},null,{"$f":"'Merino SR Input'!G72","v":0},null,{"$f":"'Merino SR Input'!H72","v":0},null,0]
[null,null,"Merino rams",null,{"$f":"'Merino SR Input'!E73","v":0},null,{"$f":"'Merino SR Input'!F73","v":0},null,{"$f":"'Merino SR Input'!G73","v":0},null,{"$f":"'Merino SR Input'!H73","v":0},null,0]
[null,null,null,null,null,null,"Grain Cost ($/T)",null,"Kg Fed per Week",null,"No of Weeks Feeding",null,"Total Cost ($)"]
[null,null,null,null,"Number"]
[null,null,"Ewes",null,{"$f":"'Merino SR Input'!E77","v":1000},null,{"$f":"'Merino SR Input'!F77","v":320},null,{"$f":"'Merino SR Input'!G77","v":2.4},null,{"$f":"'Merino SR Input'!H77","v":10},null,{"$f":"(E253*G253*I253*K253)/1000","v":7680}]
[null,null,"Weaner",null,{"$f":"'Merino SR Input'!E78","v":475},null,{"$f":"'Merino SR Input'!F78","v":500},null,{"$f":"'Merino SR Input'!G78","v":1},null,{"$f":"'Merino SR Input'!H78","v":10},null,{"$f":"(E254*G254*I254*K254)/1000","v":2375}]
[null,null,"Ewe hoggets",null,{"$f":"'Merino SR Input'!E79","v":0},null,{"$f":"'Merino SR Input'!F79","v":0},null,{"$f":"'Merino SR Input'!G79","v":0},null,{"$f":"'Merino SR Input'!H79","v":0},null,0]
[null,null,"Merino lambs",null,{"$f":"'Merino SR Input'!E80","v":0},null,{"$f":"'Merino SR Input'!F80","v":0},null,{"$f":"'Merino SR Input'!G80","v":0},null,{"$f":"'Merino SR Input'!H80","v":0},null,0]
[null,null,"Merino rams",null,{"$f":"'Merino SR Input'!E81","v":0},null,{"$f":"'Merino SR Input'!F81","v":0},null,{"$f":"'Merino SR Input'!G81","v":0},null,{"$f":"'Merino SR Input'!H81","v":0},null,0]
[null,null,"TOTAL FEED COST",null,null,null,null,null,null,null,null,null,{"$f":"SUM(M246:M250,M253:M257)","v":15255}]
[]
[]
[]
[]
[null,null,"GM SENSITIVITY"]
[null,null,"Gross Margin/DSE",null,"Average Greasy Wool Price (c/Kg)"]
[null,null,null,null,null,null,1050,null,1150,null,1237,null,1350,null,1450,null,1550]
[null,null,null,null,125,null,{"$f":"(G$265*$E$34*(1-$K$131)/100+$E266*$E$35*(1-$K$124)-($Q$170-$Q$124-$Q$131))/$Q$6","v":60.481444489482904},null,{"$f":"(I$265*$E$34*(1-$K$131)/100+$E266*$E$35*(1-$K$124)-($Q$170-$Q$124-$Q$131))/$Q$6","v":64.991232808473455},null,{"$f":"(K$265*$E$34*(1-$K$131)/100+$E266*$E$35*(1-$K$124)-($Q$170-$Q$124-$Q$131))/$Q$6","v":68.91474864599526},null,{"$f":"(M$265*$E$34*(1-$K$131)/100+$E266*$E$35*(1-$K$124)-($Q$170-$Q$124-$Q$131))/$Q$6","v":74.010809446454573},null,{"$f":"(O$265*$E$34*(1-$K$131)/100+$E266*$E$35*(1-$K$124)-($Q$170-$Q$124-$Q$131))/$Q$6","v":78.520597765445132},null,{"$f":"(Q$265*$E$34*(1-$K$131)/100+$E266*$E$35*(1-$K$124)-($Q$170-$Q$124-$Q$131))/$Q$6","v":83.030386084435705}]
[null,null,null,null,130,null,62.251787637790336,null,66.761575956780902,null,70.685091794302693,null,75.781152594762005,null,80.290940913752564,null,84.800729232743137]
[null,null,"Average\nSheep Sale\nPrice($/hd)",null,135,null,64.022130786097776,null,68.531919105088335,null,72.455434942610125,null,77.551495743069438,null,82.061284062059997,null,86.57107238105057]
[null,null,null,null,140,null,65.792473934405194,null,70.302262253395767,null,74.225778090917558,null,79.321838891376856,null,83.831627210367429,null,88.341415529358002]
[null,null,null,null,145,null,67.562817082712655,null,72.0726054017032,null,75.996121239224991,null,81.092182039684317,null,85.601970358674862,null,90.111758677665435]
[null,null,null,null,150,null,69.333160231020088,null,73.842948550010632,null,77.766464387532423,null,82.86252518799175,null,87.372313506982294,null,91.882101825972867]
[null,null,null,null,154,null,70.749434749666037,null,75.259223068656581,null,79.182738906178358,null,84.278799706637699,null,88.788588025628258,null,93.298376344618831]
[null,null,null,null,160,null,72.873846527634953,null,77.383634846625526,null,81.307150684147302,null,86.403211484606643,null,90.912999803597188,null,95.422788122587761]
[null,null,null,null,165,null,74.644189675942386,null,79.15397799493293,null,83.077493832454735,null,88.173554632914048,null,92.683342951904592,null,97.193131270895165]
[null,null,null,null,170,null,76.414532824249818,null,80.924321143240391,null,84.847836980762168,null,89.943897781221509,null,94.453686100212053,null,98.963474419202626]
[null,null,null,null,175,null,78.184875972557279,null,82.694664291547824,null,86.6181801290696,null,91.714240929528941,null,96.224029248519486,null,100.73381756751006]
[]
[]
[null,null,"FLOCK STRUCTURE",null,"This table shows the number of merino sheep in each age group at mating"]
[null,null,null,null,"Age Group"]
[null,null,"Class of Sheep",null,"0.5 y.o.",null,"1.5 y.o.",null,"2.5 y.o.",null,"3.5 y.o.",null,"4.5 y.o.",null,"5.5 y.o.",null,"6.5 y.o."]
[null,null,"Ewes",null,{"$f":"$AB214","v":475},null,{"$f":"$AB215","v":233.95962350393697},null,{"$f":"$AB216","v":215.59379305887791},null,{"$f":"$AB217","v":198.669680303756},null,{"$f":"$AB218","v":183.07411039991115},null,{"$f":"$AB219","v":168.70279273351812},null,0]
[null,null,"Wethers",null,{"$f":"$AB228","v":0},null,{"$f":"$AB229","v":0},null,0,null,0,null,0,null,0,null,0]
[null,null,"Rams",null,null,null,{"$f":"$AB240","v":6.5383870008497293},null,{"$f":"$AB241","v":6.3422353908242375},null,{"$f":"$AB242","v":6.1519683290995104},null,{"$f":"$AB243","v":5.9674092792265254},null,0,null,0]

{"sheet":"Wethers Input","index":15,"n_rows":79,"n_cols":10,"rows_kept":79,"cut":false,"hidden":true,"merged":[[4,2,4,9],[36,2,37,4]]}
[]
[null,null,{"$f":"\"WETHERS GROSS  MARGIN - \"&TEXT(m_year,\"0000\")","v":"WETHERS GROSS  MARGIN - 2019"}]
[]
[null,null,"GENERAL INFORMATION"]
[null,null,"This represents a merino wether flock, producing 21 micron wool. Adjust wool price if different micron wool is produced. Following are the various assumptions used in the calculation of the Gross Margin. Cells with yellow highlight can be changed. No allowance has been made for pasture expenses such as seed, fertiliser and chemicals. Refer to pasture gross margins in the “Cropping Gross Margin Plan” for annual and perennial pasture costs. Use the livestock gross margin per DSE as income for the pasture gross margin."]
[]
[null,null,"No of Wethers",null,1000]
[]
[null,null,"Age Wethers sold",null,5.5]
[null,null,"Age Wethers bought",null,0.5]
[]
[]
[null,null,"Flock death Rate",null,0.03]
[null,null,"DSE rating/wether",null,1.2]
[]
[]
[null,null,"LIVESTOCK SALES",null,"Price/Hd","Number","Total"]
[null,null,"Wethers",null,135,{"$f":"ROUND(Wethers!AG220,0)","v":182},{"$f":"E18*F18","v":24570}]
[]
[]
[]
[]
[]
[]
[null,null,"TOTAL SALES",null,null,{"$f":"SUM(F18:F23)","v":182},{"$f":"SUM(G18:G23)","v":24570}]
[]
[]
[null,null,"LIVESTOCK PURCHASES",null,"Price/Hd","Number","Total"]
[null,null,"Wethers",null,120,{"$f":"ROUND(Wethers!AD220,0)","v":212},{"$f":"E29*F29","v":25440}]
[]
[]
[null,null,"TOTAL PURCHASES",null,null,{"$f":"SUM(F29:F30)","v":212},{"$f":"SUM(G29:G30)","v":25440}]
[]
[]
[null,null,"WOOL PRICE (cents/kg)",null,null,{"$f":"TEXT(m_year-3,\"0000\")&\" Average (Clean)\"","v":"2016 Average (Clean)"},{"$f":"TEXT(m_year-2,\"0000\")&\" Average (Clean)\"","v":"2017 Average (Clean)"},{"$f":"TEXT(m_year-1,\"0000\")&\" Average (Clean)\"","v":"2018 Average (Clean)"},"Budget Base (Clean)","Budget Base (Greasy)"]
[null,null,null,null,"Cereal Zone 21 mic 68% yield",1160,1274,1397,1400,952]
[null,null,"Allow 90% to account for lower value of bellies, skirtings etc.",null,null,null,null,null,null,{"$f":"J36*0.9","v":856.80000000000007}]
[]
[]
[]
[null,null,"WOOL SALES - SHEARING",null,null,"Wool Cut","Wool Price"]
[null,null,null,null,"Number","kg/hd","cents/kg"]
[null,null,"Wethers",null,{"$f":"Wethers!E233","v":970.00000000000034},7.5,{"$f":"J37","v":856.80000000000007}]
[]
[]
[]
[]
[]
[]
[]
[null,null,"TOTAL",null,{"$f":"SUM(E43:E50)","v":970.00000000000034},{"$f":"SUMPRODUCT(E43:E49,F43:F49)","v":7275.0000000000027}]
[]
[]
[null,null,"STOCK HEALTH REQUIREMENTS"]
[null,null,null,null,null,null,"      Number of times"]
[null,null,null,null,"Number","Drench","Vacc.","Blowfly"]
[null,null,"Wethers",null,{"$f":"Wethers!E220","v":1000},1,1,1]
[]
[]
[]
[]
[]
[null,null,"TOTAL",null,{"$f":"SUM(E57:E61)","v":1000},{"$f":"SUMPRODUCT($E$57:$E$61,F57:F61)","v":1000},{"$f":"SUMPRODUCT($E$57:$E$61,G57:G61)","v":1000},{"$f":"SUMPRODUCT($E$57:$E$61,H57:H61)","v":1000}]
[]
[]
[null,null,"FEEDING"]
[null,null,"HAY",null,null,"Hay","Kgs Fed","No Weeks","Total"]
[null,null,null,null,"Number","Cost ($/T)","per Week","of Feeding","Cost ($)"]
[null,null,"Wethers",null,{"$f":"Wethers!E220","v":1000},260,1.5,10,{"$f":"(H69*G69*E69)/1000*F69","v":3900}]
[null,null,null,null,null,null,null,null,0]
[null,null,null,null,null,null,null,null,0]
[]
[null,null,"GRAIN",null,null,"Grain","Kgs Fed","No Weeks","Total"]
[null,null,null,null,"Number","Cost ($/T)","per Week","of Feeding","Cost ($)"]
[null,null,"Wethers",null,{"$f":"Wethers!E220","v":1000},320,null,null,{"$f":"(H75*G75*E75)/1000*F75","v":0}]
[null,null,null,null,null,null,null,null,0]
[null,null,null,null,null,null,null,null,0]
[]
[null,null,null,null,null,null,null,"Total Feed Cost",{"$f":"SUM(I69:I71,I75:I77)","v":3900}]

{"sheet":"Wethers","index":16,"n_rows":272,"n_cols":52,"rows_kept":272,"cut":false,"hidden":true,"merged":[[259,4,259,16],[263,2,267,2],[275,4,275,16],[195,10,195,14],[217,4,217,10],[230,6,231,6],[243,10,244,10],[243,6,244,6],[243,8,244,8],[243,12,244,12],[248,6,249,6],[248,8,249,8],[248,10,249,10],[248,12,249,12]]}
[null,null,"WHETHERS"]
[null,null,{"$f":"\"WETHERS  GROSS  MARGIN - \"&TEXT(m_year,\"0000\")","v":"WETHERS  GROSS  MARGIN - 2019"}]
[]
[null,null,"ASSUMPTIONS"]
[]
[null,null,"Ave Wether Fibre Diameter",null,21,null,null,null,null,null,null,null,null,null,"Gross Margin per Ha",null,{"$f":"Q172/E198","v":310.95972066379591}]
[null,null,"Number of Wethers",null,{"$f":"'Wethers Input'!$E$7","v":1000},null,null,null,null,null,null,null,null,null,"Gross Margin per DSE",null,{"$f":"Q174","v":51.826620110632653}]
[null,null,"Stocking Rate (DSE/Ha)",null,{"$f":"E196","v":6},null,null,null,null,null,null,null,null,null,"Gross Margin/Wether",null,{"$f":"Q172/E199","v":62.191944132759183}]
[]
[]
[]
[]
[]
[]
[]
[]
[]
[]
[]
[]
[]
[]
[]
[]
[]
[]
[]
[]
[null,null,null,null,null,null,null,null,null,null,null,null,null,null,null,null,null,null,null,null,null," "]
[]
[]
[null,null,"INCOME",null,null,null,null,null,null,null,null,null,null,null,null,null,"$"]
[]
[null,null,"Wool (kg greasy)",null,{"$f":"I234","v":7275.0000000000027},null,"kg",null,"av price",null,{"$f":"GM_INFO!F96*0.9","v":1236.6000000000001},null,"c/kg",null,null,null,{"$f":"E34*K34/100","v":89962.650000000038}]
[null,null,"Sales",null,{"$f":"E211","v":182.36536362457954},null,"animals",null,"av price",null,{"$f":"G210","v":135},null,"/head",null,null,null,{"$f":"K35*E35","v":24619.324089318237}]
[]
[null,null,"Gross Income",null,null,null,null,null,null,null,null,null,null,null,null,null,{"$f":"SUM(Q34:Q35)","v":114581.97408931828}]
[]
[]
[]
[]
[]
[]
[]
[null,null,null,null,null,null,null,null,null,null,null,null,null,null,null,null,null,null,null,null,null,null,null,null,null,null,"STOCK VALUE AND D.S.E REQUIREMENT"]
[null,null,"VARIABLE COSTS"]
[null,null,"Shearing",null,null,null,null,null,null,null,"Rate"]
[null,null,"Shearing",null,{"$f":"E234","v":970.00000000000034},null,"sheep   ",null,"Reset Rate>","=GM_INFO!C30",{"$f":"GM_INFO!C30","v":310.77},null,"/100",null,null,null,{"$f":"K48/100*ROUND(E48,0)","v":3014.4690000000001}]
[]
[null,null,"Shed labour",null,4,null,"days   ",null,"Reset Rate>","=GM_INFO!C32",{"$f":"GM_INFO!C32","v":234.8},null,"/day",null,null,null,{"$f":"K50*ROUND(E50,0)","v":939.2}]
[null,null,"Woolclasser",null,2,null,"days   ",null,"Reset Rate>","=GM_INFO!C33",{"$f":"GM_INFO!C33","v":297.79000000000002},null,"/day",null,null,null,{"$f":"K51*E51","v":595.58000000000004}]
[null,null,"Superannuation (on ord wages only)",null,null,null,null,null,"Reset Rate>","=GM_INFO!C34",{"$f":"GM_INFO!C34","v":9.5000000000000001E-2},null," wages",null,null,null,{"$f":"(Q48+Q50+Q51)*K52","v":432.17865499999999}]
[null,null,"W/Cover (incl. super + otime etc)",null,null,null,null,null,"Reset Rate>","=GM_INFO!C35",{"$f":"GM_INFO!C35","v":0.04},null," total ",null,null,null,{"$f":"(Q48+Q49+Q50+Q51+Q52)*K53","v":199.25710619999998}]
[null,null,"Wool packs",null,{"$f":"E122","v":42.79411764705884},null,"packs   ",null,"Reset Rate>","=GM_INFO!C28",{"$f":"GM_INFO!C28","v":11.2},null,"/pack",null,null,null,{"$f":"K54*ROUND(E54,0)","v":481.59999999999997}]
[null,null,"Shed sundries",null,{"$f":"E48","v":970.00000000000034},null,"sheep   ",null,"Reset Rate>","=GM_INFO!C36",{"$f":"GM_INFO!C36","v":0.2},null,"/head",null,null,null,194]
[null,null,"Lice control",null,{"$f":"E48","v":970.00000000000034},null,"sheep   ",null,"Reset Rate>","=GM_INFO!C19",{"$f":"GM_INFO!C19","v":1.6768000000000001},null,"/head",null,null,null,1626.4960000000001]
[null,null,"Crutching",null,{"$f":"E228","v":1000},null,"sheep   ",null,"Reset Rate>","=GM_INFO!C38",{"$f":"GM_INFO!C38","v":90.12},null,"/100",null,null,null,{"$f":"K57/100*ROUND(E57,0)","v":901.2}]
[]
[]
[]
[]
[]
[]
[]
[]
[]
[]
[]
[]
[]
[]
[]
[]
[]
[]
[]
[]
[]
[null,null,null,null,null,null,null,null,null,null,null,null,null,null,null,null,null,null,null,null,null,null,null,null,null,null,null,null,null,null,null,null,null,null,null,null,null,null,null,null,null,null,null,null,"RAMS","OPENING","NATURAL","PURCHASES","DEATHS","% sold","SALES","CLOSING"]
[null,null,null,null,null,null,null,null,null,null,null,null,null,null,null,null,null,null,null,null,null,null,null,null,null,null,null,null,null,null,null,null,null,null,null,null,null,null,null,null,null,null,null,null,"AGE","NUMBERS","INCREASE",null,null,"culled",null,"NUMBERS"]
[]
[null,null,null,null,null,null,null,null,null,null,null,null,null,null,null,null,null,null,null,null,null,null,null,null,null,null,null,null,null,null,null,null,null,null,null,null,null,null,null,null,null,null,null,null,"0.5-1.5yr",null,null,{"$f":"AT83/(1-AX82)","v":0},{"$f":"AT82*$R$81","v":0},null,null,{"$f":"AT82+AU82+AV82-AW82-AY82","v":0}]
[null,null,null,null,null,null,null,null,null,null,null,null,null,null,null,null,null,null,null,null,null,null,null,null,null,null,null,null,null,null,null,null,null,null,null,null,null,null,null,null,null,null,null,null,"1.5-2.5yr",{"$f":"IF(AY53=3,(AU51*AY51)/(1+(1-AY55)*(1-AX83)*(1+(1-AY55)*(1-AX84)*(1+(1-AY55)*(1-AX85)))),IF(AY53=4,(AU51*AY51)/(1+(1-AY55)*(1-AX83)*(1+(1-AY55)*(1-AX84)*(1+(1-AY55)*(1-AX85)*(1+(1-AY55)*(1-AX86))))),0))","v":0},null,null,{"$f":"AT83*$R$81","v":0},null,null,{"$f":"AT83+AU83+AV83-AW83-AY83","v":0}]
[null,null,null,null,null,null,null,null,null,null,null,null,null,null,null,null,null,null,null,null,null,null,null,null,null,null,null,null,null,null,null,null,null,null,null,null,null,null,null,null,null,null,null,null,"2.5-3.5yr",{"$f":"AZ83","v":0},null,null,{"$f":"AT84*$R$81","v":0},null,null,{"$f":"AT84+AU84+AV84-AW84-AY84","v":0}]
[null,null,null,null,null,null,null,null,null,null,null,null,null,null,null,null,null,null,null,null,null,null,null,null,null,null,null,null,null,null,null,null,null,null,null,null,null,null,null,null,null,null,null,null,"3.5-4.5yr",{"$f":"AZ84","v":0},null,null,{"$f":"AT85*$R$81","v":0},{"$f":"IF(AY53=3,100%,0)","v":0},{"$f":"(AT85-AW85)*AX85","v":0},{"$f":"AT85+AU85+AV85-AW85-AY85","v":0}]
[null,null,null,null,null,null,null,null,null,null,null,null,null,null,null,null,null,null,null,null,null,null,null,null,null,null,null,null,null,null,null,null,null,null,null,null,null,null,null,null,null,null,null,null,"4.5-5.5yr",{"$f":"AZ85","v":0},null,null,{"$f":"AT86*$R$81","v":0},{"$f":"IF(AY53=4,100%,0)","v":0},{"$f":"AT86-AW86","v":0},{"$f":"AT86+AU86+AV86-AW86-AY86","v":0}]
[null,null,null,null,null,null,null,null,null,null,null,null,null,null,null,null,null,null,null,null,null,null,null,null,null,null,null,null,null,null,null,null,null,null,null,null,null,null,null,null,null,null,null,null,null,{"$f":"AT82+AT83+AT84+AT85+AT86","v":0},null,{"$f":"AV82+AV83+AV84+AV85+AV86","v":0},{"$f":"AW82+AW83+AW84+AW85+AW86","v":0},null,{"$f":"AY82+AY83+AY84+AY85+AY86","v":0},{"$f":"AZ82+AZ83+AZ84+AZ85+AZ86","v":0}]
[null,null,null,null,null,null,null,null,null,null,null,null,null,null,null,null,null,null,null,null,null,null,null,null,null,null,null,null,null,null,null,null,null,null,null,null,null,null,null,null,null,null,null,null,"d.s.e's",{"$f":"AT87*AE49","v":0}]
[null,null,"Animal Health"]
[null,null,"Drench",null,{"$f":"G228","v":1000},null,"sheep",null,"Reset Rate>","=GM_INFO!C21",{"$f":"GM_INFO!C21","v":0.6},null,"/head",null,null,null,{"$f":"K90*ROUND(E90,0)","v":600}]
[null,null,"Vaccinate",null,{"$f":"I228","v":1000},null,"sheep",null,"Reset Rate>","=GM_INFO!C23",{"$f":"GM_INFO!C23","v":0.26400000000000001},null,"/head",null,null,null,264]
[null,null,"Blowfly control",null,{"$f":"K228","v":1000},null,"sheep",null,"Reset Rate>","=GM_INFO!C27",{"$f":"GM_INFO!C27","v":1.44},null,"/head",null,null,null,1440]
[null,null,"Other expenses",null,null,null,"sheep",null,"Reset Rate>",null,null,null,"/head",null,null,null,{"$f":"K93*ROUND(E93,0)","v":0}]
[]
[]
[]
[]
[]
[]
[]
[]
[]
[]
[null,null,"Stock purchases"]
[null,null,"Purchases",null,{"$f":"ROUND(E213,0)","v":212},null,"wethers",null,"Reset Rate>","='WETHERS INPUT'!E29",{"$f":"'Wethers Input'!E29","v":120},null,"/head",null,null,null,{"$f":"K105*E105","v":25440}]
[]
[]
[]
[]
[]
[]
[]
[]
[]
[]
[]
[null,null,"Sale Costs"]
[null,null,"Freight "]
[null,null,"Livestock",null,{"$f":"E211+E213","v":394.73072724915909},null,"sheep",null,"Reset Rate>","=GM_INFO!B111",{"$f":"GM_INFO!B111","v":4},null,"/head",null,null,null,{"$f":"K119*ROUND(E119,0)","v":1580}]
[null,null,null,null,null,null,null,null,"Reset Rate>",null,null,null,"/head"]
[null,null,null,null,null,null,null,null,"Reset Rate>",null,null,null,"/head"]
[null,null,"Wool",null,{"$f":"I234/170","v":42.79411764705884},null,"bales   ",null,"Reset Rate>","=GM_INFO!B114",{"$f":"GM_INFO!B114","v":15},null,"/bale",null,null,null,645]
[null,null,"Stock selling charges"]
[null,null,"Commission/insurance",null,null,null,null,null,"Reset Rate>","=GM_INFO!C48",{"$f":"GM_INFO!C48","v":0.06},null,"gross $",null,null,null,{"$f":"K124*Q35","v":1477.1594453590942}]
[null,null,"Yard fees",null,{"$f":"E211","v":182.36536362457954},null,"head",null,"Reset Rate>","=GM_INFO!C49",{"$f":"GM_INFO!C49","v":0.85},null,"/head",null,null,null,{"$f":"K125*ROUND(E125,0)","v":154.69999999999999}]
[null,null,"Levy trans-sheep",null,{"$f":"E211","v":182.36536362457954},null,"head",null,"Reset Rate>","=GM_INFO!C50",{"$f":"GM_INFO!C50","v":0.2},null,"/head",null,null,null,36.4]
[]
[null,null,"SA sheep industry levy",null,{"$f":"E211","v":182.36536362457954},null,"head",null,"Reset Rate>","=GM_INFO!C52",{"$f":"GM_INFO!C52","v":0.55000000000000004},null,"/head",null,null,null,100.10000000000001]
[null,null,"Wool selling charges"]
[null,null,"Brokerage/testing/insurance",null,null,null,null,null,"Reset Rate>","=GM_INFO!C53",{"$f":"GM_INFO!C53","v":0.27},null,"/kg",null,null,null,{"$f":"K130*E34","v":1964.2500000000009}]
[null,null,"Wool levy",null,null,null,null,null,"Reset Rate>","=GM_INFO!C54",{"$f":"GM_INFO!C54","v":1.4999999999999999E-2},null,"gross",null,null,null,{"$f":"K131*Q34","v":1349.4397500000005}]
[]
[]
[]
[]
[]
[]
[]
[]
[]
[]
[]
[null,null,"Feed and Other Costs"]
[null,null,"Hand Feeding",null,null,null,null,null,null,null,null,null,null,null,null,null,{"$f":"'Wethers Input'!I79","v":3900}]
[]
[null,null,"Insurance    ",null,{"$f":"E239*G239","v":127500},null,"value",null,"Reset Rate>","=GM_INFO!B107",{"$f":"GM_INFO!B107","v":2},null,"/$'000",null,null,null,{"$f":"K146/1000*E146","v":255}]
[null,null,"Water",null,{"$f":"$E$197","v":1200},null,"DSE's",null,"Reset Rate>","=GM_INFO!G79",{"$f":"GM_INFO!G79","v":2.5},null,"/DSE's",null,null,null,{"$f":"K147*E147","v":3000}]
[null,null,"Veh Fuel, R&M",null,1200,null,"DSE's",null,"Reset Rate>","=GM_INFO!G80",{"$f":"GM_INFO!G80","v":1},null,"/DSE's",null,null,null,1200]
[null,null,"Other",null,1200,null,"DSE's",null,"Reset Rate>","=GM_INFO!G81",{"$f":"GM_INFO!G81","v":0.5},null,"/DSE's",null,null,null,600]
[]
[]
[]
[]
[]
[]
[]
[]
[]
[]
[]
[]
[]
[]
[]
[]
[]
[]
[]
[]
[null,null,"TOTAL VARIABLE COSTS",null,null,null,null,null,null,null,null,null,null,null,null,null,{"$f":"SUM(Q48:Q166)","v":52390.02995655909}]
[]
[null,null,"GROSS MARGIN TOTAL ",null,null,null,null,null,null,null,null,null,null,null,null,null,{"$f":"Q37-Q170","v":62191.944132759185}]
[]
[null,null,"GROSS MARGIN/DSE",null,null,null,null,null,null,null,null,null,null,null,null,null,{"$f":"Q172/E197","v":51.826620110632653}]
[]
[]
[]
[]
[]
[]
[]
[]
[]
[]
[]
[]
[]
[]
[]
[]
[]
[]
[]
[null,null,"PRODUCTION DATA"]
[]
[null,null,"Stocking rate (DSE/Ha)",null,6,null,null,null,null,null,"Culling Rate (% from each group)",null,null,null,null,null,"Stock",null,null,null,null,null,null,null,null,null,"SHEEP GROSS MARGIN "]
[null,null,"Total DSE's",null,{"$f":"'Wethers Input'!E7*'Wethers Input'!E14","v":1200},null,null,null,null,null,"Age Group",null,"Ewes",null,"Wethers",null,"No's"]
[null,null,"SHEEP GRAZING AREA",null,{"$f":"E197/E196","v":200},null,null,null,null,null,"0.5",null,null,null,{"$f":"AF214","v":0},null,{"$f":"AH214","v":212.36536362457954}]
[null,null,"Number of wethers",null,{"$f":"'Wethers Input'!E7","v":1000},null,null,null,null,null,"1.5",null,null,null,0,null,205.99440271584217]
[null,null,"Flock death rate  ",null,{"$f":"'Wethers Input'!E13","v":0.03},null,null,null,null,null,"2.5",null,null,null,0,null,199.8145706343669]
[null,null,"Age wethers bought",null,{"$f":"'Wethers Input'!E10","v":0.5},null,null,null,null,null,"3.5",null,null,null,0,null,193.8201335153359]
[null,null,"Age wethers culled",null,{"$f":"'Wethers Input'!E9","v":5.5},null,null,null,null,null,"4.5",null,null,null,0,null,188.00552950987583,null,null,null,null,null,null,null,null,null,"No of wethers",null,{"$f":"'Wethers Input'!E7","v":1000}]
[null,"=VLOOKUP(r[0]c3&\"No Ops\",CHOOSE({1,2},tbl_ops[Name]&tbl_ops[Category],INDIRECT(\"tbl_ops[\"&var_crop&\"]\")),2,0)",null,null,null,null,null,null,null,null,"5.5",null,null,null,1,null,0,null,null,null,null,null,null,null,null,null,"Age wethers purchased",null,{"$f":"E201","v":0.5}]
[null,"=VLOOKUP(r[0]c3&\"No Ops\",CHOOSE({1,2},tbl_ops[Name]&tbl_ops[Category],INDIRECT(\"tbl_ops[\"&var_crop&\"]\")),2,0)",null,null,null,null,null,null,null,null,null,null,null,null,null,null,null,null,null,null,null,null,null,null,null,null,"Age wethers sold",null,{"$f":"E202","v":5.5}]
[null,"=VLOOKUP(r[0]c3&\"No Ops\",CHOOSE({1,2},tbl_ops[Name]&tbl_ops[Category],INDIRECT(\"tbl_ops[\"&var_crop&\"]\")),2,0)",null,null,null,null,null,null,null,null,null,null,null,null,null,null,null,null,null,null,null,null,null,null,null,null,"Flock death rate",null,{"$f":"E200","v":0.03}]
[null,"=VLOOKUP(r[0]c3&\"No Ops\",CHOOSE({1,2},tbl_ops[Name]&tbl_ops[Category],INDIRECT(\"tbl_ops[\"&var_crop&\"]\")),2,0)",null,null,null,null,null,null,null,null,null,null,null,null,null,null,null,null,null,null,null,null,null,null,null,null,"dse/wether",null,{"$f":"'Wethers Input'!E14","v":1.2}]
[]
[null,"=VLOOKUP(r[0]c3&var_rain,CHOOSE({1,2},tbl_ops[Name]&tbl_ops[Rainfall],INDIRECT(\"tbl_ops[\"&var_crop&\"]\")),2,0)"]
[null,"=VLOOKUP(r[0]c3&var_rain,CHOOSE({1,2},tbl_ops[Name]&tbl_ops[Rainfall],INDIRECT(\"tbl_ops[\"&var_crop&\"]\")),2,0)","SALES",null,"Number",null,"Price/hd",null,"Age",null,"Total"]
[null,"=VLOOKUP(r[0]c3&var_rain,CHOOSE({1,2},tbl_ops[Name]&tbl_ops[Rainfall],INDIRECT(\"tbl_ops[\"&var_crop&\"]\")),2,0)","c.f.a wethers",null,{"$f":"AG220","v":182.36536362457954},null,{"$f":"'Wethers Input'!E18","v":135},null,{"$f":"E202","v":5.5},null,{"$f":"ROUND(E210,0)*G210","v":24570}]
[null,"=VLOOKUP(r[0]c3&var_rain,CHOOSE({1,2},tbl_ops[Name]&tbl_ops[Rainfall],INDIRECT(\"tbl_ops[\"&var_crop&\"]\")),2,0)","TOTAL",null,{"$f":"E210","v":182.36536362457954},null,null,null,null,null,{"$f":"K210","v":24570},null,null,null,null,null,null,null,null,null,null,null,null,null,null,null,"WETHERS","OPENING","NATURAL","PURCHASES","DEATHS","% sold","SALES","CLOSING"]
[null,null,"PURCHASES",null,"Number",null,"Price/hd",null,"Age",null,"Total",null,null,null,null,null,null,null,null,null,null,null,null,null,null,null,"AGE","NUMBERS","INCREASE",null,null,"culled",null,"NUMBERS"]
[null,null,"Wethers",null,{"$f":"AD220","v":212.36536362457954},null,{"$f":"'Wethers Input'!E29","v":120},null,{"$f":"E201","v":0.5},null,{"$f":"ROUND(E213,0)*G213","v":25440}]
[null,null,null,null,null,null,null,null,null,null,null,null,null,null,null,null,null,null,null,null,null,null,null,null,null,null,"0-0.5yr",null,null,{"$f":"IF(AC203=0.5,AB215-AE214-AG214,0)","v":212.36536362457954},{"$f":"AB214*$AC$205","v":0},{"$f":"IF(AC204=0.5,100%,0)","v":0},{"$f":"AC214*AF214","v":0},{"$f":"AB214+AC214+AD214-AE214-AG214","v":212.36536362457954}]
[null,null,null,null,null,null,null,null,null,null,null,null,null,null,null,null,null,null,null,null,null,null,null,null,null,null,"0.5-1.5yr",{"$f":"IF(AC203=0.5,AC202/(1+(1-AC205)*(1-AF215)*(1+(1-AC205)*(1-AF216)*(1+(1-AC205)*(1-AF217)*(1+(1-AC205)*(1-AF218))))),0)","v":212.36536362457954},null,{"$f":"IF(AC203=1.5,AB216-AE215-AG215,0)","v":0},6.370960908737386,{"$f":"IF(AC204=1.5,100%,0)","v":0},{"$f":"(AB215-AE215)*AF215","v":0},205.99440271584217]
[null,null,null,null,null,null,null,null,null,null,null,null,null,null,null,null,null,null,null,null,null,null,null,null,null,null,"1.5-2.5yr",{"$f":"IF(AC203=1.5,AC202/(1+(1-AC205)*(1-AF216)*(1+(1-AC205)*(1-AF217)*(1+(1-AC205)*(1-AF218)))),AH215)","v":205.99440271584217},null,null,6.179832081475265,{"$f":"IF(AC204=2.5,100%,0)","v":0},{"$f":"(AB216-AE216)*AF216","v":0},199.8145706343669]
[null,null,null,null,null,null,null,null,null,null,null,null,null,null,null,null,null,null,null,null,null,null,null,null,null,null,"2.5-3.5yr",{"$f":"AH216","v":199.8145706343669},null,null,5.9944371190310068,{"$f":"IF(AC204=3.5,100%,0)","v":0},{"$f":"(AB217-AE217)*AF217","v":0},193.8201335153359]
[null,null,null,null,"Number of Times",null,null,null,null,null,null,null,null,null,null,null,null,null,null,null,null,null,null,null,null,null,"3.5-4.5yr",{"$f":"AH217","v":193.8201335153359},null,null,5.8146040054600769,{"$f":"IF(AC204=4.5,100%,0)","v":0},{"$f":"(AB218-AE218)*AF218","v":0},188.00552950987583]
[null,null,"STOCK HEALTH REQUIREMENTS",null,"Number",null,"Drench",null,"Vacc.",null,"Blowfly",null,null,null,null,null,null,null,null,null,null,null,null,null,null,null,"4.5-5.5yr",{"$f":"AH218","v":188.00552950987583},null,null,5.6401658852962751,{"$f":"IF(AC204=5.5,100%,0)","v":1},{"$f":"(AB219-AE219)*AF219","v":182.36536362457954},0]
[null,null,"Wethers",null,{"$f":"ROUND('Wethers Input'!E7,0)","v":1000},null,{"$f":"'Wethers Input'!F57","v":1},null,{"$f":"'Wethers Input'!G57","v":1},null,{"$f":"'Wethers Input'!H57","v":1},null,null,null,null,null,null,null,null,null,null,null,null,null,null,null,"Total",{"$f":"SUM(AB215:AB219)","v":1000.0000000000003},null,{"$f":"SUM(AD214:AD219)","v":212.36536362457954},{"$f":"SUM(AE214:AE219)","v":30.000000000000007},null,{"$f":"SUM(AG214:AG219)","v":182.36536362457954},{"$f":"SUM(AH214:AH219)","v":1000.0000000000003}]
[null,null,null,null,null,null,null,null,null,null,null,null,null,null,null,null,null,null,null,null,null,null,null,null,null,null,"d.s.e's",{"$f":"AB220*AC206","v":1200.0000000000005}]
[]
[]
[]
[]
[]
[]
[null,null,"TOTAL",null,{"$f":"SUM(E220:E227)","v":1000},null,{"$f":"SUMPRODUCT($E$220:$E$227,G220:G227)","v":1000},null,{"$f":"SUMPRODUCT($E$220:$E$227,I220:I227)","v":1000},null,{"$f":"SUMPRODUCT($E$220:$E$227,K220:K227)","v":1000}]
[]
[]
[null,null,null,null,null,null,"Wool Cut kg/hd",null,"Total",null,"Wool Price"]
[null,null,"SHEARING",null,"Number",null,null,null,"Greasy kg",null,"cents/kg"]
[null,null,"Wethers",null,{"$f":"AB220-AE220","v":970.00000000000034},null,{"$f":"'Wethers Input'!F43","v":7.5},null,{"$f":"G233*E233","v":7275.0000000000027},null,{"$f":"'Wethers Input'!G43","v":856.80000000000007}]
[null,null,"TOTAL",null,{"$f":"E233","v":970.00000000000034},null,null,null,{"$f":"I233","v":7275.0000000000027}]
[]
[]
[null,null,"STOCK VALUE",null,null,null,"Value"]
[null,null,null,null,"Number",null,"$/head"]
[null,null,"Wethers",null,{"$f":"E199","v":1000},null,{"$f":"(G213+G210)/2","v":127.5}]
[null,null,"TOTAL",null,{"$f":"E239","v":1000}]
[]
[]
[]
[null,null,null,null,null,null,"Hay Cost ($/T)",null,"Kg Fed per Week",null,"No of Weeks Feeding",null,"Total Cost ($)"]
[null,null,"FEEDING",null,"Number"]
[null,null,"Wethers",null,{"$f":"'Wethers Input'!E69","v":1000},null,{"$f":"'Wethers Input'!F69","v":260},null,{"$f":"'Wethers Input'!G69","v":1.5},null,{"$f":"'Wethers Input'!H69","v":10},null,{"$f":"(E246*G246*I246*K246)/1000","v":3900}]
[null,null,null,null,{"$f":"'Wethers Input'!E70","v":0},null,{"$f":"'Wethers Input'!F70","v":0},null,{"$f":"'Wethers Input'!G70","v":0},null,{"$f":"'Wethers Input'!H70","v":0},null,0]
[null,null,null,null,{"$f":"'Wethers Input'!E71","v":0},null,{"$f":"'Wethers Input'!F71","v":0},null,{"$f":"'Wethers Input'!G71","v":0},null,{"$f":"'Wethers Input'!H71","v":0},null,0]
[null,null,null,null,null,null,"Grain Cost ($/T)",null,"Kg Fed per Week",null,"No of Weeks Feeding",null,"Total Cost ($)"]
[null,null,null,null,"Number"]
[null,null,"Wethers",null,{"$f":"'Wethers Input'!E75","v":1000},null,{"$f":"'Wethers Input'!F75","v":320},null,{"$f":"'Wethers Input'!G75","v":0},null,{"$f":"'Wethers Input'!H75","v":0},null,{"$f":"(E251*G251*I251*K251)/1000","v":0}]
[null,null,null,null,{"$f":"'Wethers Input'!E76","v":0},null,{"$f":"'Wethers Input'!F76","v":0},null,{"$f":"'Wethers Input'!G76","v":0},null,{"$f":"'Wethers Input'!H76","v":0},null,0]
[null,null,null,null,{"$f":"'Wethers Input'!E77","v":0},null,{"$f":"'Wethers Input'!F77","v":0},null,{"$f":"'Wethers Input'!G77","v":0},null,{"$f":"'Wethers Input'!H77","v":0},null,0]
[null,null,"TOTAL FEED COST",null,null,null,null,null,null,null,null,null,{"$f":"SUM(M246:M248,M251:M253)","v":3900}]
[]
[]
[]
[]
[null,null,"GM SENSITIVITY"]
[null,null,"Gross Margin/DSE",null,"Average Greasy Wool Price (c/Kg)"]
[null,null,null,null,null,null,1050,null,1150,null,1237,null,1350,null,1450,null,1550]
[null,null,null,null,110,null,{"$f":"(G$261*$E$34*(1-$K$131)/100+$E262*$E$35*(1-$K$124)-($Q$170-$Q$124-$Q$131))/$E$197","v":37.112362781317955},null,{"$f":"(I$261*$E$34*(1-$K$131)/100+$E262*$E$35*(1-$K$124)-($Q$170-$Q$124-$Q$131))/$E$197","v":43.08392528131796},null,{"$f":"(K$261*$E$34*(1-$K$131)/100+$E262*$E$35*(1-$K$124)-($Q$170-$Q$124-$Q$131))/$E$197","v":48.27918465631798},null,{"$f":"(M$261*$E$34*(1-$K$131)/100+$E262*$E$35*(1-$K$124)-($Q$170-$Q$124-$Q$131))/$E$197","v":55.027050281317983},null,{"$f":"(O$261*$E$34*(1-$K$131)/100+$E262*$E$35*(1-$K$124)-($Q$170-$Q$124-$Q$131))/$E$197","v":60.998612781317981},null,{"$f":"(Q$261*$E$34*(1-$K$131)/100+$E262*$E$35*(1-$K$124)-($Q$170-$Q$124-$Q$131))/$E$197","v":66.970175281317978}]
[null,null,null,null,115,null,37.826627122180895,null,43.798189622180892,null,48.993448997180906,null,55.741314622180909,null,61.712877122180906,null,67.684439622180903]
[null,null,"Average\nSheep Sale\nPrice($/hd)",null,120,null,38.540891463043835,null,44.512453963043832,null,49.707713338043845,null,56.455578963043848,null,62.427141463043846,null,68.398703963043857]
[null,null,null,null,125,null,39.255155803906767,null,45.226718303906772,null,50.421977678906778,null,57.169843303906781,null,63.141405803906785,null,69.112968303906797]
[null,null,null,null,130,null,39.969420144769707,null,45.940982644769704,null,51.136242019769718,null,57.88410764476972,null,63.855670144769718,null,69.827232644769737]
[null,null,null,null,135,null,40.683684485632646,null,46.655246985632644,null,51.850506360632657,null,58.59837198563266,null,64.569934485632658,null,70.541496985632662]
[null,null,null,null,140,null,41.397948826495579,null,47.369511326495584,null,52.564770701495597,null,59.312636326495593,null,65.284198826495597,null,71.255761326495588]
[null,null,null,null,145,null,42.112213167358519,null,48.083775667358516,null,53.279035042358529,null,60.026900667358532,null,65.998463167358537,null,71.970025667358513]
[null,null,null,null,150,null,42.826477508221458,null,48.798040008221456,null,53.993299383221469,null,60.741165008221472,null,66.712727508221462,null,72.684290008221453]
[null,null,null,null,155,null,43.540741849084391,null,49.512304349084395,null,54.707563724084409,null,61.455429349084405,null,67.426991849084402,null,73.398554349084392]
[null,null,null,null,160,null,44.255006189947331,null,50.226568689947335,null,55.421828064947341,null,62.169693689947344,null,68.141256189947327,null,74.112818689947332]

{"sheet":"Cleanskin Sheep Input","index":17,"n_rows":84,"n_cols":9,"rows_kept":84,"cut":false,"hidden":true,"merged":[[4,2,4,9],[36,2,37,4]]}
[]
[null,null,{"$f":"\"CLEANSKIN SHEEP GROSS  MARGIN - \"&TEXT(m_year,\"0000\")","v":"CLEANSKIN SHEEP GROSS  MARGIN - 2019"}]
[]
[null,null,"GENERAL INFORMATION"]
[null,null,"This represents a fully wool shedding self-replacing flock, with no shearing, crutching or lice control. Assumes only one lambing each year. Following are the various assumptions used in the calculation of the Gross Margin.  Cells with yellow highlight can be changed. No allowance has been made for pasture expenses such as seed, fertiliser and chemicals. Refer to pasture gross margins in the “Cropping Gross Margin Plan” for annual and perennial pasture costs. Use the livestock gross margin per DSE as income for the pasture gross margin."]
[]
[null,null,"Ewes mated",null,1000]
[null,null,"Age ewes 1st mating",null,1.5]
[null,null,"Age ewes sold",null,6.5]
[null,null,"Av Weaning %",null,1.5]
[null,null,"Ram percentage",null,2.5000000000000001E-2]
[null,null,"Years Rams Kept",null,4]
[null,null,"Flock death Rate",null,0.03]
[]
[]
[]
[null,null,"LIVESTOCK SALES",null,"Price/Hd","Number","Total"]
[null,null,"c.f.a Ewes",null,115,{"$f":"ROUND('Cleanskin Sheep'!AG220,0)","v":204},{"$f":"E18*ROUND(F18,0)","v":23460}]
[null,null,"c.f.a Rams",null,80,{"$f":"ROUND('Cleanskin Sheep'!AG244,0)","v":6},480]
[null,null,"ewe hoggets",null,210,{"$f":"ROUND('Cleanskin Sheep'!AG222,0)","v":494},103740]
[null,null,"wether lambs",null,150,{"$f":"ROUND('Cleanskin Sheep'!AG230,0)","v":750},112500]
[]
[]
[]
[null,null,"TOTAL SALES",null,null,{"$f":"SUM(F18:F23)","v":1454},{"$f":"SUM(G18:G23)","v":240180}]
[]
[]
[null,null,"LIVESTOCK PURCHASES",null,"Price/Hd","Number","Total"]
[]
[null,null,"Rams",null,1500,{"$f":"ROUND('Cleanskin Sheep'!AD244,0)","v":7},{"$f":"E30*F30","v":10500}]
[]
[null,null,"TOTAL PURCHASES",null,null,{"$f":"SUM(F29:F30)","v":7},{"$f":"SUM(G29:G30)","v":10500}]
[]
[]
[]
[]
[]
[]
[]
[]
[]
[]
[]
[]
[]
[]
[]
[]
[]
[]
[]
[]
[]
[null,null,"STOCK HEALTH REQUIREMENTS"]
[null,null,null,null,null,null,"      Number of times"]
[null,null,null,null,"Number","Drench","Vacc.","Blowfly","Lice"]
[null,null,"Ewes",null,{"$f":"'Cleanskin Sheep'!E220","v":1000},1,1]
[null,null,"Ewe hoggets",null,{"$f":"'Cleanskin Sheep'!E221","v":750},1,1]
[null,null,"Wether weaners",null,{"$f":"'Cleanskin Sheep'!E222","v":0},1,1]
[null,null,"Lambs",null,{"$f":"'Cleanskin Sheep'!E223","v":1500},1,2]
[null,null,"Rams",null,{"$f":"'Cleanskin Sheep'!E224","v":25},2,1]
[]
[null,null,"TOTAL",null,{"$f":"SUM(E57:E61)","v":3275},{"$f":"SUMPRODUCT($E$57:$E$61,F57:F61)","v":3300},{"$f":"SUMPRODUCT($E$57:$E$61,G57:G61)","v":4775},{"$f":"SUMPRODUCT($E$57:$E$61,H57:H61)","v":0},{"$f":"SUMPRODUCT($E$57:$E$61,I57:I61)","v":0}]
[]
[]
[null,null,"FEEDING"]
[null,null,"HAY",null,null,"Hay","Kgs Fed","No Weeks","Total"]
[null,null,null,null,"Number","Cost ($/T)","per Week","of Feeding","Cost ($)"]
[null,null,"Ewes",null,{"$f":"'Cleanskin Sheep'!E220","v":1000},260,2,10,{"$f":"(H69*G69*E69)/1000*F69","v":5200}]
[null,null,"Weaner",null,null,null,null,null,0]
[null,null,"Ewe hoggets",null,null,null,null,null,0]
[null,null,"Lambs",null,null,null,null,null,0]
[null,null,"Rams",null,null,null,null,null,0]
[null,null,null,null,null,null,null,null,0]
[]
[null,null,"GRAIN",null,null,"Grain","Kgs Fed","No Weeks","Total"]
[null,null,null,null,"Number","Cost ($/T)","per Week","of Feeding","Cost ($)"]
[null,null,"Ewes",null,{"$f":"'Cleanskin Sheep'!E220","v":1000},320,2.4,10,{"$f":"(H78*G78*E78)/1000*F78","v":7680}]
[null,null,"Weaner",null,{"$f":"'Cleanskin Sheep'!E221","v":750},500,1,10,3750]
[null,null,"Ewe hoggets",null,null,null,null,null,0]
[null,null,"Lambs",null,null,null,null,null,0]
[null,null,"Rams",null,null,null,null,null,0]
[]
[null,null,null,null,null,null,null,"Total Feed Cost",{"$f":"SUM(I69:I74,I78:I82)","v":16630}]

{"sheet":"Cleanskin Sheep","index":18,"n_rows":285,"n_cols":52,"rows_kept":285,"cut":false,"hidden":true,"merged":[[263,4,263,16],[267,2,271,2],[279,4,279,16],[217,4,217,12],[195,10,195,14],[230,6,231,6],[243,6,244,6],[243,8,244,8],[243,10,244,10],[243,12,244,12],[250,6,251,6],[250,8,251,8],[250,10,251,10],[250,12,251,12]]}
[null,null,"CLEANSKIN SHEEP"]
[null,null,{"$f":"UPPER(Var_Animal)&\"  GROSS  MARGIN - \"&TEXT(m_year,\"0000\")","v":"CLEANSKIN SHEEP  GROSS  MARGIN - 2019"}]
[]
[null,null,"ASSUMPTIONS"]
[]
[null,null,null,null,null,null,null,null,null,null,null,null,null,null,"Total DSE's",null,{"$f":"E197","v":2750}]
[null,null,"No. of breeding ewes",null,{"$f":"'Cleanskin Sheep Input'!$E$7","v":1000},null,null,null,null,null,null,null,null,null,"Stocking Rate (DSE/Ha)",null,{"$f":"E196","v":6}]
[]
[]
[]
[]
[]
[]
[]
[]
[]
[]
[]
[]
[]
[]
[]
[]
[]
[]
[]
[]
[]
[null,null,null,null,null,null,null,null,null,null,null,null,null,null,null,null,null,null,null,null,null," "]
[]
[]
[null,null,"INCOME",null,null,null,null,null,null,null,null,null,null,null,null,null,"$"]
[]
[]
[null,null,"Sales",null,{"$f":"ROUND(E214,0)","v":1453},null,"animals",null,"av price",null,{"$f":"G214","v":165.26657898619786},null,"/head",null,null,null,{"$f":"I214","v":240180}]
[]
[null,null,"Gross Income",null,null,null,null,null,null,null,null,null,null,null,null,null,{"$f":"SUM(Q34:Q35)","v":240180}]
[]
[]
[]
[]
[]
[]
[]
[null,null,null,null,null,null,null,null,null,null,null,null,null,null,null,null,null,null,null,null,null,null,null,null,null,null,"STOCK VALUE AND D.S.E REQUIREMENT"]
[null,null,"VARIABLE COSTS"]
[]
[]
[]
[]
[]
[]
[]
[]
[]
[]
[]
[]
[]
[]
[]
[]
[]
[]
[]
[]
[]
[]
[]
[]
[]
[]
[]
[]
[null,null,"Marking",null,null,null,null,null,null,null,"Rate"]
[null,null,"Lamb marking",null,{"$f":"E199*E203","v":1500},null,"lambs",null,"Reset Rate>","=GM_INFO!C42",{"$f":"GM_INFO!C42","v":1.1499999999999999},null,"/head",null,null,null,{"$f":"K76*ROUND(E76,0)","v":1724.9999999999998}]
[null,null,"Ear tags",null,{"$f":"E76","v":1500},null,"lambs",null,"Reset Rate>","=GM_INFO!C43",{"$f":"GM_INFO!C43","v":0.43},null,"/head",null,null,null,645]
[]
[null,null,null,null,null,null,null,null,null,null,null,null,null,null,null,null,null,null,null,null,null,null,null,null,null,null,null,null,null,null,null,null,null,null,null,null,null,null,null,null,null,null,null,null,"RAMS","OPENING","NATURAL","PURCHASES","DEATHS","% sold","SALES","CLOSING"]
[null,null,null,null,null,null,null,null,null,null,null,null,null,null,null,null,null,null,null,null,null,null,null,null,null,null,null,null,null,null,null,null,null,null,null,null,null,null,null,null,null,null,null,null,"AGE","NUMBERS","INCREASE",null,null,"culled",null,"NUMBERS"]
[]
[null,null,null,null,null,null,null,null,null,null,null,null,null,null,null,null,null,null,null,null,null,null,null,null,null,null,null,null,null,null,null,null,null,null,null,null,null,null,null,null,null,null,null,null,"0.5-1.5yr",null,null,{"$f":"AT83/(1-AX82)","v":0},{"$f":"AT82*$R$81","v":0},null,null,{"$f":"AT82+AU82+AV82-AW82-AY82","v":0}]
[null,null,null,null,null,null,null,null,null,null,null,null,null,null,null,null,null,null,null,null,null,null,null,null,null,null,null,null,null,null,null,null,null,null,null,null,null,null,null,null,null,null,null,null,"1.5-2.5yr",{"$f":"IF(AY53=3,(AU51*AY51)/(1+(1-AY55)*(1-AX83)*(1+(1-AY55)*(1-AX84)*(1+(1-AY55)*(1-AX85)))),IF(AY53=4,(AU51*AY51)/(1+(1-AY55)*(1-AX83)*(1+(1-AY55)*(1-AX84)*(1+(1-AY55)*(1-AX85)*(1+(1-AY55)*(1-AX86))))),0))","v":0},null,null,{"$f":"AT83*$R$81","v":0},null,null,{"$f":"AT83+AU83+AV83-AW83-AY83","v":0}]
[null,null,null,null,null,null,null,null,null,null,null,null,null,null,null,null,null,null,null,null,null,null,null,null,null,null,null,null,null,null,null,null,null,null,null,null,null,null,null,null,null,null,null,null,"2.5-3.5yr",{"$f":"AZ83","v":0},null,null,{"$f":"AT84*$R$81","v":0},null,null,{"$f":"AT84+AU84+AV84-AW84-AY84","v":0}]
[null,null,null,null,null,null,null,null,null,null,null,null,null,null,null,null,null,null,null,null,null,null,null,null,null,null,null,null,null,null,null,null,null,null,null,null,null,null,null,null,null,null,null,null,"3.5-4.5yr",{"$f":"AZ84","v":0},null,null,{"$f":"AT85*$R$81","v":0},{"$f":"IF(AY53=3,100%,0)","v":0},{"$f":"(AT85-AW85)*AX85","v":0},{"$f":"AT85+AU85+AV85-AW85-AY85","v":0}]
[null,null,null,null,null,null,null,null,null,null,null,null,null,null,null,null,null,null,null,null,null,null,null,null,null,null,null,null,null,null,null,null,null,null,null,null,null,null,null,null,null,null,null,null,"4.5-5.5yr",{"$f":"AZ85","v":0},null,null,{"$f":"AT86*$R$81","v":0},{"$f":"IF(AY53=4,100%,0)","v":0},{"$f":"AT86-AW86","v":0},{"$f":"AT86+AU86+AV86-AW86-AY86","v":0}]
[null,null,null,null,null,null,null,null,null,null,null,null,null,null,null,null,null,null,null,null,null,null,null,null,null,null,null,null,null,null,null,null,null,null,null,null,null,null,null,null,null,null,null,null,null,{"$f":"AT82+AT83+AT84+AT85+AT86","v":0},null,{"$f":"AV82+AV83+AV84+AV85+AV86","v":0},{"$f":"AW82+AW83+AW84+AW85+AW86","v":0},null,{"$f":"AY82+AY83+AY84+AY85+AY86","v":0},{"$f":"AZ82+AZ83+AZ84+AZ85+AZ86","v":0}]
[null,null,null,null,null,null,null,null,null,null,null,null,null,null,null,null,null,null,null,null,null,null,null,null,null,null,null,null,null,null,null,null,null,null,null,null,null,null,null,null,null,null,null,null,"d.s.e's",{"$f":"AT87*AE49","v":0}]
[null,null,"Animal Health"]
[null,null,"Drench",null,{"$f":"G228","v":3300},null,"sheep",null,"Reset Rate>","=GM_INFO!C21",{"$f":"GM_INFO!C21","v":0.6},null,"/head",null,null,null,{"$f":"K90*ROUND(E90,0)","v":1980}]
[null,null,"Vaccinate",null,{"$f":"I228","v":4775},null,"sheep",null,"Reset Rate>","=GM_INFO!C23",{"$f":"GM_INFO!C23","v":0.26400000000000001},null,"/head",null,null,null,1260.6000000000001]
[null,null,"Blowfly control",null,{"$f":"K228","v":0},null,"sheep",null,"Reset Rate>","=GM_INFO!C27",{"$f":"GM_INFO!C27","v":1.44},null,"/head",null,null,null,0]
[null,null,"Lice control",null,{"$f":"M228","v":0},null,"sheep",null,"Reset Rate>","=GM_INFO!C19",{"$f":"GM_INFO!C19","v":1.6768000000000001},null,"/head",null,null,null,{"$f":"K93*ROUND(E93,0)","v":0}]
[]
[]
[]
[]
[]
[]
[]
[]
[]
[]
[null,null,"Stock purchases"]
[null,null,"Purchases",null,{"$f":"ROUND(AD244,0)","v":7},null,"rams",null,"Reset Rate>","='Cleanskin sheep input'!E30",{"$f":"'Cleanskin Sheep Input'!E30","v":1500},null,"/head",null,null,null,{"$f":"K105*E105","v":10500}]
[]
[]
[]
[]
[]
[]
[]
[]
[]
[]
[]
[null,null,"Sale Costs"]
[null,null,"Freight "]
[null,null,"ewes",null,{"$f":"E210","v":203.95962350393697},null,"sheep",null,"Reset Rate>","=GM_INFO!B111",{"$f":"GM_INFO!B111","v":4},null,"/head",null,null,null,{"$f":"K119*ROUND(E119,0)","v":816}]
[null,null,"rams",null,5.7883870008497293,null,"sheep",null,"Reset Rate>","=GM_INFO!B115",{"$f":"GM_INFO!B115","v":4},null,"/head",null,null,null,24]
[null,null,"hoggets",null,493.540376496063,null,"sheep",null,"Reset Rate>","=GM_INFO!B116",{"$f":"GM_INFO!B116","v":4},null,"/head",null,null,null,1976]
[null,null,"lambs   ",null,750,null,"sheep",null,"Reset Rate>","=GM_INFO!B113",{"$f":"GM_INFO!B113","v":4},null,"/head",null,null,null,{"$f":"K122*ROUND(E122,0)","v":3000}]
[null,null,"Stock selling charges"]
[null,null,"Commission/insurance",null,null,null,null,null,"Reset Rate>","=GM_INFO!C48",{"$f":"GM_INFO!C48","v":0.06},null,"gross $",null,null,null,{"$f":"K124*Q35","v":14410.8}]
[null,null,"Yard fees",null,{"$f":"E214","v":1453.2883870008498},null,"head",null,"Reset Rate>","=GM_INFO!C49",{"$f":"GM_INFO!C49","v":0.85},null,"/head",null,null,null,{"$f":"K125*ROUND(E125,0)","v":1235.05}]
[null,null,"Levy trans-sheep",null,{"$f":"SUM(E210:E212)","v":703.28838700084975},null,"head",null,"Reset Rate>","=GM_INFO!C50",{"$f":"GM_INFO!C50","v":0.2},null,"/head",null,null,null,140.6]
[null,null,"Levy trans-lambs",null,{"$f":"E213","v":750},null,"head",null,"Reset Rate>","=GM_INFO!C51",{"$f":"GM_INFO!C51","v":1.5},null,"/head",null,null,null,1125]
[null,null,"SA sheep industry levy",null,{"$f":"E214","v":1453.2883870008498},null,"head",null,"Reset Rate>","=GM_INFO!C52",{"$f":"GM_INFO!C52","v":0.55000000000000004},null,"/head",null,null,null,799.15000000000009]
[]
[]
[]
[]
[]
[]
[]
[]
[]
[]
[]
[]
[]
[]
[null,null,"Feed and Other Costs"]
[null,null,"Hand Feeding",null,null,null,null,null,null,null,null,null,null,null,null,null,{"$f":"'Cleanskin Sheep Input'!I84","v":16630}]
[]
[null,null,"Insurance    ",null,{"$f":"E229","v":541248.04617979797},null,"value",null,"Reset Rate>","=GM_INFO!B107",{"$f":"GM_INFO!B107","v":2},null,"/$'000",null,null,null,{"$f":"K146/1000*E146","v":1082.4960923595959}]
[null,null,"Water",null,{"$f":"$E$197","v":2750},null,"DSE's",null,"Reset Rate>","=GM_INFO!h79",{"$f":"GM_INFO!H79","v":2.5},null,"/DSE's",null,null,null,{"$f":"K147*E147","v":6875}]
[null,null,"Veh Fuel, R&M",null,2750,null,"DSE's",null,"Reset Rate>","=GM_INFO!h80",{"$f":"GM_INFO!H80","v":0.8},null,"/DSE's",null,null,null,2200]
[null,null,"Other",null,2750,null,"DSE's",null,"Reset Rate>","=GM_INFO!h81",{"$f":"GM_INFO!H81","v":0.5},null,"/DSE's",null,null,null,1375]
[]
[]
[]
[]
[]
[]
[]
[]
[]
[]
[]
[]
[]
[]
[]
[]
[]
[]
[]
[]
[null,null,"TOTAL VARIABLE COSTS",null,null,null,null,null,null,null,null,null,null,null,null,null,{"$f":"SUM(Q48:Q166)","v":67799.696092359591}]
[]
[null,null,"GROSS MARGIN TOTAL ",null,null,null,null,null,null,null,null,null,null,null,null,null,{"$f":"Q37-Q170","v":172380.30390764039}]
[]
[null,null,"GROSS MARGIN/DSE",null,null,null,null,null,null,null,null,null,null,null,null,null,{"$f":"Q172/Q6","v":62.683746875505598}]
[]
[]
[]
[]
[]
[]
[]
[]
[]
[]
[]
[]
[]
[]
[]
[]
[]
[]
[]
[null,null,"PRODUCTION DATA"]
[]
[null,null,"Stocking rate (DSE/Ha)",null,6,null,null,null,null,null,"Culling Rate (% from each group)",null,null,null,null,null,null,null,null,null,null,null,null,null,null,null,"SHEEP GROSS MARGIN "]
[null,null,"Total DSE's",null,{"$f":"O228","v":2750},null,null,null,null,null,"Age Group",null,"Ewes",null,"Wethers",null,null,null,null,null,null,null,null,null,null,null,"PRIME LAMB - "]
[null,null,"SHEEP GRAZING AREA",null,{"$f":"E197/E196","v":458.33333333333331},null,null,null,null,null,"0.5",null,{"$f":"AF213","v":0},null,{"$f":"AF227","v":1}]
[null,null,"Number of ewes mated",null,{"$f":"'Cleanskin Sheep Input'!E7","v":1000},null,null,null,null,null,"1.5",null,0.67840601580214843,null,0]
[null,null,"Ram percentage",null,{"$f":"'Cleanskin Sheep Input'!E11","v":2.5000000000000001E-2},null,null,null,null,null,"2.5",null,0.05,null,0]
[null,null,"Years rams kept",null,{"$f":"'Cleanskin Sheep Input'!E12","v":4},null,null,null,null,null,"3.5",null,0.05,null,0]
[null,null,"Flock death rate  ",null,{"$f":"'Cleanskin Sheep Input'!E13","v":0.03},null,null,null,null,null,"4.5",null,0.05,null,0,null,null,null,null,null,null,null,null,null,null,null,"Ewes mated",null,{"$f":"'Cleanskin Sheep Input'!E7","v":1000},null,null,"Ram %",{"$f":"E200","v":2.5000000000000001E-2}]
[null,"=VLOOKUP(r[0]c3&\"No Ops\",CHOOSE({1,2},tbl_ops[Name]&tbl_ops[Category],INDIRECT(\"tbl_ops[\"&var_crop&\"]\")),2,0)","Average weaning rate ",null,{"$f":"AC205","v":1.5},null,null,null,null,null,"5.5",null,0.05,null,0,null,null,null,null,null,null,null,null,null,null,null,"Age at 1st mating",null,{"$f":"'Cleanskin Sheep Input'!E8","v":1.5},null,null,"Price of rams",{"$f":"'Cleanskin Sheep Input'!E30","v":1500}]
[null,"=VLOOKUP(r[0]c3&\"No Ops\",CHOOSE({1,2},tbl_ops[Name]&tbl_ops[Category],INDIRECT(\"tbl_ops[\"&var_crop&\"]\")),2,0)","Age wethers sold",null,{"$f":"AG205","v":0.5},null,null,null,null,null,"6.5",null,1,null,0,null,null,null,null,null,null,null,null,null,null,null,"Age ewes sold",null,{"$f":"'Cleanskin Sheep Input'!E9","v":6.5},null,null,"Years rams kept",{"$f":"E201","v":4}]
[null,"=VLOOKUP(r[0]c3&\"No Ops\",CHOOSE({1,2},tbl_ops[Name]&tbl_ops[Category],INDIRECT(\"tbl_ops[\"&var_crop&\"]\")),2,0)",null,null,null,null,null,null,null,null,null,null,null,null,null,null,null,null,null,null,null,null,null,null,null,null,"Av Weaning %",null,{"$f":"'Cleanskin Sheep Input'!E10","v":1.5},null,null,"Age wethers sold",0.5]
[null,"=VLOOKUP(r[0]c3&\"No Ops\",CHOOSE({1,2},tbl_ops[Name]&tbl_ops[Category],INDIRECT(\"tbl_ops[\"&var_crop&\"]\")),2,0)",null,null,null,null,null,null,null,null,null,null,null,null,null,null,null,null,null,null,null,null,null,null,null,null,"dse/ewe",null,1.6,null,null,"Flock death rate",{"$f":"E202","v":0.03}]
[]
[null,"=VLOOKUP(r[0]c3&var_rain,CHOOSE({1,2},tbl_ops[Name]&tbl_ops[Rainfall],INDIRECT(\"tbl_ops[\"&var_crop&\"]\")),2,0)"]
[null,"=VLOOKUP(r[0]c3&var_rain,CHOOSE({1,2},tbl_ops[Name]&tbl_ops[Rainfall],INDIRECT(\"tbl_ops[\"&var_crop&\"]\")),2,0)","SALES",null,"Number",null,"Price/hd",null,"Total"]
[null,"=VLOOKUP(r[0]c3&var_rain,CHOOSE({1,2},tbl_ops[Name]&tbl_ops[Rainfall],INDIRECT(\"tbl_ops[\"&var_crop&\"]\")),2,0)","c.f.a ewes",null,{"$f":"AG220","v":203.95962350393697},null,{"$f":"'Cleanskin Sheep Input'!E18","v":115},null,{"$f":"ROUND(E210,0)*G210","v":23460}]
[null,"=VLOOKUP(r[0]c3&var_rain,CHOOSE({1,2},tbl_ops[Name]&tbl_ops[Rainfall],INDIRECT(\"tbl_ops[\"&var_crop&\"]\")),2,0)","c.f.a rams",null,{"$f":"AG244","v":5.7883870008497293},null,{"$f":"'Cleanskin Sheep Input'!E19","v":80},null,480,null,null,null,null,null,null,null,null,null,null,null,null,null,null,null,null,null,"EWES","OPENING","NATURAL","PURCHASES","DEATHS","% sold","SALES","CLOSING"]
[null,null,"Ewe hoggets",null,{"$f":"AG222","v":493.540376496063},null,{"$f":"'Cleanskin Sheep Input'!E20","v":210},null,103740,null,null,null,null,null,null,null,null,null,null,null,null,null,null,null,null,null,"AGE","NUMBERS","INCREASE",null,null,"culled",null,"NUMBERS"]
[null,null,"Wether lambs",null,{"$f":"AG230","v":750},null,{"$f":"'Cleanskin Sheep Input'!E21","v":150},null,112500,null,null,null,null,null,null,null,null,null,null,null,null,null,null,null,null,null,"0-0.5yr",null,{"$f":"AC202*AC205/2","v":750},null,{"$f":"AB213*$AG$206","v":0},0,{"$f":"AC213*AF213","v":0},{"$f":"AB213+AC213+AD213-AE213-AG213","v":750}]
[null,null,"TOTAL",null,{"$f":"SUM(E210:E213)","v":1453.2883870008498},null,{"$f":"I214/E214","v":165.26657898619786},null,{"$f":"SUM(I210:I213)","v":240180},null,null,null,null,null,null,null,null,null,null,null,null,null,null,null,null,null,"0.5-1.5yr",{"$f":"AH213","v":750},null,null,22.5,{"$f":"(AB214*(1-AG206)-AB215)/(AB214-AE214)","v":0.67840601580214843},{"$f":"AB214-AE214-AB215","v":493.540376496063},233.959623503937]
[null,null,null,null,null,null,null,null,null,null,null,null,null,null,null,null,null,null,null,null,null,null,null,null,null,null,"1.5-2.5yr",{"$f":"AC202/(1+(1-AG206)*(1-AF215)*(1+(1-AG206)*(1-AF216)*(1+(1-AG206)*(1-AF217)*(1+(1-AG206)*(1-AF218)))))","v":233.95962350393697},null,null,7.0187887051181086,0.05,{"$f":"(AB215-AE215)*AF215","v":11.347041739940943},215.59379305887791]
[null,null,null,null,null,null,null,null,null,null,null,null,null,null,null,null,null,null,null,null,null,null,null,null,null,null,"2.5-3.5yr",{"$f":"AH215","v":215.59379305887791},null,null,6.4678137917663365,0.05,{"$f":"(AB216-AE216)*AF216","v":10.456298963355579},198.669680303756]
[null,null,null,null,null,null,null,null,null,null,null,null,null,null,null,null,null,null,null,null,null,null,null,null,null,null,"3.5-4.5yr",{"$f":"AH216","v":198.669680303756},null,null,5.9600904091126798,0.05,{"$f":"(AB217-AE217)*AF217","v":9.6354794947321665},183.07411039991115]
[null,null,null,null,"Number of Times",null,null,null,null,null,null,null,null,null,null,null,null,null,null,null,null,null,null,null,null,null,"4.5-5.5yr",{"$f":"AH217","v":183.07411039991115},null,null,5.4922233119973338,{"$f":"IF(AC204=5.5,1,5%)","v":0.05},{"$f":"(AB218-AE218)*AF218","v":8.8790943543956917},{"$f":"AB218+AC218+AD218-AE218-AG218","v":168.70279273351812}]
[null,null,"STOCK HEALTH REQUIREMENTS",null,"Number",null,"Drench",null,"Vacc.",null,"Blowfly",null,"Lice",null,"DSE",null,null,null,null,null,null,null,null,null,null,null,"5.5-6.5yr",{"$f":"AH218","v":168.70279273351812},null,null,5.0610837820055439,{"$f":"IF(AC204=6.5,100%,0)","v":1},{"$f":"(AB219-AE219)*AF219","v":163.64170895151258},0]
[null,null,"Ewes",null,{"$f":"ROUND('Cleanskin Sheep Input'!E7,0)","v":1000},null,{"$f":"'Cleanskin Sheep Input'!F57","v":1},null,{"$f":"'Cleanskin Sheep Input'!G57","v":1},null,{"$f":"'Cleanskin Sheep Input'!H57","v":0},null,{"$f":"'Cleanskin Sheep Input'!I57","v":0},null,1.8,null,null,null,null,null,null,null,null,null,null,null,"Ewes",{"$f":"SUM(AB215:AB219)","v":1000.0000000000001},{"$f":"SUM(AC213:AC217)","v":750},{"$f":"SUM(AD213:AD219)","v":0},{"$f":"SUM(AE213:AE218)","v":47.438916217994461},null,{"$f":"SUM(AG215:AG219)","v":203.95962350393697},{"$f":"SUM(AH214:AH218)","v":1000.0000000000001}]
[null,null,"Ewe hoggets",null,{"$f":"ROUND(AB222,0)","v":750},null,{"$f":"'Cleanskin Sheep Input'!F58","v":1},null,{"$f":"'Cleanskin Sheep Input'!G58","v":1},null,{"$f":"'Cleanskin Sheep Input'!H58","v":0},null,{"$f":"'Cleanskin Sheep Input'!I58","v":0},null,1.2,null,null,null,null,null,null,null,null,null,null,null,"d.s.e's",{"$f":"AB214+AC206*(AB215+AB216+AB217+AB218)","v":2080.0755316263712}]
[null,null,"Wether weaners",null,{"$f":"ROUND(AB228,0)","v":0},null,{"$f":"'Cleanskin Sheep Input'!F59","v":1},null,{"$f":"'Cleanskin Sheep Input'!G59","v":1},null,{"$f":"'Cleanskin Sheep Input'!H59","v":0},null,{"$f":"'Cleanskin Sheep Input'!I59","v":0},null,0.8,null,null,null,null,null,null,null,null,null,null,null,"Ewe Hoggets",{"$f":"AB214","v":750},null,null,null,null,{"$f":"AG214","v":493.540376496063},{"$f":"AH213","v":750}]
[null,null,"Lambs",null,{"$f":"ROUND(AC213+AC227,0)","v":1500},null,{"$f":"'Cleanskin Sheep Input'!F60","v":1},null,{"$f":"'Cleanskin Sheep Input'!G60","v":2},null,{"$f":"'Cleanskin Sheep Input'!H60","v":0},null,{"$f":"'Cleanskin Sheep Input'!I60","v":0},null,0,null,null,null,null,null,null,null,null,null,null,null,"Ewe lambs",null,null,null,null,null,{"$f":"AG213","v":0}]
[null,null,"Rams",null,{"$f":"ROUND(AB244,0)","v":25},null,{"$f":"'Cleanskin Sheep Input'!F61","v":2},null,{"$f":"'Cleanskin Sheep Input'!G61","v":1},null,{"$f":"'Cleanskin Sheep Input'!H61","v":0},null,{"$f":"'Cleanskin Sheep Input'!I61","v":0},null,2,null,null,null,null,null,null,null,null,null,null,null,"WETHERS","OPENING","NATURAL","PURCHASES","DEATHS","% sold","SALES","CLOSING"]
[null,null,null,null,null,null,null,null,null,null,null,null,null,null,null,null,null,null,null,null,null,null,null,null,null,null,"AGE","NUMBERS","INCREASE",null,null,"culled",null,"NUMBERS"]
[]
[null,null,null,null,null,null,null,null,null,null,null,null,null,null,null,null,null,null,null,null,null,null,null,null,null,null,"0-0.5yr",null,{"$f":"AC202*AC205/2","v":750},null,{"$f":"AB227*$AG$206","v":0},{"$f":"IF(AG205=0.5,100%,0)","v":1},{"$f":"AC227*AF227","v":750},{"$f":"AB227+AC227+AD227-AE227-AG227","v":0}]
[null,null,"TOTAL",null,{"$f":"SUM(E220:E227)","v":3275},null,{"$f":"SUMPRODUCT($E$220:$E$227,G220:G227)","v":3300},null,{"$f":"SUMPRODUCT($E$220:$E$227,I220:I227)","v":4775},null,{"$f":"SUMPRODUCT($E$220:$E$227,K220:K227)","v":0},null,{"$f":"SUMPRODUCT($E$220:$E$227,M220:M227)","v":0},null,{"$f":"SUMPRODUCT($E$220:$E$227,O220:O227)","v":2750},null,null,null,null,null,null,null,null,null,null,null,"0.5-1.5yr",{"$f":"AH227","v":0},null,null,{"$f":"AB228*$AG$206","v":0},{"$f":"IF(AG205=1.5,100%,0)","v":0},{"$f":"(AB228-AE228)*AF228","v":0},{"$f":"AB228+AC228+AD228-AE228-AG228","v":0}]
[null,null,"TOTAL VALUE",null,{"$f":"E228*G214","v":541248.04617979797},null,null,null,null,null,null,null,null,null,null,null,null,null,null,null,null,null,null,null,null,null,"1.5-2.5",{"$f":"AH228","v":0},null,null,{"$f":"AB229*$AG$206","v":0},{"$f":"IF(AG205=2.5,100%,0)","v":0},{"$f":"(AB229-AE229)*AF229","v":0}]
[null,null,null,null,null,null,null,null,null,null,null,null,null,null,null,null,null,null,null,null,null,null,null,null,null,null,"Wth lambs",{"$f":"AB227","v":0},{"$f":"AC227","v":750},{"$f":"AD227","v":0},0,null,{"$f":"AG227","v":750},0]
[null,null,null,null,null,null,null,null,null,null,null,null,null,null,null,null,null,null,null,null,null,null,null,null,null,null,"Wth hgts",0,0,0,0,null,0,0]
[null,null,null,null,null,null,null,null,null,null,null,null,null,null,null,null,null,null,null,null,null,null,null,null,null,null,"Wethers",0,0,0,0,null,0,0]
[null,null,null,null,null,null,null,null,null,null,null,null,null,null,null,null,null,null,null,null,null,null,null,null,null,null,"d.s.e's",{"$f":"AB231+AB232","v":0}]
[]
[]
[null,null,null,null,null,null,null,null,null,null,null,null,null,null,null,null,null,null,null,null,null,null,null,null,null,null,"RAMS","OPENING","NATURAL","PURCHASES","DEATHS","% sold","SALES","CLOSING"]
[null,null,null,null,null,null,null,null,null,null,null,null,null,null,null,null,null,null,null,null,null,null,null,null,null,null,"AGE","NUMBERS","INCREASE",null,null,"culled",null,"NUMBERS"]
[]
[null,null,null,null,null,null,null,null,null,null,null,null,null,null,null,null,null,null,null,null,null,null,null,null,null,null,"0.5-1.5yr",null,null,{"$f":"AB240/(1-AF239)","v":6.5383870008497293},null,null,null,{"$f":"AB239+AC239+AD239-AE239-AG239","v":6.5383870008497293}]
[null,null,null,null,null,null,null,null,null,null,null,null,null,null,null,null,null,null,null,null,null,null,null,null,null,null,"1.5-2.5yr",{"$f":"IF(AG204=3,(AC202*AG202)/(1+(1-AG206)*(1-AF240)*(1+(1-AG206)*(1-AF241)*(1+(1-AG206)*(1-AF242)))),IF(AG204=4,(AC202*AG202)/(1+(1-AG206)*(1-AF240)*(1+(1-AG206)*(1-AF241)*(1+(1-AG206)*(1-AF242)*(1+(1-AG206)*(1-AF243))))),0))","v":6.5383870008497293},null,null,{"$f":"AB240*$AG$206","v":0.19615161002549186},0,{"$f":"(SUM(AB240:AD240)-AE240)*AF240","v":0},{"$f":"AB240+AC240+AD240-AE240-AG240","v":6.3422353908242375}]
[null,null,null,null,null,null,null,null,null,null,null,null,null,null,null,null,null,null,null,null,null,null,null,null,null,null,"2.5-3.5yr",{"$f":"AH240","v":6.3422353908242375},null,null,{"$f":"AB241*$AG$206","v":0.19026706172472713},0,{"$f":"(SUM(AB241:AD241)-AE241)*AF241","v":0},{"$f":"AB241+AC241+AD241-AE241-AG241","v":6.1519683290995104}]
[null,null,null,null,null,null,null,null,null,null,null,null,null,null,null,null,null,null,null,null,null,null,null,null,null,null,"3.5-4.5yr",{"$f":"AH241","v":6.1519683290995104},null,null,{"$f":"AB242*$AG$206","v":0.1845590498729853},{"$f":"IF(AG204=3,100%,0)","v":0},{"$f":"(SUM(AB242:AD242)-AE242)*AF242","v":0},{"$f":"AB242+AC242+AD242-AE242-AG242","v":5.9674092792265254}]
[null,null,null,null,null,null,null,null,null,null,null,null,null,null,null,null,null,null,null,null,null,null,null,null,null,null,"4.5-5.5yr",{"$f":"AH242","v":5.9674092792265254},null,null,{"$f":"AB243*$AG$206","v":0.17902227837679577},{"$f":"IF(AG204=4,100%,0)","v":1},{"$f":"AB243-AE243","v":5.7883870008497293},{"$f":"AB243+AC243+AD243-AE243-AG243","v":0}]
[null,null,null,null,null,null,"Hay Cost ($/T)",null,"Kg Fed per Week",null,"No of Weeks Feeding",null,"Total Cost ($)",null,null,null,null,null,null,null,null,null,null,null,null,null,null,{"$f":"AB239+AB240+AB241+AB242+AB243","v":25.000000000000004},null,{"$f":"AD239+AD240+AD241+AD242+AD243","v":6.5383870008497293},{"$f":"AE239+AE240+AE241+AE242+AE243","v":0.75},null,{"$f":"AG239+AG240+AG241+AG242+AG243","v":5.7883870008497293},{"$f":"AH239+AH240+AH241+AH242+AH243","v":25.000000000000004}]
[null,null,"FEEDING",null,"Number",null,null,null,null,null,null,null,null,null,null,null,null,null,null,null,null,null,null,null,null,null,"d.s.e's",{"$f":"AB244*2","v":50.000000000000007}]
[null,null,"Ewes",null,{"$f":"'Cleanskin Sheep Input'!E69","v":1000},null,{"$f":"'Cleanskin Sheep Input'!F69","v":260},null,{"$f":"'Cleanskin Sheep Input'!G69","v":2},null,{"$f":"'Cleanskin Sheep Input'!H69","v":10},null,{"$f":"(E246*G246*I246*K246)/1000","v":5200}]
[null,null,"Weaner",null,{"$f":"'Cleanskin Sheep Input'!E70","v":0},null,{"$f":"'Cleanskin Sheep Input'!F70","v":0},null,{"$f":"'Cleanskin Sheep Input'!G70","v":0},null,{"$f":"'Cleanskin Sheep Input'!H70","v":0},null,{"$f":"(E247*G247*I247*K247)/1000","v":0}]
[null,null,"Ewe hoggets",null,{"$f":"'Cleanskin Sheep Input'!E71","v":0},null,{"$f":"'Cleanskin Sheep Input'!F71","v":0},null,{"$f":"'Cleanskin Sheep Input'!G71","v":0},null,{"$f":"'Cleanskin Sheep Input'!H71","v":0},null,0]
[null,null,"Lambs",null,{"$f":"'Cleanskin Sheep Input'!E72","v":0},null,{"$f":"'Cleanskin Sheep Input'!F72","v":0},null,{"$f":"'Cleanskin Sheep Input'!G72","v":0},null,{"$f":"'Cleanskin Sheep Input'!H72","v":0},null,0]
[null,null,"Rams",null,{"$f":"'Cleanskin Sheep Input'!E73","v":0},null,{"$f":"'Cleanskin Sheep Input'!F73","v":0},null,{"$f":"'Cleanskin Sheep Input'!G73","v":0},null,{"$f":"'Cleanskin Sheep Input'!H73","v":0},null,0]
[null,null,null,null,null,null,"Grain Cost ($/T)",null,"Kg Fed per Week",null,"No of Weeks Feeding",null,"Total Cost ($)"]
[null,null,null,null,"Number"]
[null,null,"Ewes",null,{"$f":"'Cleanskin Sheep Input'!E78","v":1000},null,{"$f":"'Cleanskin Sheep Input'!F78","v":320},null,{"$f":"'Cleanskin Sheep Input'!G78","v":2.4},null,{"$f":"'Cleanskin Sheep Input'!H78","v":10},null,{"$f":"(E253*G253*I253*K253)/1000","v":7680}]
[null,null,"Weaner",null,{"$f":"'Cleanskin Sheep Input'!E79","v":750},null,{"$f":"'Cleanskin Sheep Input'!F79","v":500},null,{"$f":"'Cleanskin Sheep Input'!G79","v":1},null,{"$f":"'Cleanskin Sheep Input'!H79","v":10},null,{"$f":"(E254*G254*I254*K254)/1000","v":3750}]
[null,null,"Ewe hoggets",null,{"$f":"'Cleanskin Sheep Input'!E80","v":0},null,{"$f":"'Cleanskin Sheep Input'!F80","v":0},null,{"$f":"'Cleanskin Sheep Input'!G80","v":0},null,{"$f":"'Cleanskin Sheep Input'!H80","v":0},null,0]
[null,null,"Lambs",null,{"$f":"'Cleanskin Sheep Input'!E81","v":0},null,{"$f":"'Cleanskin Sheep Input'!F81","v":0},null,{"$f":"'Cleanskin Sheep Input'!G81","v":0},null,{"$f":"'Cleanskin Sheep Input'!H81","v":0},null,0]
[null,null,"Rams",null,{"$f":"'Cleanskin Sheep Input'!E82","v":0},null,{"$f":"'Cleanskin Sheep Input'!F82","v":0},null,{"$f":"'Cleanskin Sheep Input'!G82","v":0},null,{"$f":"'Cleanskin Sheep Input'!H82","v":0},null,0]
[null,null,"TOTAL FEED COST",null,null,null,null,null,null,null,null,null,{"$f":"SUM(M246:M250,M253:M257)","v":16630}]
[]
[]
[]
[]
[null,null,"GM SENSITIVITY",null,null,null,null,null,null,null,null,null,null,null,null,null,null,null,null,null,null,null,null,null,null,null,null,"Water,Fuel,Other",null,null,{"$f":"SUM(Q146:Q149)","v":11532.496092359595},"Lamb Costs ","No:","per head"]
[null,null,"Gross Margin/DSE",null,"Average Weaning %",null,null,null,null,null,null,null,null,null,null,null,null,null,null,null,null,null,null,null,null,null,null,"Animal health",null,null,{"$f":"((E220*G220+E224*G224+AB215*G221)*K90+(E220*I220+E224*I224+AB215*I221)*K91+(E220*K220+E224*K224+AB215*K221)*K93)","v":1102.7411147074015}]
[null,null,null,null,null,null,1.2,null,1.35,null,1.5,null,1.65,null,1.8,null,1.9,null,null,null,null,null,null,null,null,null,null,"Stock Purchase",null,null,{"$f":"Q105","v":10500},"Marking",{"$f":"E199*G265","v":1200},{"$f":"SUM(K76:K77)","v":1.5799999999999998}]
[null,null,null,null,130,null,{"$f":"(($E$199*(G$265*100)*$E266/200+($E$199*(G$265*100)/200-$AB$215-$AE$214)*$G$212)*(1-$K$124)+SUM($I$210:$I$211)-$AE$273-($E$199*(G$265*100)*$AH$270/100)-($E$199*(G$265*100)/200-$AB$215-$AE$214)*$AC$285)/$E$197","v":41.436324110100955},null,49.504142291919152,null,57.57196047373732,null,65.639778655555503,null,73.7075968373737,null,79.086142291919131,null,null,null,null,null,null,null,null,null,null,"Freight","sheep",null,{"$f":"SUM(Q119:Q120)","v":840},"Animal health",null,{"$f":"G223*K90+I223*K91+K223*K93","v":1.1280000000000001}]
[null,null,null,null,135,null,42.461778655555499,null,50.657778655555511,null,58.853778655555502,null,67.0497786555555,null,75.245778655555497,null,80.709778655555496,null,null,null,null,null,null,null,null,null,null,null,"Wool",null,null,"Freight",null,{"$f":"K122/2","v":2}]
[null,null,"Average\nSheep Sale\nPrice($/hd)",null,140,null,43.487233201010049,null,51.811415019191877,null,60.135596837373683,null,68.459778655555496,null,76.783960473737324,null,82.333415019191861,null,null,null,null,null,null,null,null,null,null,"Commission on livestock sales",null,null,{"$f":"SUM(I210:I211)*K124","v":1436.3999999999999},"Yard Fees",null,{"$f":"K125/2","v":0.42499999999999999}]
[null,null,null,null,145,null,44.512687746464593,null,52.965051382828243,null,61.417415019191864,null,69.869778655555507,null,78.322142291919135,null,83.957051382828212,null,null,null,null,null,null,null,null,null,null,"Yard fees",null,null,{"$f":"SUM(E210:E211)*K125","v":178.28580892906868},"Levies",null,{"$f":"SUM(K127:K128)/2","v":1.0249999999999999}]
[null,null,null,null,150,null,45.538142291919137,null,54.118687746464602,null,62.699233201010045,null,71.279778655555504,null,79.860324110100962,null,85.580687746464577,null,null,null,null,null,null,null,null,null,null,"Levies",null,null,{"$f":"SUM(E210:E211)*K126","v":41.949602100957343},"TOTAL",null,{"$f":"SUM(AH265:AH269)","v":6.1579999999999995}]
[null,null,null,null,155,null,46.56359683737368,null,55.272324110100968,null,63.981051382828227,null,72.6897786555555,null,81.398505928282773,null,87.204324110100941,null,null,null,null,null,null,null,null,null,null,"SASheep Industry",null,null,{"$f":"SUM(E210:E211)*K128","v":115.36140577763268}]
[null,null,null,null,160,null,47.589051382828231,null,56.425960473737334,null,65.262869564646408,null,74.099778655555497,null,82.936687746464585,null,88.827960473737306,null,null,null,null,null,null,null,null,null,null,"Feed & other costs",null,null,{"$f":"M253+M246+AB215*G254*I254*K254/1000","v":14049.798117519686}]
[null,null,null,null,165,null,48.614505928282775,null,57.579596837373693,null,66.544687746464589,null,75.509778655555493,null,84.474869564646411,null,90.451596837373671,null,null,null,null,null,null,null,null,null,null,null,null,null,{"$f":"SUM(AE263:AE272)","v":39797.032141394338}]
[null,null,null,null,170,null,49.639960473737318,null,58.733233201010059,null,67.826505928282771,null,76.91977865555549,null,86.013051382828223,null,92.075233201010036]
[null,null,null,null,175,null,50.665415019191862,null,59.886869564646425,null,69.108324110100952,null,78.329778655555486,null,87.551233201010049,null,93.698869564646401]
[null,null,null,null,180,null,51.690869564646412,null,61.040505928282784,null,70.390142291919133,null,79.739778655555497,null,89.089415019191861,null,95.322505928282766]
[null,null,null,null,null,null,null,null,null,null,null,null,null,null,null,null,null,null,null,null,null,null,null,null,null,null,null,null,"Sale Ewe Hog Cost"]
[]
[null,null,"FLOCK STRUCTURE",null,"This table shows the number of merino sheep in each age group at mating",null,null,null,null,null,null,null,null,null,null,null,null,null,null,null,null,null,null,null,null,null,null,"Feed",{"$f":"G254*K254/1000","v":5}]
[null,null,null,null,"Age Group",null,null,null,null,null,null,null,null,null,null,null,null,null,null,null,null,null,null,null,null,null,null,null,{"$f":"G221*K90+I221*K91+K221*K92+M221*K93","v":0.86399999999999999}]
[null,null,"Class of Sheep",null,"0.5 y.o.",null,"1.5 y.o.",null,"2.5 y.o.",null,"3.5 y.o.",null,"4.5 y.o.",null,"5.5 y.o.",null,"6.5 y.o.",null,null,null,null,null,null,null,null,null,null,null,{"$f":"K121","v":4}]
[null,null,"Ewes",null,{"$f":"$AB214","v":750},null,{"$f":"$AB215","v":233.95962350393697},null,{"$f":"$AB216","v":215.59379305887791},null,{"$f":"$AB217","v":198.669680303756},null,{"$f":"$AB218","v":183.07411039991115},null,{"$f":"$AB219","v":168.70279273351812},null,0,null,null,null,null,null,null,null,null,null,null,null,{"$f":"K125","v":0.85}]
[null,null,"Wethers",null,{"$f":"$AB228","v":0},null,{"$f":"$AB229","v":0},null,0,null,0,null,0,null,0,null,0,null,null,null,null,null,null,null,null,null,null,null,{"$f":"K126","v":0.2}]
[null,null,"Rams",null,null,null,{"$f":"$AB240","v":6.5383870008497293},null,{"$f":"$AB241","v":6.3422353908242375},null,{"$f":"$AB242","v":6.1519683290995104},null,{"$f":"$AB243","v":5.9674092792265254},null,0,null,0,null,null,null,null,null,null,null,null,null,null,null,{"$f":"K128","v":0.55000000000000004}]
[null,null,null,null,null,null,null,null,null,null,null,null,null,null,null,null,null,null,null,null,null,null,null,null,null,null,null,"Total",{"$f":"SUM(AC279:AC284)","v":11.464}]

{"sheet":"Beef Input","index":19,"n_rows":27,"n_cols":6,"rows_kept":27,"cut":false,"hidden":true,"merged":[[4,2,4,9]]}
[]
[null,null,{"$f":"\"BEEF GROSS  MARGIN - \"&TEXT(m_year,\"0000\")","v":"BEEF GROSS  MARGIN - 2019"}]
[]
[null,null,"GENERAL INFORMATION"]
[null,null," Cells with yellow highlight can be changed. No allowance has been made for pasture expenses such as seed, fertiliser and chemicals. Refer to pasture gross margins in the “Cropping Gross Margin Plan” for annual and perennial pasture costs. Use the livestock gross margin per DSE as income for the pasture gross margin."]
[]
[null,null,"Breeding Cow",null,14.5,"DSE"]
[null,null,"Calf Weaning",null,0.9]
[null,null,"Herd Deaths",null,0.03]
[null,null,"Cows c.f.a",null,10,"years old"]
[null,null,"Carry over calf",null,8,"DSE"]
[null,null,"Weaned @",null,8,"months"]
[null,null,"Heifers mated @",null,15,"months"]
[null,null,"Stocking rate",null,5,"DSE/ha"]
[null,null,"Cow breeding herd",null,100]
[null,null,"Bull Percentage",null,0.03]
[null,null,"Vealers bought for",null,785]
[null,null,"sold for",null,1500]
[null,null,"after",null,3,"years"]
[null,null,"carryover to heavier weights",null,0.5,"including heifer replacements"]
[null,null,"months extra carry over",null,6]
[null,null,"Drench cows",null,2,"x"]
[null,null,"Drench calves",null,1,"x"]
[]
[null,null,"Supplementary Feed"]
[null,null,"Hay",null,68,"tonne"]
[null,null,"Grain",null,0,"tonne"]

{"sheet":"Beef","index":20,"n_rows":286,"n_cols":22,"rows_kept":286,"cut":false,"hidden":true,"merged":[[259,4,259,14],[275,4,275,14],[279,2,283,2],[263,2,267,2]]}
[null,null,"BEEF"]
[null,null,{"$f":"UPPER(Var_Animal)&\"  GROSS  MARGIN - \"&TEXT(m_year,\"0000\")","v":"BEEF  GROSS  MARGIN - 2019"}]
[]
[null,null,"ASSUMPTIONS",null,"(Breeding young cattle for local trade, grass fattened)"]
[]
[]
[null,null,"Breeding Cow",null,{"$f":"'Beef Input'!$E$7","v":14.5},null,"DSE",null,null,null,null,null,null,null,"Cow breeding herd",null,{"$f":"'Beef Input'!E15","v":100}]
[null,null,"Calf Weaning",null,{"$f":"'Beef Input'!E8","v":0.9},null,null,null,null,null,null,null,null,null,"Cows replaced per year",null,{"$f":"(Q7/E10)+(Q7*E9)","v":13}]
[null,null,"Herd Deaths",null,{"$f":"'Beef Input'!E9","v":0.03},null,null,null,null,null,null,null,null,null,"Bull Percentage",null,{"$f":"'Beef Input'!E16","v":0.03}]
[null,null,"Cows c.f.a",null,{"$f":"'Beef Input'!E10","v":10},null,"years old",null,null,null,null,null,null,null,"Bulls bought for",null,{"$f":"'Beef Input'!E17","v":785}]
[null,null,"Uses",null,{"$f":"Q8","v":13},null,"heifers as replacements",null,null,null,null,null,null,null,"sold for",null,{"$f":"'Beef Input'!E18","v":1500}]
[null,null,"Carry over calf",null,{"$f":"'Beef Input'!E11","v":8},null,"DSE",null,null,null,null,null,null,null,"after",null,{"$f":"'Beef Input'!E19","v":3},"years"]
[null,null,"Weaned @",null,{"$f":"'Beef Input'!E12","v":8},null,"months",null,null,null,null,null,null,null,"carryover to heavier weights",null,{"$f":"'Beef Input'!E20","v":0.5}]
[null,null,"Heifers mated @",null,{"$f":"'Beef Input'!E13","v":15},null,"months",null,null,null,null,null,null,null,"months extra carry over",null,{"$f":"'Beef Input'!E21","v":6}]
[null,null,"Stocking rate",null,{"$f":"'Beef Input'!E14","v":5},null,"DSE/ha",null,null,null,null,null,null,null,"Herd DSE",null,{"$f":"(Q7*E7)+(Q7*Q9*20)+(E11*E12*((E14-E13)/12))+(E11*E7*(24-E14)/12)+(E36*E12)","v":1960.0416666666667}]
[null,null,"Area required",null,{"$f":"Q15/E15","v":392.00833333333333},null,"hectares",null,null,null,null,null,null,null,"Drench cows",null,{"$f":"'Beef Input'!E22","v":2}]
[null,null,null,null,null,null,null,null,null,null,null,null,null,null,"Drench calves",null,{"$f":"'Beef Input'!E23","v":1}]
[]
[]
[]
[]
[]
[]
[]
[]
[]
[]
[]
[null,null,null,null,null,null,null,null,null,null,null,null,null,null,null,null,null,null,null,null,null," "]
[]
[]
[null,null,"INCOME",null,null,null,null,null,null,null,null,null,null,null,null,null,"$"]
[]
[null,null,null,null,null,null,null,null,"kg liveweight",null,null,null,"/kg L/W"]
[null,"Stock Sales",null,"vealers",{"$f":"(1-Q13)*(Q7*E8)","v":45},null,"Reset Rate>","=GM_INFO!B120",{"$f":"GM_INFO!B120","v":270},null,"Reset Rate>","=GM_INFO!D120",{"$f":"GM_INFO!D120","v":3},null,null,null,{"$f":"M35*I35*E35","v":36450}]
[null,null,null,"yearlings",{"$f":"ROUND(((Q7*E8)-E35-E11)*(1-E9),0)","v":31},null,"Reset Rate>","=GM_INFO!B121",{"$f":"GM_INFO!B121","v":400},null,"Reset Rate>","=GM_INFO!D121",{"$f":"GM_INFO!D121","v":2.8},null,null,null,{"$f":"M36*I36*E36","v":34720}]
[null,"Culls",null,"cows",{"$f":"Q8*(1-E9)^E10","v":9.5865136496340675},null,"Reset Rate>","=GM_INFO!B122",{"$f":"GM_INFO!B122","v":550},null,"Reset Rate>","=GM_INFO!D122",{"$f":"GM_INFO!D122","v":1.8},null,null,null,9490.6485131377267]
[null,null,null,"bull",{"$f":"Q7*Q9/Q12","v":1},null,null,null,null,null,null,null,null,null,null,null,{"$f":"'Beef Input'!E18*E38","v":1500}]
[]
[]
[null,null,"Gross Income",null,null,null,null,null,null,null,null,null,null,null,null,null,{"$f":"SUM(Q35:Q38)","v":82160.648513137727}]
[]
[]
[]
[]
[null,null,"VARIABLE COSTS"]
[]
[]
[]
[]
[]
[]
[]
[]
[]
[]
[]
[]
[]
[]
[]
[]
[]
[]
[]
[]
[]
[]
[]
[]
[]
[]
[]
[]
[null,null,"Bull Purchases",null,null,null,null,null,null,null,"Rate"]
[null,null,"No. of Bulls",null,{"$f":"E38","v":1},null,"bulls",null,"Reset Rate>","='Beef Input'!E17",{"$f":"'Beef Input'!E17","v":785},null,"total",null,null,null,{"$f":"K76*ROUND(E76,0)","v":785}]
[]
[]
[]
[]
[]
[]
[]
[]
[]
[]
[]
[]
[null,null,"Veterinary & Medicines"]
[null,null,"Drench -  cows 2x calves 1x",null,{"$f":"(Q7*Q16)+Q17*(Q7*E8)","v":290},null,"head",null,"Reset Rate>","=GM_INFO!d62",{"$f":"GM_INFO!D62","v":4.1124999999999998},null,"/head",null,null,null,{"$f":"K90*ROUND(E90,0)","v":1192.625}]
[null,null,"Ear Tags",null,{"$f":"Q7*E8","v":90},null,"head",null,"Reset Rate>","=GM_INFO!d73",{"$f":"GM_INFO!D73","v":4.75},null,"/tag",null,null,null,427.5]
[null,null,"Lice Treatments",null,{"$f":"Q7","v":100},null,"head",null,"Reset Rate>","=GM_INFO!d62",{"$f":"GM_INFO!D62","v":4.1124999999999998},null,"/dose",null,null,null,411.25]
[null,null,"Vaccine (5 in 1)",null,{"$f":"Q7*E8*2","v":180},null,"head",null,"Reset Rate>","=GM_INFO!d64",{"$f":"GM_INFO!D64","v":0.76},null,"/dose",null,null,null,136.80000000000001]
[]
[]
[]
[]
[]
[]
[]
[]
[]
[]
[]
[]
[]
[]
[]
[]
[]
[]
[]
[]
[]
[]
[]
[null,null,"Sale Costs and other"]
[]
[null,null,"Insurance",null,{"$f":"(Q7*800)+(3*2500)+(Q7*E8*350)","v":119000},null,null,null,"Reset Rate>","=GM_INFO!B107",{"$f":"GM_INFO!B107","v":2},null,"/$1000",null,null,null,{"$f":"K119*ROUND(E119,0)/1000","v":238}]
[null,null,"Water",null,{"$f":"Q15","v":1960.0416666666667},null,"dse's",null,"Reset Rate>","=GM_INFO!i79",{"$f":"GM_INFO!I79","v":2.5},null,null,null,null,null,{"$f":"K120*ROUND(E120,0)","v":4900}]
[null,null,"Veh Fuel, R&M",null,{"$f":"Q15","v":1960.0416666666667},null,"dse's",null,"Reset Rate>","=GM_INFO!i80",{"$f":"GM_INFO!I80","v":1},null,null,null,null,null,1960]
[null,null,"Other",null,{"$f":"Q15","v":1960.0416666666667},null,"dse's",null,"Reset Rate>","=GM_INFO!i81",{"$f":"GM_INFO!I81","v":0.5},null,null,null,null,null,980]
[null,null,"Transport:",null,{"$f":"SUM(E35:E38)","v":86.586513649634071},null,"head",null,"Reset Rate>","=GM_INFO!d76",{"$f":"GM_INFO!D76","v":30},null,"/head",null,null,null,{"$f":"K123*E123","v":2597.5954094890221}]
[]
[null,null,"Commission",null,null,null,null,null,"Reset Rate>","=GM_INFO!C48",{"$f":"GM_INFO!C48","v":0.06},null,null,null,null,null,{"$f":"Q41*K125","v":4929.6389107882633}]
[null,null,"Levies ",null,null,null,null,null,"Reset Rate>","=GM_INFO!d77",{"$f":"GM_INFO!D77","v":5},null,"/head",null,null,null,{"$f":"K126*SUM(E35:E38)","v":432.93256824817036}]
[]
[]
[]
[]
[]
[]
[]
[]
[]
[]
[]
[]
[]
[]
[]
[]
[null,null,"Supplementary Feed"]
[]
[null,null,"Grain"]
[null,null,"Hay",null,{"$f":"'Beef Input'!E26","v":68},null,"tonne",null,"Reset Rate>","=GM_INFO!d82",{"$f":"GM_INFO!D82","v":260},null,"/tonne",null,null,null,{"$f":"K146*E146","v":17680}]
[null,null,"Grain",null,{"$f":"'Beef Input'!E27","v":0},null,"tonne",null,"Reset Rate>","=GM_INFO!d83",{"$f":"GM_INFO!D83","v":320},null,"/tonne",null,null,null,{"$f":"K147*E147","v":0}]
[null,null,"Blocks/ Mineral Mix",null,{"$f":"Q7","v":100},null,"@",null,"Reset Rate>","=GM_INFO!d85",{"$f":"GM_INFO!D85","v":5},null,"/head",null,null,null,500]
[]
[]
[]
[]
[]
[]
[]
[]
[]
[]
[]
[]
[]
[]
[]
[]
[]
[]
[]
[]
[]
[null,null,"TOTAL VARIABLE COSTS",null,null,null,null,null,null,null,null,null,null,null,null,null,{"$f":"SUM(Q48:Q166)","v":37171.341888525458}]
[]
[null,null,"GROSS MARGIN TOTAL ",null,null,null,null,null,null,null,null,null,null,null,null,null,{"$f":"Q41-Q170","v":44989.306624612269}]
[]
[null,null,"GROSS MARGIN/DSE",null,null,null,null,null,null,null,null,null,null,null,null,null,{"$f":"$Q$172/Q15","v":22.953239918171263}]
[]
[null,null,"GROSS MARGIN/COW",null,null,null,null,null,null,null,null,null,null,null,null,null,{"$f":"$Q$172/Q7","v":449.89306624612271}]
[]
[null,null,"GROSS MARGIN/HA",null,null,null,null,null,null,null,null,null,null,null,null,null,{"$f":"$Q$172/E16","v":114.76619959085633}]
[]
[]
[]
[]
[]
[]
[]
[]
[]
[]
[]
[]
[]
[]
[]
[]
[]
[]
[]
[]
[]
[]
[]
[]
[null,"=VLOOKUP(r[0]c3&\"No Ops\",CHOOSE({1,2},tbl_ops[Name]&tbl_ops[Category],INDIRECT(\"tbl_ops[\"&var_crop&\"]\")),2,0)"]
[null,"=VLOOKUP(r[0]c3&\"No Ops\",CHOOSE({1,2},tbl_ops[Name]&tbl_ops[Category],INDIRECT(\"tbl_ops[\"&var_crop&\"]\")),2,0)"]
[null,"=VLOOKUP(r[0]c3&\"No Ops\",CHOOSE({1,2},tbl_ops[Name]&tbl_ops[Category],INDIRECT(\"tbl_ops[\"&var_crop&\"]\")),2,0)"]
[null,"=VLOOKUP(r[0]c3&\"No Ops\",CHOOSE({1,2},tbl_ops[Name]&tbl_ops[Category],INDIRECT(\"tbl_ops[\"&var_crop&\"]\")),2,0)"]
[]
[null,"=VLOOKUP(r[0]c3&var_rain,CHOOSE({1,2},tbl_ops[Name]&tbl_ops[Rainfall],INDIRECT(\"tbl_ops[\"&var_crop&\"]\")),2,0)"]
[null,"=VLOOKUP(r[0]c3&var_rain,CHOOSE({1,2},tbl_ops[Name]&tbl_ops[Rainfall],INDIRECT(\"tbl_ops[\"&var_crop&\"]\")),2,0)"]
[null,"=VLOOKUP(r[0]c3&var_rain,CHOOSE({1,2},tbl_ops[Name]&tbl_ops[Rainfall],INDIRECT(\"tbl_ops[\"&var_crop&\"]\")),2,0)"]
[null,"=VLOOKUP(r[0]c3&var_rain,CHOOSE({1,2},tbl_ops[Name]&tbl_ops[Rainfall],INDIRECT(\"tbl_ops[\"&var_crop&\"]\")),2,0)"]
[]
[]
[]
[]
[]
[]
[]
[]
[]
[]
[]
[]
[]
[]
[]
[]
[]
[]
[]
[]
[]
[]
[]
[]
[]
[]
[]
[]
[]
[]
[]
[]
[]
[]
[]
[]
[]
[]
[]
[]
[]
[]
[]
[]
[]
[]
[]
[null,null,"GM SENSITIVITY"]
[null,null,"Gross Margin",null,"Per Cow ($/kg Liveweight(yearlings/steers))"]
[null,null,null,null,null,null,2.5,null,2.7,null,2.9,null,3.1,null,3.3]
[null,null,null,null,0.6,null,{"$f":"(((($Q$7*$E262*$Q$13-$E$11-1)*G$261*$I$36)+(($Q$7*$E262)*(1-$Q$13)*G$261*$I$35)+($E$37*$I$37*$M$37)+$Q$38)-$Q$170)/$Q$7","v":100.69306624612268},null,{"$f":"(((($Q$7*$E262*$Q$13-$E$11-1)*I$261*$I$36)+(($Q$7*$E262)*(1-$Q$13)*I$261*$I$35)+($E$37*$I$37*$M$37)+$Q$38)-$Q$170)/$Q$7","v":129.6930662461227},null,{"$f":"(((($Q$7*$E262*$Q$13-$E$11-1)*K$261*$I$36)+(($Q$7*$E262)*(1-$Q$13)*K$261*$I$35)+($E$37*$I$37*$M$37)+$Q$38)-$Q$170)/$Q$7","v":158.6930662461227},null,{"$f":"(((($Q$7*$E262*$Q$13-$E$11-1)*M$261*$I$36)+(($Q$7*$E262)*(1-$Q$13)*M$261*$I$35)+($E$37*$I$37*$M$37)+$Q$38)-$Q$170)/$Q$7","v":187.6930662461227},null,{"$f":"(((($Q$7*$E262*$Q$13-$E$11-1)*O$261*$I$36)+(($Q$7*$E262)*(1-$Q$13)*O$261*$I$35)+($E$37*$I$37*$M$37)+$Q$38)-$Q$170)/$Q$7","v":216.6930662461227}]
[null,null,null,null,0.65,null,{"$f":"(((($Q$7*$E263*$Q$13-$E$11-1)*G$261*$I$36)+(($Q$7*$E263)*(1-$Q$13)*G$261*$I$35)+($E$37*$I$37*$M$37)+$Q$38)-$Q$170)/$Q$7","v":142.5680662461227},null,{"$f":"(((($Q$7*$E263*$Q$13-$E$11-1)*I$261*$I$36)+(($Q$7*$E263)*(1-$Q$13)*I$261*$I$35)+($E$37*$I$37*$M$37)+$Q$38)-$Q$170)/$Q$7","v":174.91806624612269},null,{"$f":"(((($Q$7*$E263*$Q$13-$E$11-1)*K$261*$I$36)+(($Q$7*$E263)*(1-$Q$13)*K$261*$I$35)+($E$37*$I$37*$M$37)+$Q$38)-$Q$170)/$Q$7","v":207.26806624612269},null,{"$f":"(((($Q$7*$E263*$Q$13-$E$11-1)*M$261*$I$36)+(($Q$7*$E263)*(1-$Q$13)*M$261*$I$35)+($E$37*$I$37*$M$37)+$Q$38)-$Q$170)/$Q$7","v":239.61806624612268},null,{"$f":"(((($Q$7*$E263*$Q$13-$E$11-1)*O$261*$I$36)+(($Q$7*$E263)*(1-$Q$13)*O$261*$I$35)+($E$37*$I$37*$M$37)+$Q$38)-$Q$170)/$Q$7","v":271.9680662461227}]
[null,null,"Weaning %",null,0.7,null,184.4430662461227,null,220.14306624612269,null,255.8430662461227,null,291.54306624612269,null,327.24306624612268]
[null,null,null,null,0.75,null,226.3180662461227,null,265.36806624612268,null,304.41806624612269,null,343.4680662461227,null,382.51806624612271]
[null,null,null,null,0.8,null,268.19306624612267,null,310.5930662461227,null,352.99306624612268,null,395.39306624612271,null,437.79306624612269]
[null,null,null,null,0.85,null,310.06806624612267,null,355.81806624612267,null,401.56806624612267,null,447.31806624612267,null,493.06806624612267]
[null,null,null,null,0.9,null,351.94306624612267,null,401.04306624612269,null,450.14306624612271,null,499.24306624612268,null,548.3430662461227]
[null,null,null,null,0.95,null,393.81806624612267,null,446.26806624612271,null,498.7180662461227,null,551.16806624612263,null,603.61806624612268]
[null,null,null,null,1,null,435.69306624612267,null,491.49306624612268,null,547.29306624612263,null,603.0930662461227,null,658.89306624612277]
[]
[]
[]
[]
[null,null,"GM SENSITIVITY"]
[null,null,"Gross Margin",null,"Per DSE ($/kg Liveweight(yearlings/steers))"]
[null,null,null,null,null,null,2.5,null,2.7,null,2.9,null,3.1,null,3.3]
[null,null,null,null,0.6,null,{"$f":"(((($Q$7*$E278*$Q$13-$E$11-1)*G$277*$I$36)+(($Q$7*$E278)*(1-$Q$13)*G$277*$I$35)+($E$37*$I$37*$M$37)+$Q$38)-$Q$170)/$Q$15","v":5.1372921279457167},null,{"$f":"(((($Q$7*$E278*$Q$13-$E$11-1)*I$277*$I$36)+(($Q$7*$E278)*(1-$Q$13)*I$277*$I$35)+($E$37*$I$37*$M$37)+$Q$38)-$Q$170)/$Q$15","v":6.6168525114409649},null,{"$f":"(((($Q$7*$E278*$Q$13-$E$11-1)*K$277*$I$36)+(($Q$7*$E278)*(1-$Q$13)*K$277*$I$35)+($E$37*$I$37*$M$37)+$Q$38)-$Q$170)/$Q$15","v":8.0964128949362131},null,{"$f":"(((($Q$7*$E278*$Q$13-$E$11-1)*M$277*$I$36)+(($Q$7*$E278)*(1-$Q$13)*M$277*$I$35)+($E$37*$I$37*$M$37)+$Q$38)-$Q$170)/$Q$15","v":9.5759732784314622},null,{"$f":"(((($Q$7*$E278*$Q$13-$E$11-1)*O$277*$I$36)+(($Q$7*$E278)*(1-$Q$13)*O$277*$I$35)+($E$37*$I$37*$M$37)+$Q$38)-$Q$170)/$Q$15","v":11.055533661926711}]
[null,null,null,null,0.65,null,{"$f":"(((($Q$7*$E279*$Q$13-$E$11-1)*G$277*$I$36)+(($Q$7*$E279)*(1-$Q$13)*G$277*$I$35)+($E$37*$I$37*$M$37)+$Q$38)-$Q$170)/$Q$15","v":7.2737263023892869},null,{"$f":"(((($Q$7*$E279*$Q$13-$E$11-1)*I$277*$I$36)+(($Q$7*$E279)*(1-$Q$13)*I$277*$I$35)+($E$37*$I$37*$M$37)+$Q$38)-$Q$170)/$Q$15","v":8.9242014198400206},null,{"$f":"(((($Q$7*$E279*$Q$13-$E$11-1)*K$277*$I$36)+(($Q$7*$E279)*(1-$Q$13)*K$277*$I$35)+($E$37*$I$37*$M$37)+$Q$38)-$Q$170)/$Q$15","v":10.574676537290756},null,{"$f":"(((($Q$7*$E279*$Q$13-$E$11-1)*M$277*$I$36)+(($Q$7*$E279)*(1-$Q$13)*M$277*$I$35)+($E$37*$I$37*$M$37)+$Q$38)-$Q$170)/$Q$15","v":12.22515165474149},null,{"$f":"(((($Q$7*$E279*$Q$13-$E$11-1)*O$277*$I$36)+(($Q$7*$E279)*(1-$Q$13)*O$277*$I$35)+($E$37*$I$37*$M$37)+$Q$38)-$Q$170)/$Q$15","v":13.875626772192225}]
[null,null,"Weaning %",null,0.7,null,9.4101604768328571,null,11.231550328239077,null,13.052940179645297,null,14.874330031051517,null,16.695719882457738]
[null,null,null,null,0.75,null,11.546594651276427,null,13.538899236638134,null,15.531203821999839,null,17.523508407361543,null,19.515812992723252]
[null,null,null,null,0.8,null,13.683028825719997,null,15.846248145037189,null,18.00946746435438,null,20.172686783671573,null,22.335906102988762]
[null,null,null,null,0.85,null,15.819463000163568,null,18.153597053436247,null,20.487731106708921,null,22.821865159981598,null,25.155999213254276]
[null,null,null,null,0.9,null,17.955897174607138,null,20.4609459618353,null,22.965994749063466,null,25.471043536291628,null,27.97609232351979]
[null,null,null,null,0.95,null,20.09233134905071,null,22.768294870234357,null,25.444258391418007,null,28.120221912601654,null,30.7961854337853]
[null,null,null,null,1,null,22.228765523494278,null,25.075643778633413,null,27.922522033772548,null,30.76940028891168,null,33.616278544050822]

{"sheet":"Beef Trading Input","index":21,"n_rows":27,"n_cols":6,"rows_kept":27,"cut":false,"hidden":true,"merged":[[4,2,4,9]]}
[]
[null,null,{"$f":"\"BEEF TRADING GROSS  MARGIN - \"&TEXT(m_year,\"0000\")","v":"BEEF TRADING GROSS  MARGIN - 2019"}]
[]
[null,null,"GENERAL INFORMATION"]
[null,null," Cells with yellow highlight can be changed. No allowance has been made for pasture expenses such as seed, fertiliser and chemicals. Refer to pasture gross margins in the “Cropping Gross Margin Plan” for annual and perennial pasture costs. Use the livestock gross margin per DSE as income for the pasture gross margin."]
[]
[null,null,"Vealers",null,8,"DSE"]
[null,null,"Yearlings",null,12,"DSE"]
[null,null,"Herd Deaths",null,0.02]
[null,null,"Purchases-Vealers",null,200]
[]
[]
[]
[null,null,"Stocking rate",null,10,"DSE/ha"]
[]
[]
[]
[null,null,"Stock Sales-vealers",null,100]
[]
[null,null,"Feeds",null,35,"kg/DSE hay equivalent supplement"]
[]
[null,null,"Drench vealers",null,1,"x"]
[]
[]
[null,null,"Supplementary Feed"]
[]
[null,null,"Grain",null,0,"tonne"]

{"sheet":"Beef Trading","index":22,"n_rows":286,"n_cols":22,"rows_kept":286,"cut":false,"hidden":true,"merged":[[259,4,259,14],[263,2,267,2],[275,4,275,14],[279,2,283,2]]}
[null,null,"BEEF TRADING"]
[null,null,{"$f":"UPPER(Var_Animal)&\"  GROSS  MARGIN - \"&TEXT(m_year,\"0000\")","v":"BEEF TRADING  GROSS  MARGIN - 2019"}]
[]
[null,null,"ASSUMPTIONS",null,"(Finishing young cattle for local trade, grass fattened)"]
[]
[]
[]
[]
[null,null,"Herd Deaths",null,{"$f":"'Beef Trading Input'!E9","v":0.02}]
[null,null,"Vealers",null,{"$f":"'Beef Trading Input'!E7","v":8},null,"DSE"]
[null,null,"Yearlings",null,{"$f":"'Beef Trading Input'!E8","v":12},null,"DSE"]
[]
[null,null,"Herd DSE",null,{"$f":"AVERAGE(E10:E11)*E36","v":960}]
[null,null,"Drench vealers",null,{"$f":"'Beef Trading Input'!E22","v":1}]
[null,null,"Stocking rate",null,{"$f":"'Beef Trading Input'!E14","v":10},null,"DSE/ha"]
[null,null,"Area required",null,{"$f":"E13/E15","v":96},null,"hectares"]
[null,null,"Feeds",null,{"$f":"'Beef Trading Input'!E20","v":35},null,"kg/DSE hay equivalent supplement"]
[]
[]
[]
[]
[]
[]
[]
[]
[]
[]
[]
[null,null,null,null,null,null,null,null,null,null,null,null,null,null,null,null,null,null,null,null,null," "]
[]
[]
[null,null,"INCOME",null,null,null,null,null,null,null,null,null,null,null,null,null,"$"]
[]
[null,null,null,null,null,null,null,null,"kg liveweight",null,null,null,"/kg L/W"]
[null,"Stock Sales",null,"vealers",{"$f":"'Beef Trading Input'!E18","v":100},null,"Reset Rate>","=GM_INFO!B125",{"$f":"GM_INFO!B125","v":280},null,"Reset Rate>","=GM_INFO!D120",{"$f":"GM_INFO!D120","v":3},null,null,null,{"$f":"M35*I35*E35","v":84000}]
[null,null,null,"yearlings",{"$f":"ROUND(E76-(E76*E9),3)-E35","v":96},null,"Reset Rate>","=GM_INFO!B126",{"$f":"GM_INFO!B126","v":420},null,"Reset Rate>","=GM_INFO!D121",{"$f":"GM_INFO!D121","v":2.8},null,null,null,{"$f":"M36*I36*E36","v":112896}]
[null,null,null,null,null,null,"Reset Rate>","=GM_INFO!B122",null,null,"Reset Rate>","=GM_INFO!D122",null,null,null,null,0]
[null,null,null,null,null,null,null,null,null,null,null,null,null,null,null,null,{"$f":"'Beef Trading Input'!E18*E38","v":0}]
[]
[]
[null,null,"Gross Income",null,null,null,null,null,null,null,null,null,null,null,null,null,{"$f":"SUM(Q35:Q38)","v":196896}]
[]
[]
[]
[]
[null,null,"VARIABLE COSTS"]
[]
[]
[]
[]
[]
[]
[]
[]
[]
[]
[]
[]
[]
[]
[]
[]
[]
[]
[]
[]
[]
[]
[]
[]
[]
[]
[]
[]
[null,null,"Purchases",null,null,null,null,null,null,null,"Rate"]
[null,null,"Vealers",null,{"$f":"'Beef Trading Input'!E10","v":200},null,null,null,"Reset Rate>","='Beef Input'!E17",{"$f":"'Beef Input'!E17","v":785},null,"head",null,null,null,{"$f":"K76*ROUND(E76,0)","v":157000}]
[null,null,"Transport",null,{"$f":"'Beef Trading Input'!E10","v":200},null,null,null,"Reset Rate>","=GM_INFO!B117",{"$f":"GM_INFO!B117","v":30},null,"head",null,null,null,6000]
[]
[]
[]
[]
[]
[]
[]
[]
[]
[]
[]
[null,null,"Veterinary & Medicines"]
[null,null,"Drench -  vealers 1x",null,{"$f":"E76","v":200},null,"head",null,"Reset Rate>","=GM_INFO!d62",{"$f":"GM_INFO!D62","v":4.1124999999999998},null,"/head",null,null,null,{"$f":"K90*ROUND(E90,0)","v":822.5}]
[null,null,"Ear Tags NLIS",null,{"$f":"SUM(E35:E36)","v":196},null,"head",null,"Reset Rate>","=GM_INFO!d73",{"$f":"GM_INFO!D73","v":4.75},null,"/tag",null,null,null,931]
[null,null,"Lice Treatments",null,{"$f":"E76","v":200},null,"head",null,"Reset Rate>","=GM_INFO!d62",{"$f":"GM_INFO!D62","v":4.1124999999999998},null,"/dose",null,null,null,822.5]
[null,null,"Vaccine (5 in 1)",null,{"$f":"E76","v":200},null,"head",null,"Reset Rate>","=GM_INFO!d64",{"$f":"GM_INFO!D64","v":0.76},null,"/dose",null,null,null,152]
[]
[]
[]
[]
[]
[]
[]
[]
[]
[]
[]
[]
[]
[]
[]
[]
[]
[]
[]
[]
[]
[]
[]
[null,null,"Sale Costs and other"]
[]
[null,null,"Insurance",null,{"$f":"Q76","v":157000},null,null,null,"Reset Rate>","=GM_INFO!B107",{"$f":"GM_INFO!B107","v":2},null,"/$1000",null,null,null,{"$f":"K119*ROUND(E119,0)/1000","v":314}]
[null,null,"Water",null,{"$f":"E13","v":960},null,"dse's",null,"Reset Rate>","=GM_INFO!j79",{"$f":"GM_INFO!J79","v":1.5},null,null,null,null,null,{"$f":"K120*ROUND(E120,0)","v":1440}]
[null,null,"Veh Fuel, R&M",null,{"$f":"E13","v":960},null,"dse's",null,"Reset Rate>","=GM_INFO!j80",{"$f":"GM_INFO!J80","v":1},null,null,null,null,null,960]
[null,null,"Other",null,{"$f":"E13","v":960},null,"dse's",null,"Reset Rate>","=GM_INFO!j81",{"$f":"GM_INFO!J81","v":0.5},null,null,null,null,null,480]
[null,null,"Transport:",null,{"$f":"SUM(E35:E38)","v":196},null,"head",null,"Reset Rate>","=GM_INFO!d76",{"$f":"GM_INFO!D76","v":30},null,"/head",null,null,null,{"$f":"K123*E123","v":5880}]
[]
[null,null,"Commission",null,null,null,null,null,"Reset Rate>","=GM_INFO!C48",{"$f":"GM_INFO!C48","v":0.06},null,null,null,null,null,{"$f":"Q41*K125","v":11813.76}]
[null,null,"Levies ",null,null,null,null,null,"Reset Rate>","=GM_INFO!d77",{"$f":"GM_INFO!D77","v":5},null,"/head",null,null,null,{"$f":"K126*SUM(E35:E38)","v":980}]
[]
[]
[]
[]
[]
[]
[]
[]
[]
[]
[]
[]
[]
[]
[]
[]
[null,null,"Supplementary Feed"]
[]
[null,null,"Grain"]
[null,null,"Hay",null,{"$f":"(E17*E13)/1000","v":33.6},null,"tonne",null,"Reset Rate>","=GM_INFO!d82",{"$f":"GM_INFO!D82","v":260},null,"/tonne",null,null,null,{"$f":"K146*E146","v":8736}]
[null,null,"Grain",null,{"$f":"'Beef Trading Input'!E27","v":0},null,"tonne",null,"Reset Rate>","=GM_INFO!d83",{"$f":"GM_INFO!D83","v":320},null,"/tonne",null,null,null,{"$f":"K147*E147","v":0}]
[null,null,"Blocks/ Mineral Mix",null,{"$f":"Q7","v":0},null,"@",null,"Reset Rate>","=GM_INFO!d85",{"$f":"GM_INFO!D85","v":5},null,"/head",null,null,null,0]
[]
[]
[]
[]
[]
[]
[]
[]
[]
[]
[]
[]
[]
[]
[]
[]
[]
[]
[]
[]
[]
[null,null,"TOTAL VARIABLE COSTS",null,null,null,null,null,null,null,null,null,null,null,null,null,{"$f":"SUM(Q48:Q166)","v":196331.76}]
[]
[null,null,"GROSS MARGIN TOTAL ",null,null,null,null,null,null,null,null,null,null,null,null,null,{"$f":"Q41-Q170","v":564.23999999999069}]
[]
[null,null,"GROSS MARGIN/DSE",null,null,null,null,null,null,null,null,null,null,null,null,null,{"$f":"Q172/E13","v":0.58774999999999034}]
[]
[]
[]
[null,null,"GROSS MARGIN/HA",null,null,null,null,null,null,null,null,null,null,null,null,null,{"$f":"Q172/E16","v":5.8774999999999027}]
[]
[]
[]
[]
[]
[]
[]
[]
[]
[]
[]
[]
[]
[]
[]
[]
[]
[]
[]
[]
[]
[]
[]
[]
[null,"=VLOOKUP(r[0]c3&\"No Ops\",CHOOSE({1,2},tbl_ops[Name]&tbl_ops[Category],INDIRECT(\"tbl_ops[\"&var_crop&\"]\")),2,0)"]
[null,"=VLOOKUP(r[0]c3&\"No Ops\",CHOOSE({1,2},tbl_ops[Name]&tbl_ops[Category],INDIRECT(\"tbl_ops[\"&var_crop&\"]\")),2,0)"]
[null,"=VLOOKUP(r[0]c3&\"No Ops\",CHOOSE({1,2},tbl_ops[Name]&tbl_ops[Category],INDIRECT(\"tbl_ops[\"&var_crop&\"]\")),2,0)"]
[null,"=VLOOKUP(r[0]c3&\"No Ops\",CHOOSE({1,2},tbl_ops[Name]&tbl_ops[Category],INDIRECT(\"tbl_ops[\"&var_crop&\"]\")),2,0)"]
[]
[null,"=VLOOKUP(r[0]c3&var_rain,CHOOSE({1,2},tbl_ops[Name]&tbl_ops[Rainfall],INDIRECT(\"tbl_ops[\"&var_crop&\"]\")),2,0)"]
[null,"=VLOOKUP(r[0]c3&var_rain,CHOOSE({1,2},tbl_ops[Name]&tbl_ops[Rainfall],INDIRECT(\"tbl_ops[\"&var_crop&\"]\")),2,0)"]
[null,"=VLOOKUP(r[0]c3&var_rain,CHOOSE({1,2},tbl_ops[Name]&tbl_ops[Rainfall],INDIRECT(\"tbl_ops[\"&var_crop&\"]\")),2,0)"]
[null,"=VLOOKUP(r[0]c3&var_rain,CHOOSE({1,2},tbl_ops[Name]&tbl_ops[Rainfall],INDIRECT(\"tbl_ops[\"&var_crop&\"]\")),2,0)"]
[]
[]
[]
[]
[]
[]
[]
[]
[]
[]
[]
[]
[]
[]
[]
[]
[]
[]
[]
[]
[]
[]
[]
[]
[]
[]
[]
[]
[]
[]
[]
[]
[]
[]
[]
[]
[]
[]
[]
[]
[]
[]
[]
[]
[]
[]
[]
[]
[]
[]
[]
[]
[]
[]
[]
[]
[]
[]
[]
[]
[]
[]
[]
[null,null,"GM SENSITIVITY"]
[null,null,"Gross Margin",null,"Per DSE ($/kg Liveweight sales (yearlings)"]
[null,null,null,null,null,null,2.4,null,2.6,null,2.8,null,3,null,3.2]
[null,null,null,null,2.4,null,{"$f":"(((((G$277*$I$36)*($E$36/$E$76)-($I$35*$E278))/10-(SUM($Q$77:$Q$166)/$E$13))))","v":-59.78658333333334},null,-55.754583333333343,null,-51.722583333333333,null,-47.690583333333343,null,-43.65858333333334]
[null,null,null,null,2.5,null,-62.586583333333337,null,-58.554583333333341,null,-54.522583333333337,null,-50.49058333333334,null,-46.458583333333337]
[null,null,"$/kg Liveweight\nPurchases (Vealers)",null,2.6,null,-65.386583333333334,null,-61.354583333333338,null,-57.322583333333334,null,-53.290583333333345,null,-49.258583333333334]
[null,null,null,null,2.7,null,-68.186583333333346,null,-64.154583333333335,null,-60.122583333333338,null,-56.090583333333342,null,-52.058583333333338]
[null,null,null,null,2.8,null,-70.986583333333343,null,-66.954583333333346,null,-62.922583333333336,null,-58.890583333333339,null,-54.858583333333335]
[null,null,null,null,2.9,null,-73.78658333333334,null,-69.754583333333343,null,-65.722583333333333,null,-61.690583333333343,null,-57.65858333333334]
[null,null,null,null,3,null,-76.586583333333337,null,-72.554583333333341,null,-68.52258333333333,null,-64.490583333333348,null,-60.458583333333337]
[null,null,null,null,3.1,null,-79.386583333333334,null,-75.354583333333338,null,-71.322583333333341,null,-67.290583333333345,null,-63.258583333333334]
[null,null,null,null,3.2,null,-82.186583333333346,null,-78.154583333333335,null,-74.122583333333338,null,-70.090583333333342,null,-66.058583333333331]

{"sheet":"Beef Feed Lot Input","index":23,"n_rows":5,"n_cols":3,"rows_kept":5,"cut":false,"hidden":true,"merged":[[4,2,4,9]]}
[]
[null,null,{"$f":"\"BEEF FEED LOT GROSS  MARGIN - \"&TEXT(m_year,\"0000\")","v":"BEEF FEED LOT GROSS  MARGIN - 2019"}]
[]
[null,null,"GENERAL INFORMATION"]
[null,null,"This sheet not used. Please enter all data in the Beef Feed Lot sheet"]

{"sheet":"Beef Feed Lot","index":24,"n_rows":286,"n_cols":22,"rows_kept":286,"cut":false,"hidden":true,"merged":[[259,4,259,14],[263,2,267,2],[275,4,275,14],[279,2,283,2]]}
[null,null,"BEEF FEED LOT"]
[null,null,{"$f":"UPPER(Var_Animal)&\"  GROSS  MARGIN - \"&TEXT(m_year,\"0000\")","v":"BEEF FEED LOT  GROSS  MARGIN - 2019"}]
[]
[null,null,"ASSUMPTIONS",null,"('Local supermarket, 210kg HSCW Carcase, AUSMEAT Fat Score 3-4)"]
[]
[]
[]
[null,null,"Steer Costs:"]
[null,null," Steer purchase",null,{"$f":"I9*M9","v":744},null,"for",null,240,null,"kg@",null,3.1,null,"/kg liveweight"]
[null,null," Transport In",null,30,null,"/head",null,null,null,null,null,"Average weight gain",null,1.8,null,"kg/hd/day"]
[null,null," Est. dressing % ",null,0.05,null,null,null,null,null,null,null,"Carcase weight specification",null,{"$f":"(E11*O12)","v":20.900000000000002},null,"kg HSCW"]
[null,null,null,null,null,null,null,null,null,null,null,null,"Final liveweight in lot",null,418,null,"kg"]
[null,null,null,null,null,null,null,null,null,null,null,null,"Avge liveweight in lot",null,329,null,"kg"]
[null,null,null,null,null,null,null,null,null,null,null,null,"Est. time on feed",null,100,null,"days"]
[null,null,"Feed Costs:",null,null,null,null,null,null,null,null,null,"Avge daily Feed intake",null,{"$f":"O13*0.035","v":11.515000000000001},null,"kg"]
[null,null,"  Total feed consumed",null,null,null,{"$f":"O14*O15","v":1151.5},null,"kg",null,null,null,"(3.5% of Liveweight)"]
[null,null,"  Feed Wastage",null,0.05,null,{"$f":"G16*E17","v":57.575000000000003},null,"kg",null,null,null,"Death Rate",null,0.01]
[null,null,"  Feed cost per tonne",null,null,null,325,null,"without premix / supplement"]
[]
[]
[]
[]
[]
[]
[]
[]
[]
[]
[null,null,null,null,null,null,null,null,null,null,null,null,null,null,null,null,null,null,null,null,null," "]
[]
[]
[null,null,"INCOME",null,null,null,null,null,null,null,null,null,null,null,null,null,"$"]
[]
[null,null,"Finished steers & 2% poor performers sold at 30 days"]
[null,null,null,null,0.97,null,"% Steer @","=GM_INFO!B125",{"$f":"O11","v":20.900000000000002},null,"kg carcass @","=GM_INFO!D120",6,null,"/kg HSCW",null,{"$f":"M35*I35*E35","v":121.63800000000001}]
[null,null,null,null,{"$f":"SUM(1,-E35,-E37)","v":2.0000000000000025E-2},null,"% Steer @","=GM_INFO!B126",240,null,"kg liveweight","=GM_INFO!D121",2.8,null,"/kg LVWT",null,13.440000000000017]
[null,null,null,null,{"$f":"O17","v":0.01},null,"% Steer @","=GM_INFO!B122",0,null,null,"=GM_INFO!D122",0,null,null,null,0]
[null,null,null,null,null,null,null,null,null,null,null,null,null,null,null,null,{"$f":"'Beef Feed Lot Input'!E18*E38","v":0}]
[null,null,null,"TOTAL (must be 100%)",{"$f":"SUM(E35:E38)","v":1}]
[]
[null,null,"Gross Income",null,null,null,null,null,null,null,null,null,null,null,null,null,{"$f":"SUM(Q35:Q38)","v":135.07800000000003}]
[]
[]
[]
[]
[null,null,"VARIABLE COSTS"]
[]
[]
[]
[]
[]
[]
[]
[]
[]
[]
[]
[]
[]
[]
[]
[]
[]
[]
[]
[]
[]
[]
[]
[]
[]
[]
[]
[]
[null,null,"Purchases",null,null,null,null,null,null,null,"Rate"]
[null,null,"Steer purchase",null,1,null,"head",null,null,null,700,null,"/head",null,null,null,{"$f":"K76*ROUND(E76,0)","v":700}]
[null,null,"Feeding Out & Feed"]
[null,null,"Feed purchased",null,{"$f":"(E35*(G16+G17)+(E36*(G16+G17)*30/O14))","v":1180.0572},null,"kg",null,null,null,{"$f":"G18","v":325},null,"/tonne",null,null,null,{"$f":"E78*K78/1000","v":383.51858999999996}]
[null,null,"Premix cost per tonne mixed feed",null,{"$f":"E78","v":1180.0572},null,"kg",null,"Reset Rate>","=GM_INFO!I68",{"$f":"GM_INFO!I68","v":50},null,"/tonne",null,null,null,59.002859999999998]
[null,null,"Milling costs + Labour",null,1,null,null,null,"Reset Rate>","=GM_INFO!I69",{"$f":"GM_INFO!I69","v":26},null,"/head",null,null,null,26]
[null,null,"Water",null,1,null,null,null,"Reset Rate>","=GM_INFO!I70",{"$f":"GM_INFO!I70","v":20},null,"/head",null,null,null,20]
[]
[]
[]
[]
[]
[]
[]
[null,null,"Veterinary & Medicines"]
[null,null,"Drench, Dectomax",null,1,null,"head",null,"Reset Rate>","=GM_INFO!d62",{"$f":"GM_INFO!I61","v":4.88},null,"/head",null,null,null,{"$f":"K90*ROUND(E90,0)","v":4.88}]
[null,null,"Ear Tags",null,1,null,"head",null,"Reset Rate>","=GM_INFO!d73",{"$f":"GM_INFO!I62","v":0.5},null,"/tag",null,null,null,0.5]
[null,null,"HGP implant , Synovex",null,0,null,"head",null,"Reset Rate>","=GM_INFO!d62",{"$f":"GM_INFO!I63","v":2.5},null,"/dose",null,null,null,0]
[null,null,"Lice Treatments",null,0,null,"head",null,"Reset Rate>","=GM_INFO!d64",{"$f":"GM_INFO!I64","v":0},null,"/dose",null,null,null,0]
[null,null,"Vaccine ",null,1,null,"head",null,"Reset Rate>","=GM_INFO!d64",{"$f":"GM_INFO!I65","v":1},null,"/dose",null,null,null,{"$f":"K94*ROUND(E94,0)","v":1}]
[null,null,"Veterinary",null,1,null,"head",null,"Reset Rate>","=GM_INFO!d64",{"$f":"GM_INFO!I66","v":1.25},null,"/dose",null,null,null,1.25]
[null,null,"Vitamin injection",null,0,null,"head",null,"Reset Rate>","=GM_INFO!d64",{"$f":"GM_INFO!I67","v":1.5},null,"/dose",null,null,null,0]
[]
[]
[]
[]
[]
[]
[]
[]
[]
[]
[]
[]
[]
[]
[]
[]
[]
[]
[]
[]
[null,null,"Sale Costs and other"]
[]
[null,null,"Insurance",null,{"$f":"Q76","v":700},null,null,null,"Reset Rate>","=GM_INFO!I71",{"$f":"GM_INFO!I71","v":2},null,"/$1000",null,null,null,{"$f":"K119*ROUND(E119,0)/1000","v":1.4}]
[]
[]
[null,null,"Transport In",null,1,null,"dse's",null,"Reset Rate>","=GM_INFO!I72",{"$f":"GM_INFO!I72","v":15},null,null,null,null,null,{"$f":"K122*ROUND(E122,0)","v":15}]
[null,null,"Transport Out",null,1,null,"head",null,"Reset Rate>","=GM_INFO!I73",{"$f":"GM_INFO!I73","v":30},null,"/head",null,null,null,{"$f":"K123*E123","v":30}]
[]
[null,null,"Commission",null,null,null,null,null,"Reset Rate>","=GM_INFO!I74",{"$f":"GM_INFO!I74","v":0.06},null,null,null,null,null,{"$f":"Q41*K125","v":8.1046800000000019}]
[null,null,"Levies ",null,null,null,null,null,"Reset Rate>","=GM_INFO!I75",{"$f":"GM_INFO!I75","v":5},null,"/head",null,null,null,{"$f":"K126*SUM(E35:E38)","v":5}]
[]
[]
[]
[]
[]
[]
[]
[]
[]
[]
[]
[]
[]
[]
[]
[]
[null,null,"Accreditation costs on a 600 hd/year throughput",null,null,null,null,null,null,null,null,null,null,null,null,null,1]
[]
[]
[]
[]
[]
[]
[]
[]
[]
[]
[]
[]
[]
[]
[]
[]
[]
[]
[]
[]
[]
[]
[]
[]
[]
[]
[null,null,"TOTAL VARIABLE COSTS",null,null,null,null,null,null,null,null,null,null,null,null,null,{"$f":"SUM(Q48:Q166)","v":1256.6561300000001}]
[]
[null,null,"GROSS MARGIN PER HEAD",null,null,null,null,null,null,null,null,null,null,null,null,null,{"$f":"Q41-Q170","v":-1121.5781300000001}]
[]
[null,null,"Current interest rate ",null,0.06]
[null,null,"Interest on cattle",null,null,null,null,null,null,null,{"$f":"K76*E174*O14/365","v":11.506849315068493}]
[null,null,"Interest on feed",null,null,null,null,null,null,null,{"$f":"Q78*E174*O14/365","v":6.3044151780821913}]
[]
[null,null,"GROSS MARGIN AFTER INTEREST",null,null,null,null,null,null,null,null,null,null,null,null,null,{"$f":"SUM(Q172,-K175,-K176)","v":-1139.3893944931506}]
[]
[null,null,"Break even sale price :-- c/kg on purchase price, costs & interest",null,null,null,null,null,null,null,null,null,null,null,null,null,{"$f":"((Q170+K175+K176-Q36)/(E35*I35))*100","v":6220.230821748879}]
[]
[null,null,"Break even purchase price :-- c/kg on sale price & costs",null,null,null,null,null,null,null,null,null,null,null,null,null,{"$f":"(-K176-K175+Q35-SUM(Q78:Q166))/I9*100","v":-188.6789143721461}]
[]
[]
[]
[]
[]
[]
[]
[]
[]
[]
[]
[]
[]
[]
[]
[]
[]
[]
[]
[]
[null,"=VLOOKUP(r[0]c3&\"No Ops\",CHOOSE({1,2},tbl_ops[Name]&tbl_ops[Category],INDIRECT(\"tbl_ops[\"&var_crop&\"]\")),2,0)"]
[null,"=VLOOKUP(r[0]c3&\"No Ops\",CHOOSE({1,2},tbl_ops[Name]&tbl_ops[Category],INDIRECT(\"tbl_ops[\"&var_crop&\"]\")),2,0)"]
[null,"=VLOOKUP(r[0]c3&\"No Ops\",CHOOSE({1,2},tbl_ops[Name]&tbl_ops[Category],INDIRECT(\"tbl_ops[\"&var_crop&\"]\")),2,0)"]
[null,"=VLOOKUP(r[0]c3&\"No Ops\",CHOOSE({1,2},tbl_ops[Name]&tbl_ops[Category],INDIRECT(\"tbl_ops[\"&var_crop&\"]\")),2,0)"]
[]
[null,"=VLOOKUP(r[0]c3&var_rain,CHOOSE({1,2},tbl_ops[Name]&tbl_ops[Rainfall],INDIRECT(\"tbl_ops[\"&var_crop&\"]\")),2,0)"]
[null,"=VLOOKUP(r[0]c3&var_rain,CHOOSE({1,2},tbl_ops[Name]&tbl_ops[Rainfall],INDIRECT(\"tbl_ops[\"&var_crop&\"]\")),2,0)"]
[null,"=VLOOKUP(r[0]c3&var_rain,CHOOSE({1,2},tbl_ops[Name]&tbl_ops[Rainfall],INDIRECT(\"tbl_ops[\"&var_crop&\"]\")),2,0)"]
[null,"=VLOOKUP(r[0]c3&var_rain,CHOOSE({1,2},tbl_ops[Name]&tbl_ops[Rainfall],INDIRECT(\"tbl_ops[\"&var_crop&\"]\")),2,0)"]
[]
[]
[]
[]
[]
[]
[]
[]
[]
[]
[]
[]
[]
[]
[]
[]
[]
[]
[]
[]
[]
[]
[]
[]
[]
[]
[]
[]
[]
[]
[]
[]
[]
[]
[]
[]
[]
[]
[]
[]
[]
[]
[]
[]
[]
[]
[]
[]
[]
[]
[]
[]
[]
[]
[]
[]
[]
[]
[]
[]
[]
[]
[]
[null,null,"GM SENSITIVITY"]
[null,null,"Gross Margin",null,"Per head ($/kg HSCW Carcase)"]
[null,null,null,null,null,null,5,5.5,5.5,6.5,6,null,6.5,null,7]
[null,null,null,null,285,null,{"$f":"($E$35*$I$35*G$277)+($E$36*$I$36*$M$36)-$Q$170+$Q$78-(($E$78*$E278)/1000)","v":-1094.6488420000001},-1084.512342,-1084.512342,-1064.2393420000001,-1074.3758420000001,-1196.0138420000001,-1064.2393420000001,-1196.0138420000001,-1054.102842]
[null,null,null,null,295,null,-1106.4494140000002,-1096.3129140000001,-1096.3129140000001,-1076.0399140000002,-1086.1764140000002,-1207.8144140000002,-1076.0399140000002,-1207.8144140000002,-1065.9034140000001]
[null,null,"Feed Cost/tonne",null,305,null,-1118.249986,-1108.113486,-1108.113486,-1087.8404860000001,-1097.9769860000001,-1219.614986,-1087.8404860000001,-1219.614986,-1077.703986]
[null,null,null,null,315,null,-1130.0505580000001,-1119.9140580000001,-1119.9140580000001,-1099.6410580000002,-1109.7775580000002,-1231.4155580000001,-1099.6410580000002,-1231.4155580000001,-1089.5045580000001]
[null,null,null,null,325,null,-1141.85113,-1131.7146299999999,-1131.7146299999999,-1111.44163,-1121.5781300000001,-1243.21613,-1111.44163,-1243.21613,-1101.30513]
[null,null,null,null,335,null,-1153.6517020000001,-1143.515202,-1143.515202,-1123.2422020000001,-1133.3787020000002,-1255.0167020000001,-1123.2422020000001,-1255.0167020000001,-1113.1057020000001]
[null,null,null,null,345,null,-1165.4522740000002,-1155.3157740000001,-1155.3157740000001,-1135.042774,-1145.1792740000001,-1266.817274,-1135.042774,-1266.817274,-1124.9062739999999]
[null,null,null,null,355,null,-1177.2528460000001,-1167.116346,-1167.116346,-1146.8433460000001,-1156.9798460000002,-1278.6178460000001,-1146.8433460000001,-1278.6178460000001,-1136.706846]
[null,null,null,null,365,null,-1189.053418,-1178.9169179999999,-1178.9169179999999,-1158.6439180000002,-1168.7804180000003,-1290.4184180000002,-1158.6439180000002,-1290.4184180000002,-1148.5074180000001]